Workbook

Sheet CAPA

Sheet CLIENTES (hidden)
B1: PREFEITURA MUNICIPAL DE POUSO ALEGRE
B2: PREFEITURA MUNICIPAL DE CACHOEIRA DE MINAS
B3: PREFEITURA MUNICIPAL DE ITAJUBÁ
B4: PREFEITURA MUNICIPAL DE SANTA RITA DO SAPUCAÍ
B5: RYZA
B6: FAPEPE
B7: PREFEITURA MUNICIPAL DE DELFIM MOREIRA
B8: PREFEITURA MUNICIPAL DE PIRANGUINHO

Sheet DADOS
B2: DATA | D2: 2024-06-14
B4: CLIENTE | E4: 1
B6: REVISÃO | D6: R00
B8: PROJETO | D8: PREVENÇÃO E COMBATE A INCÊNDIO E PÂNICO - ESCOLA DO BAIRRO BURITIS
B10: BDI TIPO 1 | D10: 0.2652
B12: BDI TIPO 2 | D12: -
B14: BANCOS DE DADOS | D14: SINAPI: 04/2024 Minas Gerais SETOP: 01/2024 Minas Gerais SICRO : 01/2024 Minas Gerais SUDECAP: 01/2024 Minas Gerais
B16: RESPONSÁVEL | D16: ALOISIO CAETANO FERREIRA
B18: CREA | D18: CREA - MG 97.132/D
B20: TIPO | D20: PROJETO EXECUTIVO

Sheet ORC
A3: 1000 | D3: A | E3: ADMINISTRAÇÃO DE OBRA | M3: =SUMIF(A:A,D3,M:M) -> 0 | N3: =SUMIF(A:A,D3,N:N) -> 0
D4: A.B | M4: =IFERROR(SUMIFS(M:M,A:A,LEFT(D4,SEARCH(".",D4)-1),B:B,RIGHT(D4,LEN(D4)-SEARCH(".",D4))),"") -> 0 | N4: =IFERROR(SUMIFS(N:N,A:A,LEFT(D4,SEARCH(".",D4)-1),B:B,RIGHT(D4,LEN(D4)-SEARCH(".",D4))),"") -> 0
D5: A.B.C | M5: =IFERROR(SUMIFS(M:M,A:A,LEFT(D5,SEARCH(".",D5)-1),B:B,LEFT(RIGHT(D5,LEN(D5)-SEARCH(".",D5)),SEARCH(".",RIGHT(D5,LEN(D5)-SEARCH(".",D5)))-1),C:C,RIGHT(D5,LEN(D5)-SEARCH(".",D5,SEARCH(".",D5)+1))),"") -> 0 | N5: =IFERROR(SUMIFS(N:N,A:A,LEFT(D5,SEARCH(".",D5)-1),B:B,LEFT(RIGHT(D5,LEN(D5)-SEARCH(".",D5)),SEARCH(".",RIGHT(D5,LEN(D5)-SEARCH(".",D5)))-1),C:C,RIGHT(D5,LEN(D5)-SEARCH(".",D5,SEARCH(".",D5)+1))),"") -> 0
A6: =IFERROR(LEFT(D6,SEARCH(".",D6)-1),"") -> a | B6: =IFERROR(LEFT(RIGHT(D6,LEN(D6)-SEARCH(".",D6)),SEARCH(".",RIGHT(D6,LEN(D6)-SEARCH(".",D6)))-1),"") -> a/a | C6: =IFERROR(IF(LEN(D6)-LEN(SUBSTITUTE(D6,".",""))<>3,"",MID(D6,SEARCH(".",D6,SEARCH(".",D6)+1)+1,LEN(D6)-SEARCH(".",D6,SEARCH(".",D6)+1)-(LEN(D6)-(SEARCH(".",D6,SEARCH(".",D6,SEARCH(".",D6)+1)+1)-1)))),"") ->  | D6: a.a/a.a.a/a.a.a.a | E6: =IF($G6="SINAPI",VLOOKUP($F6,DADOS_SINAPI,2,0),IF(G6="SETOP",VLOOKUP($F6,DADOS_SETOP,2,0),IF(G6="CPU",VLOOKUP($F6,DADOS_COMPOSICAO,2,0),IF(G6="SICRO",VLOOKUP($F6,DADOS_SICRO,2,0),IF(G6="SUDECAP",VLOOKUP(F6,DADOS_SUDECAP,2,0),IF(G6="COTAÇÃO",VLOOKUP($F6,DADOS_COTACAO,2,0),"")))))) ->  | H6: =IF(G6="SINAPI",VLOOKUP($F6,DADOS_SINAPI,3,0),IF(G6="SETOP",VLOOKUP($F6,DADOS_SETOP,3,0),IF(G6="CPU",VLOOKUP($F6,DADOS_COMPOSICAO,10,0),IF(G6="SICRO",VLOOKUP($F6,DADOS_SICRO,3,0),IF(G6="SUDECAP",VLOOKUP(F6,DADOS_SUDECAP,3,0),IF(G6="COTAÇÃO",VLOOKUP($F6,DADOS_COTACAO,9,0),"")))))) ->  | J6: =TRUNC(IF(G6="SINAPI",VLOOKUP($F6,DADOS_SINAPI,4,0),IF(G6="SETOP",VLOOKUP($F6,DADOS_SETOP,4,0),IF(G6="CPU",VLOOKUP($F6,DADOS_COMPOSICAO,13,0),IF(G6="SICRO",VLOOKUP($F6,DADOS_SICRO,4,0),IF(G6="SUDECAP",VLOOKUP(F6,DADOS_SUDECAP,4,0),IF(G6="COTAÇÃO",VLOOKUP(F6,DADOS_COTACAO,12,0),"")))))),2) ->  | K6: BDI 1 | L6: =TRUNC(J6*(1+$N$17),2) ->  | M6: =IFERROR(TRUNC(I6*J6,2),"") ->  | N6: =IFERROR(TRUNC(L6*I6,2),"") -> 
A7: =IFERROR(LEFT(D7,SEARCH(".",D7)-1),"") -> a | B7: =IFERROR(LEFT(RIGHT(D7,LEN(D7)-SEARCH(".",D7)),SEARCH(".",RIGHT(D7,LEN(D7)-SEARCH(".",D7)))-1),"") -> a/a | C7: =IFERROR(IF(LEN(D7)-LEN(SUBSTITUTE(D7,".",""))<>3,"",MID(D7,SEARCH(".",D7,SEARCH(".",D7)+1)+1,LEN(D7)-SEARCH(".",D7,SEARCH(".",D7)+1)-(LEN(D7)-(SEARCH(".",D7,SEARCH(".",D7,SEARCH(".",D7)+1)+1)-1)))),"") ->  | D7: a.a/a.a.a/a.a.a.a | E7: =VLOOKUP($F7,DADOS_COTACAO,2,0) ->  | G7: COTAÇÃO | H7: =VLOOKUP($F7,DADOS_COTACAO,9,0) ->  | J7: =TRUNC(VLOOKUP($F7,DADOS_COTACAO,12,0),2) ->  | K7: BDI 2 | L7: =TRUNC(J7*(1+$N$18),2) ->  | M7: =IFERROR(TRUNC(I7*J7,2),"") ->  | N7: =IFERROR(TRUNC(L7*I7,2),"") -> 
A8: 2000
E11: PLANILHA ORÇAMENTÁRIA | M11: Revisão: | N11: =DADOS!D6 -> R00 | O11: a
M12: Data: | N12: =DADOS!D2 -> 2024-06-14
D13: Projeto: | E13: =DADOS!D8 -> PREVENÇÃO E COMBATE A INCÊNDIO E PÂNICO - ESCOLA DO BAIRRO BURITIS | M13: Bancos:
D14: Responsável: | F14: Cliente: | M14: =DADOS!D14 -> SINAPI: 04/2024 Minas Gerais SETOP: 01/2024 Minas Gerais SICRO : 01/2024 Minas Gerais SUDECAP: 01/2024 Minas Gerais
M17: BDI 1: | N17: =DADOS!D10 -> 0.2652
M18: BDI 2: | N18: =DADOS!D12 -> -
D20: =E11&" DE "&DADOS!D20&" - "&E13 -> PLANILHA ORÇAMENTÁRIA DE PROJETO EXECUTIVO - PREVENÇÃO E COMBATE A INCÊNDIO E PÂNICO - ESCOLA DO BAIRRO BURITIS
D22: Item | E22: Descrição | F22: Código | G22: Banco | H22: Unidade | I22: Quantidade | J22: Valor Unitário | K22: BDI | L22: Valor Unit. com BDI | M22: Total | N22: Total com BDI
M23: =ROUND(I23*J23,2) -> 0 | N23: =ROUND(L23*I23,2) -> 0
A24: 1000 | D24: 1 | E24: SERVIÇOS PRELIMINARES | M24: =SUMIF(A:A,D24,M:M) -> 1359.14 | N24: =SUMIF(A:A,D24,N:N) -> 1719.58
A25: =IFERROR(LEFT(D25,SEARCH(".",D25)-1),"") -> 1 | B25: =IFERROR(LEFT(RIGHT(D25,LEN(D25)-SEARCH(".",D25)),SEARCH(".",RIGHT(D25,LEN(D25)-SEARCH(".",D25)))-1),"") ->  | C25: =IFERROR(IF(LEN(D25)-LEN(SUBSTITUTE(D25,".",""))<>3,"",MID(D25,SEARCH(".",D25,SEARCH(".",D25)+1)+1,LEN(D25)-SEARCH(".",D25,SEARCH(".",D25)+1)-(LEN(D25)-(SEARCH(".",D25,SEARCH(".",D25,SEARCH(".",D25)+1)+1)-1)))),"") ->  | D25: 1.1 | E25: =IF($G25="SINAPI",VLOOKUP($F25,DADOS_SINAPI,2,0),IF(G25="SETOP",VLOOKUP($F25,DADOS_SETOP,2,0),IF(G25="CPU",VLOOKUP($F25,DADOS_COMPOSICAO,2,0),IF(G25="SICRO",VLOOKUP($F25,DADOS_SICRO,2,0),IF(G25="SUDECAP",VLOOKUP(F25,DADOS_SUDECAP,2,0),IF(G25="COTAÇÃO",VLOOKUP($F25,DADOS_COTACAO,2,0),"")))))) -> FORNECIMENTO E COLOCAÇÃO DE PLACA DE OBRA EM CHAPA GALVANIZADA #26, ESP. 0,45MM, DIMENSÃO (3X1,5)M, PLOTADA COM ADESIVO VINÍLICO, AFIXADA COM REBITES 4,8X40MM, EM ESTRUTURA METÁLICA DE METALON 20X20MM, ESP. 1,25MM, INCLUSIVE SUPORTE EM EUCALIPTO AUTOCLAVADO PINTADO COM TINTA PVA DUAS (2) DEMÃOS | F25: ED-28427 | G25: SETOP | H25: =IF(G25="SINAPI",VLOOKUP($F25,DADOS_SINAPI,3,0),IF(G25="SETOP",VLOOKUP($F25,DADOS_SETOP,3,0),IF(G25="CPU",VLOOKUP($F25,DADOS_COMPOSICAO,10,0),IF(G25="SICRO",VLOOKUP($F25,DADOS_SICRO,3,0),IF(G25="SUDECAP",VLOOKUP(F25,DADOS_SUDECAP,3,0),IF(G25="COTAÇÃO",VLOOKUP($F25,DADOS_COTACAO,9,0),"")))))) -> un | I25: =F27 -> 1 | J25: =TRUNC(IF(G25="SINAPI",VLOOKUP($F25,DADOS_SINAPI,4,0),IF(G25="SETOP",VLOOKUP($F25,DADOS_SETOP,4,0),IF(G25="CPU",VLOOKUP($F25,DADOS_COMPOSICAO,13,0),IF(G25="SICRO",VLOOKUP($F25,DADOS_SICRO,4,0),IF(G25="SUDECAP",VLOOKUP(F25,DADOS_SUDECAP,4,0),IF(G25="COTAÇÃO",VLOOKUP(F25,DADOS_COTACAO,12,0),"")))))),2) -> 1359.14 | K25: BDI 1 | L25: =TRUNC(J25*(1+$N$17),2) -> 1719.58 | M25: =IFERROR(TRUNC(I25*J25,2),"") -> 1359.14 | N25: =IFERROR(TRUNC(L25*I25,2),"") -> 1719.58
A26: 2000
A27: 2000 | E27: Quantidade | F27: 1 | G27: un
A28: 2000
A29: 1000 | D29: 2 | E29: SISTEMA DE PROTEÇÃO CONTRA INCÊNDIO E PÂNICO | M29: =SUMIF(A:A,D29,M:M) -> 83420.89 | N29: =SUMIF(A:A,D29,N:N) -> 105542.76
D30: 2.1 | E30: EXTINTORES | M30: =IFERROR(SUMIFS(M:M,A:A,LEFT(D30,SEARCH(".",D30)-1),B:B,RIGHT(D30,LEN(D30)-SEARCH(".",D30))),"") -> 1501.92 | N30: =IFERROR(SUMIFS(N:N,A:A,LEFT(D30,SEARCH(".",D30)-1),B:B,RIGHT(D30,LEN(D30)-SEARCH(".",D30))),"") -> 1900.16
A31: =IFERROR(LEFT(D31,SEARCH(".",D31)-1),"") -> 2 | B31: =IFERROR(LEFT(RIGHT(D31,LEN(D31)-SEARCH(".",D31)),SEARCH(".",RIGHT(D31,LEN(D31)-SEARCH(".",D31)))-1),"") -> 1 | C31: =IFERROR(IF(LEN(D31)-LEN(SUBSTITUTE(D31,".",""))<>3,"",MID(D31,SEARCH(".",D31,SEARCH(".",D31)+1)+1,LEN(D31)-SEARCH(".",D31,SEARCH(".",D31)+1)-(LEN(D31)-(SEARCH(".",D31,SEARCH(".",D31,SEARCH(".",D31)+1)+1)-1)))),"") ->  | D31: 2.1.1 | E31: =IF($G31="SINAPI",VLOOKUP($F31,DADOS_SINAPI,2,0),IF(G31="SETOP",VLOOKUP($F31,DADOS_SETOP,2,0),IF(G31="CPU",VLOOKUP($F31,DADOS_COMPOSICAO,2,0),IF(G31="SICRO",VLOOKUP($F31,DADOS_SICRO,2,0),IF(G31="SUDECAP",VLOOKUP(F31,DADOS_SUDECAP,2,0),IF(G31="COTAÇÃO",VLOOKUP($F31,DADOS_COTACAO,2,0),"")))))) -> EXTINTOR 4A-40BC | F31: COT-INC-001 | G31: COTAÇÃO | H31: =IF(G31="SINAPI",VLOOKUP($F31,DADOS_SINAPI,3,0),IF(G31="SETOP",VLOOKUP($F31,DADOS_SETOP,3,0),IF(G31="CPU",VLOOKUP($F31,DADOS_COMPOSICAO,10,0),IF(G31="SICRO",VLOOKUP($F31,DADOS_SICRO,3,0),IF(G31="SUDECAP",VLOOKUP(F31,DADOS_SUDECAP,3,0),IF(G31="COTAÇÃO",VLOOKUP($F31,DADOS_COTACAO,9,0),"")))))) -> UN | I31: =F33 -> 4 | J31: =TRUNC(IF(G31="SINAPI",VLOOKUP($F31,DADOS_SINAPI,4,0),IF(G31="SETOP",VLOOKUP($F31,DADOS_SETOP,4,0),IF(G31="CPU",VLOOKUP($F31,DADOS_COMPOSICAO,13,0),IF(G31="SICRO",VLOOKUP($F31,DADOS_SICRO,4,0),IF(G31="SUDECAP",VLOOKUP(F31,DADOS_SUDECAP,4,0),IF(G31="COTAÇÃO",VLOOKUP(F31,DADOS_COTACAO,12,0),"")))))),2) -> 328.61 | K31: BDI 1 | L31: =TRUNC(J31*(1+$N$17),2) -> 415.75 | M31: =IFERROR(TRUNC(I31*J31,2),"") -> 1314.44 | N31: =IFERROR(TRUNC(L31*I31,2),"") -> 1663
A32: 2000
A33: 2000 | E33: Quantidade | F33: 4 | G33: un
A34: 2000
A35: =IFERROR(LEFT(D35,SEARCH(".",D35)-1),"") -> 2 | B35: =IFERROR(LEFT(RIGHT(D35,LEN(D35)-SEARCH(".",D35)),SEARCH(".",RIGHT(D35,LEN(D35)-SEARCH(".",D35)))-1),"") -> 1 | C35: =IFERROR(IF(LEN(D35)-LEN(SUBSTITUTE(D35,".",""))<>3,"",MID(D35,SEARCH(".",D35,SEARCH(".",D35)+1)+1,LEN(D35)-SEARCH(".",D35,SEARCH(".",D35)+1)-(LEN(D35)-(SEARCH(".",D35,SEARCH(".",D35,SEARCH(".",D35)+1)+1)-1)))),"") ->  | D35: 2.1.2 | E35: =IF($G35="SINAPI",VLOOKUP($F35,DADOS_SINAPI,2,0),IF(G35="SETOP",VLOOKUP($F35,DADOS_SETOP,2,0),IF(G35="CPU",VLOOKUP($F35,DADOS_COMPOSICAO,2,0),IF(G35="SICRO",VLOOKUP($F35,DADOS_SICRO,2,0),IF(G35="SUDECAP",VLOOKUP(F35,DADOS_SUDECAP,2,0),IF(G35="COTAÇÃO",VLOOKUP($F35,DADOS_COTACAO,2,0),"")))))) -> PINTURA ACRÍLICA PARA SINALIZAÇÃO HORIZONTAL EM PISO | F35: DAC-2.1 | G35: CPU | H35: =IF(G35="SINAPI",VLOOKUP($F35,DADOS_SINAPI,3,0),IF(G35="SETOP",VLOOKUP($F35,DADOS_SETOP,3,0),IF(G35="CPU",VLOOKUP($F35,DADOS_COMPOSICAO,10,0),IF(G35="SICRO",VLOOKUP($F35,DADOS_SICRO,3,0),IF(G35="SUDECAP",VLOOKUP(F35,DADOS_SUDECAP,3,0),IF(G35="COTAÇÃO",VLOOKUP($F35,DADOS_COTACAO,9,0),"")))))) -> M2 | I35: =F37 -> 4 | J35: =TRUNC(IF(G35="SINAPI",VLOOKUP($F35,DADOS_SINAPI,4,0),IF(G35="SETOP",VLOOKUP($F35,DADOS_SETOP,4,0),IF(G35="CPU",VLOOKUP($F35,DADOS_COMPOSICAO,13,0),IF(G35="SICRO",VLOOKUP($F35,DADOS_SICRO,4,0),IF(G35="SUDECAP",VLOOKUP(F35,DADOS_SUDECAP,4,0),IF(G35="COTAÇÃO",VLOOKUP(F35,DADOS_COTACAO,12,0),"")))))),2) -> 14.71 | K35: BDI 1 | L35: =TRUNC(J35*(1+$N$17),2) -> 18.61 | M35: =IFERROR(TRUNC(I35*J35,2),"") -> 58.84 | N35: =IFERROR(TRUNC(L35*I35,2),"") -> 74.44
A36: 2000
A37: 2000 | E37: Quantidade | F37: 4 | G37: un
A38: 2000
A39: =IFERROR(LEFT(D39,SEARCH(".",D39)-1),"") -> 2 | B39: =IFERROR(LEFT(RIGHT(D39,LEN(D39)-SEARCH(".",D39)),SEARCH(".",RIGHT(D39,LEN(D39)-SEARCH(".",D39)))-1),"") -> 1 | C39: =IFERROR(IF(LEN(D39)-LEN(SUBSTITUTE(D39,".",""))<>3,"",MID(D39,SEARCH(".",D39,SEARCH(".",D39)+1)+1,LEN(D39)-SEARCH(".",D39,SEARCH(".",D39)+1)-(LEN(D39)-(SEARCH(".",D39,SEARCH(".",D39,SEARCH(".",D39)+1)+1)-1)))),"") ->  | D39: 2.1.3 | E39: =IF($G39="SINAPI",VLOOKUP($F39,DADOS_SINAPI,2,0),IF(G39="SETOP",VLOOKUP($F39,DADOS_SETOP,2,0),IF(G39="CPU",VLOOKUP($F39,DADOS_COMPOSICAO,2,0),IF(G39="SICRO",VLOOKUP($F39,DADOS_SICRO,2,0),IF(G39="SUDECAP",VLOOKUP(F39,DADOS_SUDECAP,2,0),IF(G39="COTAÇÃO",VLOOKUP($F39,DADOS_COTACAO,2,0),"")))))) -> BASE DECORATIVA PARA EXTINTORES | F39: ED-50194 | G39: SETOP | H39: =IF(G39="SINAPI",VLOOKUP($F39,DADOS_SINAPI,3,0),IF(G39="SETOP",VLOOKUP($F39,DADOS_SETOP,3,0),IF(G39="CPU",VLOOKUP($F39,DADOS_COMPOSICAO,10,0),IF(G39="SICRO",VLOOKUP($F39,DADOS_SICRO,3,0),IF(G39="SUDECAP",VLOOKUP(F39,DADOS_SUDECAP,3,0),IF(G39="COTAÇÃO",VLOOKUP($F39,DADOS_COTACAO,9,0),"")))))) -> U | I39: =F41 -> 4 | J39: =TRUNC(IF(G39="SINAPI",VLOOKUP($F39,DADOS_SINAPI,4,0),IF(G39="SETOP",VLOOKUP($F39,DADOS_SETOP,4,0),IF(G39="CPU",VLOOKUP($F39,DADOS_COMPOSICAO,13,0),IF(G39="SICRO",VLOOKUP($F39,DADOS_SICRO,4,0),IF(G39="SUDECAP",VLOOKUP(F39,DADOS_SUDECAP,4,0),IF(G39="COTAÇÃO",VLOOKUP(F39,DADOS_COTACAO,12,0),"")))))),2) -> 32.16 | K39: BDI 1 | L39: =TRUNC(J39*(1+$N$17),2) -> 40.68 | M39: =IFERROR(TRUNC(I39*J39,2),"") -> 128.64 | N39: =IFERROR(TRUNC(L39*I39,2),"") -> 162.72
A40: 2000
A41: 2000 | E41: Quantidade | F41: 4 | G41: un
A42: 2000
D43: 2.2 | E43: ILUMINAÇÃO DE EMERGÊNCIA | M43: =IFERROR(SUMIFS(M:M,A:A,LEFT(D43,SEARCH(".",D43)-1),B:B,RIGHT(D43,LEN(D43)-SEARCH(".",D43))),"") -> 705.6 | N43: =IFERROR(SUMIFS(N:N,A:A,LEFT(D43,SEARCH(".",D43)-1),B:B,RIGHT(D43,LEN(D43)-SEARCH(".",D43))),"") -> 892.56
A44: =IFERROR(LEFT(D44,SEARCH(".",D44)-1),"") -> 2 | B44: =IFERROR(LEFT(RIGHT(D44,LEN(D44)-SEARCH(".",D44)),SEARCH(".",RIGHT(D44,LEN(D44)-SEARCH(".",D44)))-1),"") -> 2 | C44: =IFERROR(IF(LEN(D44)-LEN(SUBSTITUTE(D44,".",""))<>3,"",MID(D44,SEARCH(".",D44,SEARCH(".",D44)+1)+1,LEN(D44)-SEARCH(".",D44,SEARCH(".",D44)+1)-(LEN(D44)-(SEARCH(".",D44,SEARCH(".",D44,SEARCH(".",D44)+1)+1)-1)))),"") ->  | D44: 2.2.1 | E44: =IF($G44="SINAPI",VLOOKUP($F44,DADOS_SINAPI,2,0),IF(G44="SETOP",VLOOKUP($F44,DADOS_SETOP,2,0),IF(G44="CPU",VLOOKUP($F44,DADOS_COMPOSICAO,2,0),IF(G44="SICRO",VLOOKUP($F44,DADOS_SICRO,2,0),IF(G44="SUDECAP",VLOOKUP(F44,DADOS_SUDECAP,2,0),IF(G44="COTAÇÃO",VLOOKUP($F44,DADOS_COTACAO,2,0),"")))))) -> LUMINÁRIA DE EMERGÊNCIA AUTÔNOMA, TIPO LED POTÊNCIA TOTAL DE 2W, FORNECIMENTO E INSTALAÇÃO | F44: ED-26989 | G44: SETOP | H44: =IF(G44="SINAPI",VLOOKUP($F44,DADOS_SINAPI,3,0),IF(G44="SETOP",VLOOKUP($F44,DADOS_SETOP,3,0),IF(G44="CPU",VLOOKUP($F44,DADOS_COMPOSICAO,10,0),IF(G44="SICRO",VLOOKUP($F44,DADOS_SICRO,3,0),IF(G44="SUDECAP",VLOOKUP(F44,DADOS_SUDECAP,3,0),IF(G44="COTAÇÃO",VLOOKUP($F44,DADOS_COTACAO,9,0),"")))))) -> un | I44: =F46 -> 24 | J44: =TRUNC(IF(G44="SINAPI",VLOOKUP($F44,DADOS_SINAPI,4,0),IF(G44="SETOP",VLOOKUP($F44,DADOS_SETOP,4,0),IF(G44="CPU",VLOOKUP($F44,DADOS_COMPOSICAO,13,0),IF(G44="SICRO",VLOOKUP($F44,DADOS_SICRO,4,0),IF(G44="SUDECAP",VLOOKUP(F44,DADOS_SUDECAP,4,0),IF(G44="COTAÇÃO",VLOOKUP(F44,DADOS_COTACAO,12,0),"")))))),2) -> 29.4 | K44: BDI 1 | L44: =TRUNC(J44*(1+$N$17),2) -> 37.19 | M44: =IFERROR(TRUNC(I44*J44,2),"") -> 705.6 | N44: =IFERROR(TRUNC(L44*I44,2),"") -> 892.56
A45: 2000
A46: 2000 | E46: Quantidade | F46: 24 | G46: un
A47: 2000
D48: 2.3 | E48: PLACAS DE SINALIZAÇÃO | M48: =IFERROR(SUMIFS(M:M,A:A,LEFT(D48,SEARCH(".",D48)-1),B:B,RIGHT(D48,LEN(D48)-SEARCH(".",D48))),"") -> 804.05 | N48: =IFERROR(SUMIFS(N:N,A:A,LEFT(D48,SEARCH(".",D48)-1),B:B,RIGHT(D48,LEN(D48)-SEARCH(".",D48))),"") -> 1017.18
A49: =IFERROR(LEFT(D49,SEARCH(".",D49)-1),"") -> 2 | B49: =IFERROR(LEFT(RIGHT(D49,LEN(D49)-SEARCH(".",D49)),SEARCH(".",RIGHT(D49,LEN(D49)-SEARCH(".",D49)))-1),"") -> 3 | C49: =IFERROR(IF(LEN(D49)-LEN(SUBSTITUTE(D49,".",""))<>3,"",MID(D49,SEARCH(".",D49,SEARCH(".",D49)+1)+1,LEN(D49)-SEARCH(".",D49,SEARCH(".",D49)+1)-(LEN(D49)-(SEARCH(".",D49,SEARCH(".",D49,SEARCH(".",D49)+1)+1)-1)))),"") ->  | D49: 2.3.1 | E49: =IF($G49="SINAPI",VLOOKUP($F49,DADOS_SINAPI,2,0),IF(G49="SETOP",VLOOKUP($F49,DADOS_SETOP,2,0),IF(G49="CPU",VLOOKUP($F49,DADOS_COMPOSICAO,2,0),IF(G49="SICRO",VLOOKUP($F49,DADOS_SICRO,2,0),IF(G49="SUDECAP",VLOOKUP(F49,DADOS_SUDECAP,2,0),IF(G49="COTAÇÃO",VLOOKUP($F49,DADOS_COTACAO,2,0),"")))))) -> PLACA FOTOLUMINESCENTE PARA SINALIZAÇÃO DE EMERGÊNCIA, TIPO "E5", DIMENSÃO (300X300)MM, INCLUSIVE FIXAÇÃO | F49: ED-50199 | G49: SETOP | H49: =IF(G49="SINAPI",VLOOKUP($F49,DADOS_SINAPI,3,0),IF(G49="SETOP",VLOOKUP($F49,DADOS_SETOP,3,0),IF(G49="CPU",VLOOKUP($F49,DADOS_COMPOSICAO,10,0),IF(G49="SICRO",VLOOKUP($F49,DADOS_SICRO,3,0),IF(G49="SUDECAP",VLOOKUP(F49,DADOS_SUDECAP,3,0),IF(G49="COTAÇÃO",VLOOKUP($F49,DADOS_COTACAO,9,0),"")))))) -> un | I49: =F51 -> 4 | J49: =TRUNC(IF(G49="SINAPI",VLOOKUP($F49,DADOS_SINAPI,4,0),IF(G49="SETOP",VLOOKUP($F49,DADOS_SETOP,4,0),IF(G49="CPU",VLOOKUP($F49,DADOS_COMPOSICAO,13,0),IF(G49="SICRO",VLOOKUP($F49,DADOS_SICRO,4,0),IF(G49="SUDECAP",VLOOKUP(F49,DADOS_SUDECAP,4,0),IF(G49="COTAÇÃO",VLOOKUP(F49,DADOS_COTACAO,12,0),"")))))),2) -> 16.21 | K49: BDI 1 | L49: =TRUNC(J49*(1+$N$17),2) -> 20.5 | M49: =IFERROR(TRUNC(I49*J49,2),"") -> 64.84 | N49: =IFERROR(TRUNC(L49*I49,2),"") -> 82
A50: 2000
A51: 2000 | E51: Quantidade | F51: 4 | G51: un
A52: 2000
A53: =IFERROR(LEFT(D53,SEARCH(".",D53)-1),"") -> 2 | B53: =IFERROR(LEFT(RIGHT(D53,LEN(D53)-SEARCH(".",D53)),SEARCH(".",RIGHT(D53,LEN(D53)-SEARCH(".",D53)))-1),"") -> 3 | C53: =IFERROR(IF(LEN(D53)-LEN(SUBSTITUTE(D53,".",""))<>3,"",MID(D53,SEARCH(".",D53,SEARCH(".",D53)+1)+1,LEN(D53)-SEARCH(".",D53,SEARCH(".",D53)+1)-(LEN(D53)-(SEARCH(".",D53,SEARCH(".",D53,SEARCH(".",D53)+1)+1)-1)))),"") ->  | D53: 2.3.2 | E53: =IF($G53="SINAPI",VLOOKUP($F53,DADOS_SINAPI,2,0),IF(G53="SETOP",VLOOKUP($F53,DADOS_SETOP,2,0),IF(G53="CPU",VLOOKUP($F53,DADOS_COMPOSICAO,2,0),IF(G53="SICRO",VLOOKUP($F53,DADOS_SICRO,2,0),IF(G53="SUDECAP",VLOOKUP(F53,DADOS_SUDECAP,2,0),IF(G53="COTAÇÃO",VLOOKUP($F53,DADOS_COTACAO,2,0),"")))))) -> PLACA FOTOLUMINESCENTE PARA SINALIZAÇÃO DE EMERGÊNCIA, TIPO "S1", DIMENSÃO (380X190)MM, INCLUSIVE FIXAÇÃO | F53: ED-50202 | G53: SETOP | H53: =IF(G53="SINAPI",VLOOKUP($F53,DADOS_SINAPI,3,0),IF(G53="SETOP",VLOOKUP($F53,DADOS_SETOP,3,0),IF(G53="CPU",VLOOKUP($F53,DADOS_COMPOSICAO,10,0),IF(G53="SICRO",VLOOKUP($F53,DADOS_SICRO,3,0),IF(G53="SUDECAP",VLOOKUP(F53,DADOS_SUDECAP,3,0),IF(G53="COTAÇÃO",VLOOKUP($F53,DADOS_COTACAO,9,0),"")))))) -> un | I53: =F55 -> 4 | J53: =TRUNC(IF(G53="SINAPI",VLOOKUP($F53,DADOS_SINAPI,4,0),IF(G53="SETOP",VLOOKUP($F53,DADOS_SETOP,4,0),IF(G53="CPU",VLOOKUP($F53,DADOS_COMPOSICAO,13,0),IF(G53="SICRO",VLOOKUP($F53,DADOS_SICRO,4,0),IF(G53="SUDECAP",VLOOKUP(F53,DADOS_SUDECAP,4,0),IF(G53="COTAÇÃO",VLOOKUP(F53,DADOS_COTACAO,12,0),"")))))),2) -> 19.2 | K53: BDI 1 | L53: =TRUNC(J53*(1+$N$17),2) -> 24.29 | M53: =IFERROR(TRUNC(I53*J53,2),"") -> 76.8 | N53: =IFERROR(TRUNC(L53*I53,2),"") -> 97.16
A54: 2000
A55: 2000 | E55: Quantidade | F55: 4 | G55: un
A56: 2000
A57: =IFERROR(LEFT(D57,SEARCH(".",D57)-1),"") -> 2 | B57: =IFERROR(LEFT(RIGHT(D57,LEN(D57)-SEARCH(".",D57)),SEARCH(".",RIGHT(D57,LEN(D57)-SEARCH(".",D57)))-1),"") -> 3 | C57: =IFERROR(IF(LEN(D57)-LEN(SUBSTITUTE(D57,".",""))<>3,"",MID(D57,SEARCH(".",D57,SEARCH(".",D57)+1)+1,LEN(D57)-SEARCH(".",D57,SEARCH(".",D57)+1)-(LEN(D57)-(SEARCH(".",D57,SEARCH(".",D57,SEARCH(".",D57)+1)+1)-1)))),"") ->  | D57: 2.3.3 | E57: =IF($G57="SINAPI",VLOOKUP($F57,DADOS_SINAPI,2,0),IF(G57="SETOP",VLOOKUP($F57,DADOS_SETOP,2,0),IF(G57="CPU",VLOOKUP($F57,DADOS_COMPOSICAO,2,0),IF(G57="SICRO",VLOOKUP($F57,DADOS_SICRO,2,0),IF(G57="SUDECAP",VLOOKUP(F57,DADOS_SUDECAP,2,0),IF(G57="COTAÇÃO",VLOOKUP($F57,DADOS_COTACAO,2,0),"")))))) -> PLACA FOTOLUMINESCENTE PARA SINALIZAÇÃO DE EMERGÊNCIA, TIPO "S2", DIMENSÃO (380X190)MM, INCLUSIVE FIXAÇÃO | F57: ED-50201 | G57: SETOP | H57: =IF(G57="SINAPI",VLOOKUP($F57,DADOS_SINAPI,3,0),IF(G57="SETOP",VLOOKUP($F57,DADOS_SETOP,3,0),IF(G57="CPU",VLOOKUP($F57,DADOS_COMPOSICAO,10,0),IF(G57="SICRO",VLOOKUP($F57,DADOS_SICRO,3,0),IF(G57="SUDECAP",VLOOKUP(F57,DADOS_SUDECAP,3,0),IF(G57="COTAÇÃO",VLOOKUP($F57,DADOS_COTACAO,9,0),"")))))) -> un | I57: =F59 -> 3 | J57: =TRUNC(IF(G57="SINAPI",VLOOKUP($F57,DADOS_SINAPI,4,0),IF(G57="SETOP",VLOOKUP($F57,DADOS_SETOP,4,0),IF(G57="CPU",VLOOKUP($F57,DADOS_COMPOSICAO,13,0),IF(G57="SICRO",VLOOKUP($F57,DADOS_SICRO,4,0),IF(G57="SUDECAP",VLOOKUP(F57,DADOS_SUDECAP,4,0),IF(G57="COTAÇÃO",VLOOKUP(F57,DADOS_COTACAO,12,0),"")))))),2) -> 19.2 | K57: BDI 1 | L57: =TRUNC(J57*(1+$N$17),2) -> 24.29 | M57: =IFERROR(TRUNC(I57*J57,2),"") -> 57.6 | N57: =IFERROR(TRUNC(L57*I57,2),"") -> 72.87
A58: 2000
A59: 2000 | E59: Quantidade | F59: 3 | G59: un
A60: 2000
A61: =IFERROR(LEFT(D61,SEARCH(".",D61)-1),"") -> 2 | B61: =IFERROR(LEFT(RIGHT(D61,LEN(D61)-SEARCH(".",D61)),SEARCH(".",RIGHT(D61,LEN(D61)-SEARCH(".",D61)))-1),"") -> 3 | C61: =IFERROR(IF(LEN(D61)-LEN(SUBSTITUTE(D61,".",""))<>3,"",MID(D61,SEARCH(".",D61,SEARCH(".",D61)+1)+1,LEN(D61)-SEARCH(".",D61,SEARCH(".",D61)+1)-(LEN(D61)-(SEARCH(".",D61,SEARCH(".",D61,SEARCH(".",D61)+1)+1)-1)))),"") ->  | D61: 2.3.4 | E61: =IF($G61="SINAPI",VLOOKUP($F61,DADOS_SINAPI,2,0),IF(G61="SETOP",VLOOKUP($F61,DADOS_SETOP,2,0),IF(G61="CPU",VLOOKUP($F61,DADOS_COMPOSICAO,2,0),IF(G61="SICRO",VLOOKUP($F61,DADOS_SICRO,2,0),IF(G61="SUDECAP",VLOOKUP(F61,DADOS_SUDECAP,2,0),IF(G61="COTAÇÃO",VLOOKUP($F61,DADOS_COTACAO,2,0),"")))))) -> PLACA FOTOLUMINESCENTE PARA SINALIZAÇÃO DE EMERGÊNCIA, TIPO "S3", DIMENSÃO (380X190)MM, INCLUSIVE FIXAÇÃO | F61: ED-29400 | G61: SETOP | H61: =IF(G61="SINAPI",VLOOKUP($F61,DADOS_SINAPI,3,0),IF(G61="SETOP",VLOOKUP($F61,DADOS_SETOP,3,0),IF(G61="CPU",VLOOKUP($F61,DADOS_COMPOSICAO,10,0),IF(G61="SICRO",VLOOKUP($F61,DADOS_SICRO,3,0),IF(G61="SUDECAP",VLOOKUP(F61,DADOS_SUDECAP,3,0),IF(G61="COTAÇÃO",VLOOKUP($F61,DADOS_COTACAO,9,0),"")))))) -> un | I61: =F63 -> 17 | J61: =TRUNC(IF(G61="SINAPI",VLOOKUP($F61,DADOS_SINAPI,4,0),IF(G61="SETOP",VLOOKUP($F61,DADOS_SETOP,4,0),IF(G61="CPU",VLOOKUP($F61,DADOS_COMPOSICAO,13,0),IF(G61="SICRO",VLOOKUP($F61,DADOS_SICRO,4,0),IF(G61="SUDECAP",VLOOKUP(F61,DADOS_SUDECAP,4,0),IF(G61="COTAÇÃO",VLOOKUP(F61,DADOS_COTACAO,12,0),"")))))),2) -> 19.2 | K61: BDI 1 | L61: =TRUNC(J61*(1+$N$17),2) -> 24.29 | M61: =IFERROR(TRUNC(I61*J61,2),"") -> 326.4 | N61: =IFERROR(TRUNC(L61*I61,2),"") -> 412.93
A62: 2000
A63: 2000 | E63: Quantidade | F63: 17 | G63: un
A64: 2000
A65: =IFERROR(LEFT(D65,SEARCH(".",D65)-1),"") -> 2 | B65: =IFERROR(LEFT(RIGHT(D65,LEN(D65)-SEARCH(".",D65)),SEARCH(".",RIGHT(D65,LEN(D65)-SEARCH(".",D65)))-1),"") -> 3 | C65: =IFERROR(IF(LEN(D65)-LEN(SUBSTITUTE(D65,".",""))<>3,"",MID(D65,SEARCH(".",D65,SEARCH(".",D65)+1)+1,LEN(D65)-SEARCH(".",D65,SEARCH(".",D65)+1)-(LEN(D65)-(SEARCH(".",D65,SEARCH(".",D65,SEARCH(".",D65)+1)+1)-1)))),"") ->  | D65: 2.3.5 | E65: =IF($G65="SINAPI",VLOOKUP($F65,DADOS_SINAPI,2,0),IF(G65="SETOP",VLOOKUP($F65,DADOS_SETOP,2,0),IF(G65="CPU",VLOOKUP($F65,DADOS_COMPOSICAO,2,0),IF(G65="SICRO",VLOOKUP($F65,DADOS_SICRO,2,0),IF(G65="SUDECAP",VLOOKUP(F65,DADOS_SUDECAP,2,0),IF(G65="COTAÇÃO",VLOOKUP($F65,DADOS_COTACAO,2,0),"")))))) -> PLACA FOTOLUMINESCENTE PARA SINALIZAÇÃO DE EMERGÊNCIA, TIPO "S7", DIMENSÃO (380X190)MM, INCLUSIVE FIXAÇÃO | F65: ED-29404 | G65: SETOP | H65: =IF(G65="SINAPI",VLOOKUP($F65,DADOS_SINAPI,3,0),IF(G65="SETOP",VLOOKUP($F65,DADOS_SETOP,3,0),IF(G65="CPU",VLOOKUP($F65,DADOS_COMPOSICAO,10,0),IF(G65="SICRO",VLOOKUP($F65,DADOS_SICRO,3,0),IF(G65="SUDECAP",VLOOKUP(F65,DADOS_SUDECAP,3,0),IF(G65="COTAÇÃO",VLOOKUP($F65,DADOS_COTACAO,9,0),"")))))) -> un | I65: =F67 -> 2 | J65: =TRUNC(IF(G65="SINAPI",VLOOKUP($F65,DADOS_SINAPI,4,0),IF(G65="SETOP",VLOOKUP($F65,DADOS_SETOP,4,0),IF(G65="CPU",VLOOKUP($F65,DADOS_COMPOSICAO,13,0),IF(G65="SICRO",VLOOKUP($F65,DADOS_SICRO,4,0),IF(G65="SUDECAP",VLOOKUP(F65,DADOS_SUDECAP,4,0),IF(G65="COTAÇÃO",VLOOKUP(F65,DADOS_COTACAO,12,0),"")))))),2) -> 19.2 | K65: BDI 1 | L65: =TRUNC(J65*(1+$N$17),2) -> 24.29 | M65: =IFERROR(TRUNC(I65*J65,2),"") -> 38.4 | N65: =IFERROR(TRUNC(L65*I65,2),"") -> 48.58
A66: 2000
A67: 2000 | E67: Quantidade | F67: 2 | G67: un
A68: 2000
A69: =IFERROR(LEFT(D69,SEARCH(".",D69)-1),"") -> 2 | B69: =IFERROR(LEFT(RIGHT(D69,LEN(D69)-SEARCH(".",D69)),SEARCH(".",RIGHT(D69,LEN(D69)-SEARCH(".",D69)))-1),"") -> 3 | C69: =IFERROR(IF(LEN(D69)-LEN(SUBSTITUTE(D69,".",""))<>3,"",MID(D69,SEARCH(".",D69,SEARCH(".",D69)+1)+1,LEN(D69)-SEARCH(".",D69,SEARCH(".",D69)+1)-(LEN(D69)-(SEARCH(".",D69,SEARCH(".",D69,SEARCH(".",D69)+1)+1)-1)))),"") ->  | D69: 2.3.6 | E69: =IF($G69="SINAPI",VLOOKUP($F69,DADOS_SINAPI,2,0),IF(G69="SETOP",VLOOKUP($F69,DADOS_SETOP,2,0),IF(G69="CPU",VLOOKUP($F69,DADOS_COMPOSICAO,2,0),IF(G69="SICRO",VLOOKUP($F69,DADOS_SICRO,2,0),IF(G69="SUDECAP",VLOOKUP(F69,DADOS_SUDECAP,2,0),IF(G69="COTAÇÃO",VLOOKUP($F69,DADOS_COTACAO,2,0),"")))))) -> PLACA FOTOLUMINESCENTE PARA SINALIZAÇÃO DE EMERGÊNCIA, TIPO "S9", DIMENSÃO (380X190)MM, INCLUSIVE FIXAÇÃO | F69: ED-50203 | G69: SETOP | H69: =IF(G69="SINAPI",VLOOKUP($F69,DADOS_SINAPI,3,0),IF(G69="SETOP",VLOOKUP($F69,DADOS_SETOP,3,0),IF(G69="CPU",VLOOKUP($F69,DADOS_COMPOSICAO,10,0),IF(G69="SICRO",VLOOKUP($F69,DADOS_SICRO,3,0),IF(G69="SUDECAP",VLOOKUP(F69,DADOS_SUDECAP,3,0),IF(G69="COTAÇÃO",VLOOKUP($F69,DADOS_COTACAO,9,0),"")))))) -> un | I69: =F71 -> 1 | J69: =TRUNC(IF(G69="SINAPI",VLOOKUP($F69,DADOS_SINAPI,4,0),IF(G69="SETOP",VLOOKUP($F69,DADOS_SETOP,4,0),IF(G69="CPU",VLOOKUP($F69,DADOS_COMPOSICAO,13,0),IF(G69="SICRO",VLOOKUP($F69,DADOS_SICRO,4,0),IF(G69="SUDECAP",VLOOKUP(F69,DADOS_SUDECAP,4,0),IF(G69="COTAÇÃO",VLOOKUP(F69,DADOS_COTACAO,12,0),"")))))),2) -> 19.2 | K69: BDI 1 | L69: =TRUNC(J69*(1+$N$17),2) -> 24.29 | M69: =IFERROR(TRUNC(I69*J69,2),"") -> 19.2 | N69: =IFERROR(TRUNC(L69*I69,2),"") -> 24.29
A70: 2000
A71: 2000 | E71: Quantidade | F71: 1 | G71: un
A72: 2000
A73: =IFERROR(LEFT(D73,SEARCH(".",D73)-1),"") -> 2 | B73: =IFERROR(LEFT(RIGHT(D73,LEN(D73)-SEARCH(".",D73)),SEARCH(".",RIGHT(D73,LEN(D73)-SEARCH(".",D73)))-1),"") -> 3 | C73: =IFERROR(IF(LEN(D73)-LEN(SUBSTITUTE(D73,".",""))<>3,"",MID(D73,SEARCH(".",D73,SEARCH(".",D73)+1)+1,LEN(D73)-SEARCH(".",D73,SEARCH(".",D73)+1)-(LEN(D73)-(SEARCH(".",D73,SEARCH(".",D73,SEARCH(".",D73)+1)+1)-1)))),"") ->  | D73: 2.3.7 | E73: =IF($G73="SINAPI",VLOOKUP($F73,DADOS_SINAPI,2,0),IF(G73="SETOP",VLOOKUP($F73,DADOS_SETOP,2,0),IF(G73="CPU",VLOOKUP($F73,DADOS_COMPOSICAO,2,0),IF(G73="SICRO",VLOOKUP($F73,DADOS_SICRO,2,0),IF(G73="SUDECAP",VLOOKUP(F73,DADOS_SUDECAP,2,0),IF(G73="COTAÇÃO",VLOOKUP($F73,DADOS_COTACAO,2,0),"")))))) -> PLACA FOTOLUMINESCENTE PARA SINALIZAÇÃO DE EMERGÊNCIA, TIPO "S12", DIMENSÃO (380X190)MM, INCLUSIVE FIXAÇÃO | F73: ED-50205 | G73: SETOP | H73: =IF(G73="SINAPI",VLOOKUP($F73,DADOS_SINAPI,3,0),IF(G73="SETOP",VLOOKUP($F73,DADOS_SETOP,3,0),IF(G73="CPU",VLOOKUP($F73,DADOS_COMPOSICAO,10,0),IF(G73="SICRO",VLOOKUP($F73,DADOS_SICRO,3,0),IF(G73="SUDECAP",VLOOKUP(F73,DADOS_SUDECAP,3,0),IF(G73="COTAÇÃO",VLOOKUP($F73,DADOS_COTACAO,9,0),"")))))) -> un | I73: =F75 -> 6 | J73: =TRUNC(IF(G73="SINAPI",VLOOKUP($F73,DADOS_SINAPI,4,0),IF(G73="SETOP",VLOOKUP($F73,DADOS_SETOP,4,0),IF(G73="CPU",VLOOKUP($F73,DADOS_COMPOSICAO,13,0),IF(G73="SICRO",VLOOKUP($F73,DADOS_SICRO,4,0),IF(G73="SUDECAP",VLOOKUP(F73,DADOS_SUDECAP,4,0),IF(G73="COTAÇÃO",VLOOKUP(F73,DADOS_COTACAO,12,0),"")))))),2) -> 19.2 | K73: BDI 1 | L73: =TRUNC(J73*(1+$N$17),2) -> 24.29 | M73: =IFERROR(TRUNC(I73*J73,2),"") -> 115.2 | N73: =IFERROR(TRUNC(L73*I73,2),"") -> 145.74
A74: 2000
A75: 2000 | E75: Quantidade | F75: 6 | G75: un
A76: 2000
A77: =IFERROR(LEFT(D77,SEARCH(".",D77)-1),"") -> 2 | B77: =IFERROR(LEFT(RIGHT(D77,LEN(D77)-SEARCH(".",D77)),SEARCH(".",RIGHT(D77,LEN(D77)-SEARCH(".",D77)))-1),"") -> 3 | C77: =IFERROR(IF(LEN(D77)-LEN(SUBSTITUTE(D77,".",""))<>3,"",MID(D77,SEARCH(".",D77,SEARCH(".",D77)+1)+1,LEN(D77)-SEARCH(".",D77,SEARCH(".",D77)+1)-(LEN(D77)-(SEARCH(".",D77,SEARCH(".",D77,SEARCH(".",D77)+1)+1)-1)))),"") ->  | D77: 2.3.8 | E77: =IF($G77="SINAPI",VLOOKUP($F77,DADOS_SINAPI,2,0),IF(G77="SETOP",VLOOKUP($F77,DADOS_SETOP,2,0),IF(G77="CPU",VLOOKUP($F77,DADOS_COMPOSICAO,2,0),IF(G77="SICRO",VLOOKUP($F77,DADOS_SICRO,2,0),IF(G77="SUDECAP",VLOOKUP(F77,DADOS_SUDECAP,2,0),IF(G77="COTAÇÃO",VLOOKUP($F77,DADOS_COTACAO,2,0),"")))))) -> PLACA FOTOLUMINESCENTE PARA SINALIZAÇÃO DE EMERGÊNCIA, TIPO "M1", DIMENSÃO (400X600)MM, INCLUSIVE FIXAÇÃO | F77: ED-32246 | G77: SETOP | H77: =IF(G77="SINAPI",VLOOKUP($F77,DADOS_SINAPI,3,0),IF(G77="SETOP",VLOOKUP($F77,DADOS_SETOP,3,0),IF(G77="CPU",VLOOKUP($F77,DADOS_COMPOSICAO,10,0),IF(G77="SICRO",VLOOKUP($F77,DADOS_SICRO,3,0),IF(G77="SUDECAP",VLOOKUP(F77,DADOS_SUDECAP,3,0),IF(G77="COTAÇÃO",VLOOKUP($F77,DADOS_COTACAO,9,0),"")))))) -> un | I77: =F79 -> 1 | J77: =TRUNC(IF(G77="SINAPI",VLOOKUP($F77,DADOS_SINAPI,4,0),IF(G77="SETOP",VLOOKUP($F77,DADOS_SETOP,4,0),IF(G77="CPU",VLOOKUP($F77,DADOS_COMPOSICAO,13,0),IF(G77="SICRO",VLOOKUP($F77,DADOS_SICRO,4,0),IF(G77="SUDECAP",VLOOKUP(F77,DADOS_SUDECAP,4,0),IF(G77="COTAÇÃO",VLOOKUP(F77,DADOS_COTACAO,12,0),"")))))),2) -> 105.61 | K77: BDI 1 | L77: =TRUNC(J77*(1+$N$17),2) -> 133.61 | M77: =IFERROR(TRUNC(I77*J77,2),"") -> 105.61 | N77: =IFERROR(TRUNC(L77*I77,2),"") -> 133.61
A78: 2000
A79: 2000 | E79: Quantidade | F79: 1 | G79: un
A80: 2000
D81: 2.4 | E81: SEGURANÇA | M81: =IFERROR(SUMIFS(M:M,A:A,LEFT(D81,SEARCH(".",D81)-1),B:B,RIGHT(D81,LEN(D81)-SEARCH(".",D81))),"") -> 80409.32 | N81: =IFERROR(SUMIFS(N:N,A:A,LEFT(D81,SEARCH(".",D81)-1),B:B,RIGHT(D81,LEN(D81)-SEARCH(".",D81))),"") -> 101732.86
A82: =IFERROR(LEFT(D82,SEARCH(".",D82)-1),"") -> 2 | B82: =IFERROR(LEFT(RIGHT(D82,LEN(D82)-SEARCH(".",D82)),SEARCH(".",RIGHT(D82,LEN(D82)-SEARCH(".",D82)))-1),"") -> 4 | C82: =IFERROR(IF(LEN(D82)-LEN(SUBSTITUTE(D82,".",""))<>3,"",MID(D82,SEARCH(".",D82,SEARCH(".",D82)+1)+1,LEN(D82)-SEARCH(".",D82,SEARCH(".",D82)+1)-(LEN(D82)-(SEARCH(".",D82,SEARCH(".",D82,SEARCH(".",D82)+1)+1)-1)))),"") ->  | D82: 2.4.1 | E82: =IF($G82="SINAPI",VLOOKUP($F82,DADOS_SINAPI,2,0),IF(G82="SETOP",VLOOKUP($F82,DADOS_SETOP,2,0),IF(G82="CPU",VLOOKUP($F82,DADOS_COMPOSICAO,2,0),IF(G82="SICRO",VLOOKUP($F82,DADOS_SICRO,2,0),IF(G82="SUDECAP",VLOOKUP(F82,DADOS_SUDECAP,2,0),IF(G82="COTAÇÃO",VLOOKUP($F82,DADOS_COTACAO,2,0),"")))))) -> GUARDA-CORPO EXTERNO, ALTURA 130CM, EM TUBO GALVANIZADO, COM COSTURA, DIÂMETRO 2", ESP. 3MM, GRADIL COM DIVISÃO VERTICAL EM TUBO GALVANIZADO, COM COSTURA, DIÂMETRO 1", ESP. 3MM, EXCLUSIVE PINTURA | F82: ED-32104 | G82: SETOP | H82: =IF(G82="SINAPI",VLOOKUP($F82,DADOS_SINAPI,3,0),IF(G82="SETOP",VLOOKUP($F82,DADOS_SETOP,3,0),IF(G82="CPU",VLOOKUP($F82,DADOS_COMPOSICAO,10,0),IF(G82="SICRO",VLOOKUP($F82,DADOS_SICRO,3,0),IF(G82="SUDECAP",VLOOKUP(F82,DADOS_SUDECAP,3,0),IF(G82="COTAÇÃO",VLOOKUP($F82,DADOS_COTACAO,9,0),"")))))) -> m | I82: =F84 -> 109.19 | J82: =TRUNC(IF(G82="SINAPI",VLOOKUP($F82,DADOS_SINAPI,4,0),IF(G82="SETOP",VLOOKUP($F82,DADOS_SETOP,4,0),IF(G82="CPU",VLOOKUP($F82,DADOS_COMPOSICAO,13,0),IF(G82="SICRO",VLOOKUP($F82,DADOS_SICRO,4,0),IF(G82="SUDECAP",VLOOKUP(F82,DADOS_SUDECAP,4,0),IF(G82="COTAÇÃO",VLOOKUP(F82,DADOS_COTACAO,12,0),"")))))),2) -> 720.17 | K82: BDI 1 | L82: =TRUNC(J82*(1+$N$17),2) -> 911.15 | M82: =IFERROR(TRUNC(I82*J82,2),"") -> 78635.36 | N82: =IFERROR(TRUNC(L82*I82,2),"") -> 99488.46
A83: 2000
A84: 2000 | E84: Quantidade | F84: 109.19 | G84: m
A85: 2000
A86: =IFERROR(LEFT(D86,SEARCH(".",D86)-1),"") -> 2 | B86: =IFERROR(LEFT(RIGHT(D86,LEN(D86)-SEARCH(".",D86)),SEARCH(".",RIGHT(D86,LEN(D86)-SEARCH(".",D86)))-1),"") -> 4 | C86: =IFERROR(IF(LEN(D86)-LEN(SUBSTITUTE(D86,".",""))<>3,"",MID(D86,SEARCH(".",D86,SEARCH(".",D86)+1)+1,LEN(D86)-SEARCH(".",D86,SEARCH(".",D86)+1)-(LEN(D86)-(SEARCH(".",D86,SEARCH(".",D86,SEARCH(".",D86)+1)+1)-1)))),"") ->  | D86: 2.4.2 | E86: =IF($G86="SINAPI",VLOOKUP($F86,DADOS_SINAPI,2,0),IF(G86="SETOP",VLOOKUP($F86,DADOS_SETOP,2,0),IF(G86="CPU",VLOOKUP($F86,DADOS_COMPOSICAO,2,0),IF(G86="SICRO",VLOOKUP($F86,DADOS_SICRO,2,0),IF(G86="SUDECAP",VLOOKUP(F86,DADOS_SUDECAP,2,0),IF(G86="COTAÇÃO",VLOOKUP($F86,DADOS_COTACAO,2,0),"")))))) -> PINTURA ESMALTE EM ESTRUTURA METÁLICA, DUAS (2) DEMÃOS, INCLUSIVE UMA (1) DEMÃO FUNDO ANTICORROSIVO | F86: ED-50497 | G86: SETOP | H86: =IF(G86="SINAPI",VLOOKUP($F86,DADOS_SINAPI,3,0),IF(G86="SETOP",VLOOKUP($F86,DADOS_SETOP,3,0),IF(G86="CPU",VLOOKUP($F86,DADOS_COMPOSICAO,10,0),IF(G86="SICRO",VLOOKUP($F86,DADOS_SICRO,3,0),IF(G86="SUDECAP",VLOOKUP(F86,DADOS_SUDECAP,3,0),IF(G86="COTAÇÃO",VLOOKUP($F86,DADOS_COTACAO,9,0),"")))))) -> m2 | I86: =F88 -> 49.004472 | J86: =TRUNC(IF(G86="SINAPI",VLOOKUP($F86,DADOS_SINAPI,4,0),IF(G86="SETOP",VLOOKUP($F86,DADOS_SETOP,4,0),IF(G86="CPU",VLOOKUP($F86,DADOS_COMPOSICAO,13,0),IF(G86="SICRO",VLOOKUP($F86,DADOS_SICRO,4,0),IF(G86="SUDECAP",VLOOKUP(F86,DADOS_SUDECAP,4,0),IF(G86="COTAÇÃO",VLOOKUP(F86,DADOS_COTACAO,12,0),"")))))),2) -> 36.2 | K86: BDI 1 | L86: =TRUNC(J86*(1+$N$17),2) -> 45.8 | M86: =IFERROR(TRUNC(I86*J86,2),"") -> 1773.96 | N86: =IFERROR(TRUNC(L86*I86,2),"") -> 2244.4
A87: 2000
A88: 2000 | E88: Quantidade | F88: =(F84+(F84*6*1.3))*0.051 -> 49.004472 | G88: m²
A89: 2000
A90: 1000 | D90: 3 | E90: SERVIÇOS FINAIS | M90: =SUMIF(A:A,D90,M:M) -> 909.93 | N90: =SUMIF(A:A,D90,N:N) -> 1150.16
A91: =IFERROR(LEFT(D91,SEARCH(".",D91)-1),"") -> 3 | B91: =IFERROR(LEFT(RIGHT(D91,LEN(D91)-SEARCH(".",D91)),SEARCH(".",RIGHT(D91,LEN(D91)-SEARCH(".",D91)))-1),"") ->  | C91: =IFERROR(IF(LEN(D91)-LEN(SUBSTITUTE(D91,".",""))<>3,"",MID(D91,SEARCH(".",D91,SEARCH(".",D91)+1)+1,LEN(D91)-SEARCH(".",D91,SEARCH(".",D91)+1)-(LEN(D91)-(SEARCH(".",D91,SEARCH(".",D91,SEARCH(".",D91)+1)+1)-1)))),"") ->  | D91: 3.1 | E91: =IF($G91="SINAPI",VLOOKUP($F91,DADOS_SINAPI,2,0),IF(G91="SETOP",VLOOKUP($F91,DADOS_SETOP,2,0),IF(G91="CPU",VLOOKUP($F91,DADOS_COMPOSICAO,2,0),IF(G91="SICRO",VLOOKUP($F91,DADOS_SICRO,2,0),IF(G91="SUDECAP",VLOOKUP(F91,DADOS_SUDECAP,2,0),IF(G91="COTAÇÃO",VLOOKUP($F91,DADOS_COTACAO,2,0),"")))))) -> LIMPEZA FINAL PARA ENTREGA DA OBRA | F91: ED-50266 | G91: SETOP | H91: =IF(G91="SINAPI",VLOOKUP($F91,DADOS_SINAPI,3,0),IF(G91="SETOP",VLOOKUP($F91,DADOS_SETOP,3,0),IF(G91="CPU",VLOOKUP($F91,DADOS_COMPOSICAO,10,0),IF(G91="SICRO",VLOOKUP($F91,DADOS_SICRO,3,0),IF(G91="SUDECAP",VLOOKUP(F91,DADOS_SUDECAP,3,0),IF(G91="COTAÇÃO",VLOOKUP($F91,DADOS_COTACAO,9,0),"")))))) -> m2 | I91: =F94 -> 134.208 | J91: =TRUNC(IF(G91="SINAPI",VLOOKUP($F91,DADOS_SINAPI,4,0),IF(G91="SETOP",VLOOKUP($F91,DADOS_SETOP,4,0),IF(G91="CPU",VLOOKUP($F91,DADOS_COMPOSICAO,13,0),IF(G91="SICRO",VLOOKUP($F91,DADOS_SICRO,4,0),IF(G91="SUDECAP",VLOOKUP(F91,DADOS_SUDECAP,4,0),IF(G91="COTAÇÃO",VLOOKUP(F91,DADOS_COTACAO,12,0),"")))))),2) -> 6.78 | K91: BDI 1 | L91: =TRUNC(J91*(1+$N$17),2) -> 8.57 | M91: =IFERROR(TRUNC(I91*J91,2),"") -> 909.93 | N91: =IFERROR(TRUNC(L91*I91,2),"") -> 1150.16
A92: 2000
A93: 2000 | E93: Área para limpeza | F93: =894.72*0.15 -> 134.208 | G93: m²
A94: 2000 | E94: Total | F94: =F93 -> 134.208 | G94: m²
A95: 2000
D97: TOTAL INCLUINDO ADMINISTRAÇÃO | M97: =IFERROR(SUMIF(A:A,1000,M:M),"") -> 85689.96
D98: BDI | M98: =IFERROR(M99-M97,"") -> 22722.54
D99: TOTAL GERAL | M99: =IFERROR(SUMIF(A:A,1000,N:N),"") -> 108412.5
E104: RESPONSÁVEL TÉCNICO: | F104: =DADOS!D16 -> ALOISIO CAETANO FERREIRA
F105: =DADOS!D18 -> CREA - MG 97.132/D

Sheet ABC
A2: CURVA ABC DE SERVIÇOS | H2: Revisão: | I2: =DADOS!D6 -> R00
H3: Data: | I3: =DADOS!D2 -> 2024-06-14
A4: Projeto: | C4: Responsável: | D4: Cliente: | H4: Bancos:
A5: =DADOS!D8 -> PREVENÇÃO E COMBATE A INCÊNDIO E PÂNICO - ESCOLA DO BAIRRO BURITIS | H5: =DADOS!D14 -> SINAPI: 04/2024 Minas Gerais SETOP: 01/2024 Minas Gerais SICRO : 01/2024 Minas Gerais SUDECAP: 01/2024 Minas Gerais
H8: BDI 1: | I8: =DADOS!D10 -> 0.2652
H9: BDI 2: | I9: =DADOS!D12 -> -
A11: =A2&" DE "&DADOS!D20&" - "&A5 -> CURVA ABC DE SERVIÇOS DE PROJETO EXECUTIVO - PREVENÇÃO E COMBATE A INCÊNDIO E PÂNICO - ESCOLA DO BAIRRO BURITIS
A13: Código | B13: Banco | C13: Descrição | D13: Unidade | E13: Quantidade | F13: Valor Unitário | G13: Total | H13: Peso (%) | I13: Peso Acumulado (%)
A15: ED-32104 | B15: SETOP | C15: GUARDA-CORPO EXTERNO, ALTURA 130CM, EM TUBO GALVANIZADO, COM COSTURA, DIÂMETRO 2", ESP. 3MM, GRADIL COM DIVISÃO VERTICAL EM TUBO GALVANIZADO, COM COSTURA, DIÂMETRO 1", ESP. 3MM, EXCLUSIVE PINTURA | D15: m | E15: 109.19 | F15: 911.15 | G15: 99488.46 | H15: 0.9176843999 | I15: 0.9176843999
A16: ED-50497 | B16: SETOP | C16: PINTURA ESMALTE EM ESTRUTURA METÁLICA, DUAS (2) DEMÃOS, INCLUSIVE UMA (1) DEMÃO FUNDO ANTICORROSIVO | D16: m2 | E16: 49.004472 | F16: 45.8 | G16: 2244.4 | H16: 0.02070240978 | I16: 0.9383868096
A17: ED-28427 | B17: SETOP | C17: FORNECIMENTO E COLOCAÇÃO DE PLACA DE OBRA EM CHAPA GALVANIZADA #26, ESP. 0,45MM, DIMENSÃO (3X1,5)M, PLOTADA COM ADESIVO VINÍLICO, AFIXADA COM REBITES 4,8X40MM, EM ESTRUTURA METÁLICA DE METALON 20X20MM, ESP. 1,25MM, INCLUSIVE SUPORTE EM EUCALIPTO AUTOCLAVADO PINTADO COM TINTA PVA DUAS (2) DEMÃOS | D17: un | E17: 1 | F17: 1719.58 | G17: 1719.58 | H17: 0.01586145509 | I17: 0.9542482647
A18: COT-INC-001 | B18: COTAÇÃO | C18: EXTINTOR 4A-40BC | D18: UN | E18: 4 | F18: 415.75 | G18: 1663 | H18: 0.01533955955 | I18: 0.9695878243
A19: ED-50266 | B19: SETOP | C19: LIMPEZA FINAL PARA ENTREGA DA OBRA | D19: m2 | E19: 134.208 | F19: 8.57 | G19: 1150.16 | H19: 0.01060910873 | I19: 0.980196933
A20: ED-26989 | B20: SETOP | C20: LUMINÁRIA DE EMERGÊNCIA AUTÔNOMA, TIPO LED POTÊNCIA TOTAL DE 2W, FORNECIMENTO E INSTALAÇÃO | D20: un | E20: 24 | F20: 37.19 | G20: 892.56 | H20: 0.008232998962 | I20: 0.988429932
A21: ED-29400 | B21: SETOP | C21: PLACA FOTOLUMINESCENTE PARA SINALIZAÇÃO DE EMERGÊNCIA, TIPO "S3", DIMENSÃO (380X190)MM, INCLUSIVE FIXAÇÃO | D21: un | E21: 17 | F21: 24.29 | G21: 412.93 | H21: 0.003808878128 | I21: 0.9922388101
A22: ED-50194 | B22: SETOP | C22: BASE DECORATIVA PARA EXTINTORES | D22: U | E22: 4 | F22: 40.68 | G22: 162.72 | H22: 0.001500933933 | I22: 0.993739744
A23: ED-50205 | B23: SETOP | C23: PLACA FOTOLUMINESCENTE PARA SINALIZAÇÃO DE EMERGÊNCIA, TIPO "S12", DIMENSÃO (380X190)MM, INCLUSIVE FIXAÇÃO | D23: un | E23: 6 | F23: 24.29 | G23: 145.74 | H23: 0.001344309927 | I23: 0.995084054
A24: ED-32246 | B24: SETOP | C24: PLACA FOTOLUMINESCENTE PARA SINALIZAÇÃO DE EMERGÊNCIA, TIPO "M1", DIMENSÃO (400X600)MM, INCLUSIVE FIXAÇÃO | D24: un | E24: 1 | F24: 133.61 | G24: 133.61 | H24: 0.001232422461 | I24: 0.9963164764
A25: ED-50202 | B25: SETOP | C25: PLACA FOTOLUMINESCENTE PARA SINALIZAÇÃO DE EMERGÊNCIA, TIPO "S1", DIMENSÃO (380X190)MM, INCLUSIVE FIXAÇÃO | D25: un | E25: 4 | F25: 24.29 | G25: 97.16 | H25: 0.0008962066182 | I25: 0.997212683
A26: ED-50199 | B26: SETOP | C26: PLACA FOTOLUMINESCENTE PARA SINALIZAÇÃO DE EMERGÊNCIA, TIPO "E5", DIMENSÃO (300X300)MM, INCLUSIVE FIXAÇÃO | D26: un | E26: 4 | F26: 20.5 | G26: 82 | H26: 0.0007563703447 | I26: 0.9979690534
A27: DAC-2.1 | B27: CPU | C27: PINTURA ACRÍLICA PARA SINALIZAÇÃO HORIZONTAL EM PISO | D27: M2 | E27: 4 | F27: 18.61 | G27: 74.44 | H27: 0.0006866366886 | I27: 0.9986556901
A28: ED-50201 | B28: SETOP | C28: PLACA FOTOLUMINESCENTE PARA SINALIZAÇÃO DE EMERGÊNCIA, TIPO "S2", DIMENSÃO (380X190)MM, INCLUSIVE FIXAÇÃO | D28: un | E28: 3 | F28: 24.29 | G28: 72.87 | H28: 0.0006721549637 | I28: 0.999327845
A29: ED-29404 | B29: SETOP | C29: PLACA FOTOLUMINESCENTE PARA SINALIZAÇÃO DE EMERGÊNCIA, TIPO "S7", DIMENSÃO (380X190)MM, INCLUSIVE FIXAÇÃO | D29: un | E29: 2 | F29: 24.29 | G29: 48.58 | H29: 0.0004481033091 | I29: 0.9997759483
A30: ED-50203 | B30: SETOP | C30: PLACA FOTOLUMINESCENTE PARA SINALIZAÇÃO DE EMERGÊNCIA, TIPO "S9", DIMENSÃO (380X190)MM, INCLUSIVE FIXAÇÃO | D30: un | E30: 1 | F30: 24.29 | G30: 24.29 | H30: 0.0002240516546 | I30: 1
A102: TOTAL INCLUINDO ADMINISTRAÇÃO | H102: =ORC!M97 -> 85689.96
A103: BDI | H103: =ORC!M98 -> 22722.54
A104: TOTAL GERAL | H104: =IF(ORC!M99=SUM(G:G),ORC!M99,"ERRO") -> 108412.5
D111: RESPONSÁVEL TÉCNICO: | F111: =DADOS!D16 -> ALOISIO CAETANO FERREIRA
F112: =DADOS!D18 -> CREA - MG 97.132/D

Sheet Auxiliar_ABC (hidden)
A1: ED-32104 | B1: SETOP | C1: GUARDA-CORPO EXTERNO, ALTURA 130CM, EM TUBO GALVANIZADO, COM COSTURA, DIÂMETRO 2", ESP. 3MM, GRADIL COM DIVISÃO VERTICAL EM TUBO GALVANIZADO, COM COSTURA, DIÂMETRO 1", ESP. 3MM, EXCLUSIVE PINTURA | D1: m | E1: 109.19 | F1: 911.15 | G1: 99488.46 | H1: 0.9176843999 | I1: 0.9176843999 | R1: QUANTIDADE TOTAL | V1: VALOR TOTAL | W1: % | X1: =W1 -> %
A2: ED-50497 | B2: SETOP | C2: PINTURA ESMALTE EM ESTRUTURA METÁLICA, DUAS (2) DEMÃOS, INCLUSIVE UMA (1) DEMÃO FUNDO ANTICORROSIVO | D2: m2 | E2: 49.004472 | F2: 45.8 | G2: 2244.4 | H2: 0.02070240978 | I2: 0.9383868096 | R2: =SUMIF(ORC!$F:$F,O2,ORC!$I:$I) -> 0 | V2: =SUMIF(ORC!$F:$F,O2,ORC!$N:$N) -> 0 | W2: =V2/SUM($I:$I) -> 0 | X2: =W2+X1 -> 
A3: ED-28427 | B3: SETOP | C3: FORNECIMENTO E COLOCAÇÃO DE PLACA DE OBRA EM CHAPA GALVANIZADA #26, ESP. 0,45MM, DIMENSÃO (3X1,5)M, PLOTADA COM ADESIVO VINÍLICO, AFIXADA COM REBITES 4,8X40MM, EM ESTRUTURA METÁLICA DE METALON 20X20MM, ESP. 1,25MM, INCLUSIVE SUPORTE EM EUCALIPTO AUTOCLAVADO PINTADO COM TINTA PVA DUAS (2) DEMÃOS | D3: un | E3: 1 | F3: 1719.58 | G3: 1719.58 | H3: 0.01586145509 | I3: 0.9542482647
A4: COT-INC-001 | B4: COTAÇÃO | C4: EXTINTOR 4A-40BC | D4: UN | E4: 4 | F4: 415.75 | G4: 1663 | H4: 0.01533955955 | I4: 0.9695878243
A5: ED-50266 | B5: SETOP | C5: LIMPEZA FINAL PARA ENTREGA DA OBRA | D5: m2 | E5: 134.208 | F5: 8.57 | G5: 1150.16 | H5: 0.01060910873 | I5: 0.980196933
A6: ED-26989 | B6: SETOP | C6: LUMINÁRIA DE EMERGÊNCIA AUTÔNOMA, TIPO LED POTÊNCIA TOTAL DE 2W, FORNECIMENTO E INSTALAÇÃO | D6: un | E6: 24 | F6: 37.19 | G6: 892.56 | H6: 0.008232998962 | I6: 0.988429932
A7: ED-29400 | B7: SETOP | C7: PLACA FOTOLUMINESCENTE PARA SINALIZAÇÃO DE EMERGÊNCIA, TIPO "S3", DIMENSÃO (380X190)MM, INCLUSIVE FIXAÇÃO | D7: un | E7: 17 | F7: 24.29 | G7: 412.93 | H7: 0.003808878128 | I7: 0.9922388101
A8: ED-50194 | B8: SETOP | C8: BASE DECORATIVA PARA EXTINTORES | D8: U | E8: 4 | F8: 40.68 | G8: 162.72 | H8: 0.001500933933 | I8: 0.993739744
A9: ED-50205 | B9: SETOP | C9: PLACA FOTOLUMINESCENTE PARA SINALIZAÇÃO DE EMERGÊNCIA, TIPO "S12", DIMENSÃO (380X190)MM, INCLUSIVE FIXAÇÃO | D9: un | E9: 6 | F9: 24.29 | G9: 145.74 | H9: 0.001344309927 | I9: 0.995084054
A10: ED-32246 | B10: SETOP | C10: PLACA FOTOLUMINESCENTE PARA SINALIZAÇÃO DE EMERGÊNCIA, TIPO "M1", DIMENSÃO (400X600)MM, INCLUSIVE FIXAÇÃO | D10: un | E10: 1 | F10: 133.61 | G10: 133.61 | H10: 0.001232422461 | I10: 0.9963164764
A11: ED-50202 | B11: SETOP | C11: PLACA FOTOLUMINESCENTE PARA SINALIZAÇÃO DE EMERGÊNCIA, TIPO "S1", DIMENSÃO (380X190)MM, INCLUSIVE FIXAÇÃO | D11: un | E11: 4 | F11: 24.29 | G11: 97.16 | H11: 0.0008962066182 | I11: 0.997212683
A12: ED-50199 | B12: SETOP | C12: PLACA FOTOLUMINESCENTE PARA SINALIZAÇÃO DE EMERGÊNCIA, TIPO "E5", DIMENSÃO (300X300)MM, INCLUSIVE FIXAÇÃO | D12: un | E12: 4 | F12: 20.5 | G12: 82 | H12: 0.0007563703447 | I12: 0.9979690534
A13: DAC-2.1 | B13: CPU | C13: PINTURA ACRÍLICA PARA SINALIZAÇÃO HORIZONTAL EM PISO | D13: M2 | E13: 4 | F13: 18.61 | G13: 74.44 | H13: 0.0006866366886 | I13: 0.9986556901
A14: ED-50201 | B14: SETOP | C14: PLACA FOTOLUMINESCENTE PARA SINALIZAÇÃO DE EMERGÊNCIA, TIPO "S2", DIMENSÃO (380X190)MM, INCLUSIVE FIXAÇÃO | D14: un | E14: 3 | F14: 24.29 | G14: 72.87 | H14: 0.0006721549637 | I14: 0.999327845
A15: ED-29404 | B15: SETOP | C15: PLACA FOTOLUMINESCENTE PARA SINALIZAÇÃO DE EMERGÊNCIA, TIPO "S7", DIMENSÃO (380X190)MM, INCLUSIVE FIXAÇÃO | D15: un | E15: 2 | F15: 24.29 | G15: 48.58 | H15: 0.0004481033091 | I15: 0.9997759483
A16: ED-50203 | B16: SETOP | C16: PLACA FOTOLUMINESCENTE PARA SINALIZAÇÃO DE EMERGÊNCIA, TIPO "S9", DIMENSÃO (380X190)MM, INCLUSIVE FIXAÇÃO | D16: un | E16: 1 | F16: 24.29 | G16: 24.29 | H16: 0.0002240516546 | I16: 1

Sheet Auxiliar_ABC2 (hidden)
A1: 1 | D1: 1.1 | E1: FORNECIMENTO E COLOCAÇÃO DE PLACA DE OBRA EM CHAPA GALVANIZADA #26, ESP. 0,45MM, DIMENSÃO (3X1,5)M, PLOTADA COM ADESIVO VINÍLICO, AFIXADA COM REBITES 4,8X40MM, EM ESTRUTURA METÁLICA DE METALON 20X20MM, ESP. 1,25MM, INCLUSIVE SUPORTE EM EUCALIPTO AUTOCLAVADO PINTADO COM TINTA PVA DUAS (2) DEMÃOS | F1: ED-28427 | G1: SETOP | H1: un | I1: 1 | J1: 1359.14 | K1: BDI 1 | L1: 1719.58 | M1: 1359.14 | N1: 1719.58
A2: 2 | B2: 1 | D2: 2.1.1 | E2: EXTINTOR 4A-40BC | F2: COT-INC-001 | G2: COTAÇÃO | H2: UN | I2: 4 | J2: 328.61 | K2: BDI 1 | L2: 415.75 | M2: 1314.44 | N2: 1663
A3: 2 | B3: 1 | D3: 2.1.2 | E3: PINTURA ACRÍLICA PARA SINALIZAÇÃO HORIZONTAL EM PISO | F3: DAC-2.1 | G3: CPU | H3: M2 | I3: 4 | J3: 14.71 | K3: BDI 1 | L3: 18.61 | M3: 58.84 | N3: 74.44
A4: 2 | B4: 1 | D4: 2.1.3 | E4: BASE DECORATIVA PARA EXTINTORES | F4: ED-50194 | G4: SETOP | H4: U | I4: 4 | J4: 32.16 | K4: BDI 1 | L4: 40.68 | M4: 128.64 | N4: 162.72
A5: 2 | B5: 2 | D5: 2.2.1 | E5: LUMINÁRIA DE EMERGÊNCIA AUTÔNOMA, TIPO LED POTÊNCIA TOTAL DE 2W, FORNECIMENTO E INSTALAÇÃO | F5: ED-26989 | G5: SETOP | H5: un | I5: 24 | J5: 29.4 | K5: BDI 1 | L5: 37.19 | M5: 705.6 | N5: 892.56
A6: 2 | B6: 3 | D6: 2.3.1 | E6: PLACA FOTOLUMINESCENTE PARA SINALIZAÇÃO DE EMERGÊNCIA, TIPO "E5", DIMENSÃO (300X300)MM, INCLUSIVE FIXAÇÃO | F6: ED-50199 | G6: SETOP | H6: un | I6: 4 | J6: 16.21 | K6: BDI 1 | L6: 20.5 | M6: 64.84 | N6: 82
A7: 2 | B7: 3 | D7: 2.3.2 | E7: PLACA FOTOLUMINESCENTE PARA SINALIZAÇÃO DE EMERGÊNCIA, TIPO "S1", DIMENSÃO (380X190)MM, INCLUSIVE FIXAÇÃO | F7: ED-50202 | G7: SETOP | H7: un | I7: 4 | J7: 19.2 | K7: BDI 1 | L7: 24.29 | M7: 76.8 | N7: 97.16
A8: 2 | B8: 3 | D8: 2.3.3 | E8: PLACA FOTOLUMINESCENTE PARA SINALIZAÇÃO DE EMERGÊNCIA, TIPO "S2", DIMENSÃO (380X190)MM, INCLUSIVE FIXAÇÃO | F8: ED-50201 | G8: SETOP | H8: un | I8: 3 | J8: 19.2 | K8: BDI 1 | L8: 24.29 | M8: 57.6 | N8: 72.87
A9: 2 | B9: 3 | D9: 2.3.4 | E9: PLACA FOTOLUMINESCENTE PARA SINALIZAÇÃO DE EMERGÊNCIA, TIPO "S3", DIMENSÃO (380X190)MM, INCLUSIVE FIXAÇÃO | F9: ED-29400 | G9: SETOP | H9: un | I9: 17 | J9: 19.2 | K9: BDI 1 | L9: 24.29 | M9: 326.4 | N9: 412.93
A10: 2 | B10: 3 | D10: 2.3.5 | E10: PLACA FOTOLUMINESCENTE PARA SINALIZAÇÃO DE EMERGÊNCIA, TIPO "S7", DIMENSÃO (380X190)MM, INCLUSIVE FIXAÇÃO | F10: ED-29404 | G10: SETOP | H10: un | I10: 2 | J10: 19.2 | K10: BDI 1 | L10: 24.29 | M10: 38.4 | N10: 48.58
A11: 2 | B11: 3 | D11: 2.3.6 | E11: PLACA FOTOLUMINESCENTE PARA SINALIZAÇÃO DE EMERGÊNCIA, TIPO "S9", DIMENSÃO (380X190)MM, INCLUSIVE FIXAÇÃO | F11: ED-50203 | G11: SETOP | H11: un | I11: 1 | J11: 19.2 | K11: BDI 1 | L11: 24.29 | M11: 19.2 | N11: 24.29
A12: 2 | B12: 3 | D12: 2.3.7 | E12: PLACA FOTOLUMINESCENTE PARA SINALIZAÇÃO DE EMERGÊNCIA, TIPO "S12", DIMENSÃO (380X190)MM, INCLUSIVE FIXAÇÃO | F12: ED-50205 | G12: SETOP | H12: un | I12: 6 | J12: 19.2 | K12: BDI 1 | L12: 24.29 | M12: 115.2 | N12: 145.74
A13: 2 | B13: 3 | D13: 2.3.8 | E13: PLACA FOTOLUMINESCENTE PARA SINALIZAÇÃO DE EMERGÊNCIA, TIPO "M1", DIMENSÃO (400X600)MM, INCLUSIVE FIXAÇÃO | F13: ED-32246 | G13: SETOP | H13: un | I13: 1 | J13: 105.61 | K13: BDI 1 | L13: 133.61 | M13: 105.61 | N13: 133.61
A14: 2 | B14: 4 | D14: 2.4.1 | E14: GUARDA-CORPO EXTERNO, ALTURA 130CM, EM TUBO GALVANIZADO, COM COSTURA, DIÂMETRO 2", ESP. 3MM, GRADIL COM DIVISÃO VERTICAL EM TUBO GALVANIZADO, COM COSTURA, DIÂMETRO 1", ESP. 3MM, EXCLUSIVE PINTURA | F14: ED-32104 | G14: SETOP | H14: m | I14: 109.19 | J14: 720.17 | K14: BDI 1 | L14: 911.15 | M14: 78635.36 | N14: 99488.46
A15: 2 | B15: 4 | D15: 2.4.2 | E15: PINTURA ESMALTE EM ESTRUTURA METÁLICA, DUAS (2) DEMÃOS, INCLUSIVE UMA (1) DEMÃO FUNDO ANTICORROSIVO | F15: ED-50497 | G15: SETOP | H15: m2 | I15: 49.004472 | J15: 36.2 | K15: BDI 1 | L15: 45.8 | M15: 1773.96 | N15: 2244.4
A16: 3 | D16: 3.1 | E16: LIMPEZA FINAL PARA ENTREGA DA OBRA | F16: ED-50266 | G16: SETOP | H16: m2 | I16: 134.208 | J16: 6.78 | K16: BDI 1 | L16: 8.57 | M16: 909.93 | N16: 1150.16

Sheet CPU
A2: COMPOSIÇÕES DE CUSTO | L2: Revisão: | M2: =DADOS!D6 -> R00
L3: Data: | M3: =DADOS!D2 -> 2024-06-14
A4: Projeto: | D4: Cliente: | H4: Cliente: | L4: Bancos:
A5: =DADOS!D8 -> PREVENÇÃO E COMBATE A INCÊNDIO E PÂNICO - ESCOLA DO BAIRRO BURITIS | L5: =DADOS!D14 -> SINAPI: 04/2024 Minas Gerais SETOP: 01/2024 Minas Gerais SICRO : 01/2024 Minas Gerais SUDECAP: 01/2024 Minas Gerais
L8: BDI 1: | M8: =DADOS!D10 -> 0.2652
L9: BDI 2: | M9: =DADOS!D12 -> -
A11: =A2&" DE "&DADOS!D20&" - "&A5 -> COMPOSIÇÕES DE CUSTO DE PROJETO EXECUTIVO - PREVENÇÃO E COMBATE A INCÊNDIO E PÂNICO - ESCOLA DO BAIRRO BURITIS
A13: CÓDIGO | B13: DESCRIÇÃO | I13: Banco | J13: Unid. | K13: Coeficiente | L13: Preço Unit. | M13: Total
A15: 2 | B15: =VLOOKUP(A15,ORC!$D$24:$N$99,2,0) -> SISTEMA DE PROTEÇÃO CONTRA INCÊNDIO E PÂNICO
A16: DAC-2.1 | B16: PINTURA ACRÍLICA PARA SINALIZAÇÃO HORIZONTAL EM PISO | I16: CPU | J16: M2 | M16: =SUM(M17:M19) -> 14.7168
B17: 88310 | C17: =IF(I17="SINAPI",VLOOKUP(B17,DADOS_SINAPI,2,0),IF(I17="SETOP",VLOOKUP(B17,DADOS_SETOP,2,0),IF(I17="SICRO",VLOOKUP(B17,DADOS_SICRO,2,0),IF(I17="SUDECAP",VLOOKUP(B17,DADOS_SUDECAP,2,0),IF(I17="COTAÇÃO",VLOOKUP(B17,DADOS_COTACAO,2,0),VLOOKUP(B17,DADOS_COMPOSICAO,2,0)))))) -> PINTOR COM ENCARGOS COMPLEMENTARES | I17: SINAPI | J17: =IF(I17="SINAPI",VLOOKUP(B17,DADOS_SINAPI,3,0),IF(I17="SETOP",VLOOKUP(B17,DADOS_SETOP,3,0),IF(I17="SICRO",VLOOKUP(B17,DADOS_SICRO,3,0),IF(I17="SUDECAP",VLOOKUP(B17,DADOS_SUDECAP,3,0),IF(I17="COTAÇÃO",VLOOKUP(B17,DADOS_COTACAO,9,0),VLOOKUP(B17,DADOS_COMPOSICAO,10,0)))))) -> H | K17: 0.3 | L17: =IF(I17="SINAPI",VLOOKUP(B17,DADOS_SINAPI,4,0),IF(I17="SETOP",VLOOKUP(B17,DADOS_SETOP,4,0),IF(I17="SICRO",VLOOKUP(B17,DADOS_SICRO,4,0),IF(I17="SUDECAP",VLOOKUP(B17,DADOS_SUDECAP,4,0),IF(I17="COTAÇÃO",VLOOKUP(B17,DADOS_COTACAO,12,0),VLOOKUP(B17,DADOS_COMPOSICAO,13,0)))))) -> 26.77 | M17: =K17*L17 -> 8.031
B18: 88316 | C18: =IF(I18="SINAPI",VLOOKUP(B18,DADOS_SINAPI,2,0),IF(I18="SETOP",VLOOKUP(B18,DADOS_SETOP,2,0),IF(I18="SICRO",VLOOKUP(B18,DADOS_SICRO,2,0),IF(I18="SUDECAP",VLOOKUP(B18,DADOS_SUDECAP,2,0),IF(I18="COTAÇÃO",VLOOKUP(B18,DADOS_COTACAO,2,0),VLOOKUP(B18,DADOS_COMPOSICAO,2,0)))))) -> SERVENTE COM ENCARGOS COMPLEMENTARES | I18: SINAPI | J18: =IF(I18="SINAPI",VLOOKUP(B18,DADOS_SINAPI,3,0),IF(I18="SETOP",VLOOKUP(B18,DADOS_SETOP,3,0),IF(I18="SICRO",VLOOKUP(B18,DADOS_SICRO,3,0),IF(I18="SUDECAP",VLOOKUP(B18,DADOS_SUDECAP,3,0),IF(I18="COTAÇÃO",VLOOKUP(B18,DADOS_COTACAO,9,0),VLOOKUP(B18,DADOS_COMPOSICAO,10,0)))))) -> H | K18: 0.3 | L18: =IF(I18="SINAPI",VLOOKUP(B18,DADOS_SINAPI,4,0),IF(I18="SETOP",VLOOKUP(B18,DADOS_SETOP,4,0),IF(I18="SICRO",VLOOKUP(B18,DADOS_SICRO,4,0),IF(I18="SUDECAP",VLOOKUP(B18,DADOS_SUDECAP,4,0),IF(I18="COTAÇÃO",VLOOKUP(B18,DADOS_COTACAO,12,0),VLOOKUP(B18,DADOS_COMPOSICAO,13,0)))))) -> 18.53 | M18: 5.559
B19: 7348 | C19: =IF(I19="SINAPI",VLOOKUP(B19,DADOS_SINAPI,2,0),IF(I19="SETOP",VLOOKUP(B19,DADOS_SETOP,2,0),IF(I19="SICRO",VLOOKUP(B19,DADOS_SICRO,2,0),IF(I19="SUDECAP",VLOOKUP(B19,DADOS_SUDECAP,2,0),IF(I19="COTAÇÃO",VLOOKUP(B19,DADOS_COTACAO,2,0),VLOOKUP(B19,DADOS_COMPOSICAO,2,0)))))) -> TINTA ACRILICA PREMIUM PARA PISO | I19: SINAPI | J19: =IF(I19="SINAPI",VLOOKUP(B19,DADOS_SINAPI,3,0),IF(I19="SETOP",VLOOKUP(B19,DADOS_SETOP,3,0),IF(I19="SICRO",VLOOKUP(B19,DADOS_SICRO,3,0),IF(I19="SUDECAP",VLOOKUP(B19,DADOS_SUDECAP,3,0),IF(I19="COTAÇÃO",VLOOKUP(B19,DADOS_COTACAO,9,0),VLOOKUP(B19,DADOS_COMPOSICAO,10,0)))))) -> L | K19: 0.06 | L19: =IF(I19="SINAPI",VLOOKUP(B19,DADOS_SINAPI,4,0),IF(I19="SETOP",VLOOKUP(B19,DADOS_SETOP,4,0),IF(I19="SICRO",VLOOKUP(B19,DADOS_SICRO,4,0),IF(I19="SUDECAP",VLOOKUP(B19,DADOS_SUDECAP,4,0),IF(I19="COTAÇÃO",VLOOKUP(B19,DADOS_COTACAO,12,0),VLOOKUP(B19,DADOS_COMPOSICAO,13,0)))))) -> 18.78 | M19: 1.1268
D30: RESPONSÁVEL TÉCNICO: | G30: =DADOS!D16 -> ALOISIO CAETANO FERREIRA
G31: =DADOS!D18 -> CREA - MG 97.132/D

Sheet COT
A2: PLANILHA DE COTAÇÕES | K2: Revisão: | L2: =DADOS!D6 -> R00
K3: Data: | L3: =DADOS!D2 -> 2024-06-14
A4: Projeto: | D4: Responsável: | G4: Cliente: | K4: Bancos:
A5: =DADOS!D8 -> PREVENÇÃO E COMBATE A INCÊNDIO E PÂNICO - ESCOLA DO BAIRRO BURITIS | D5: =DADOS!G8 -> 0 | K5: =DADOS!D14 -> SINAPI: 04/2024 Minas Gerais SETOP: 01/2024 Minas Gerais SICRO : 01/2024 Minas Gerais SUDECAP: 01/2024 Minas Gerais
K8: BDI 1: | L8: =DADOS!D10 -> 0.2652
K9: BDI 2: | L9: =DADOS!D12 -> -
A11: =A2&" DE "&DADOS!D20&" - "&A5 -> PLANILHA DE COTAÇÕES DE PROJETO EXECUTIVO - PREVENÇÃO E COMBATE A INCÊNDIO E PÂNICO - ESCOLA DO BAIRRO BURITIS
A13: COT-INC-001 | B13: EXTINTOR 4A-40BC | I13: UN | L13: =MEDIAN(L15:XFD17) -> 328.61
A14: EMPRESA | B14: CIDADE | C14: LOCAL / LINK | G14: CNPJ | H14: CONTATO | I14: UN | J14: VALOR | K14: FRETE | L14: TOTAL
A15: CONTRA INCÊNDIO | C15: https://contraincendio.com.br/produto/extintores-de-incendio/po-quimico-classe-abc/extintor-de-po-quimico-seco-pqs-abc-8kg/ | G15: 15.579.136/0001-75 | H15: (15) 3233-5959 | I15: UN | J15: 358.29 | K15: 52.96 | L15: =J15+K15 -> 411.25
A16: MEGA THOR | C16: https://www.megathor.com.br/extintores/extintor-abc-6-kg | G16: 40.863.901/0001-21 | H16: (11) 4395-1324 | I16: UN | J16: 179.61 | K16: 149 | L16: =J16+K16 -> 328.61
A17: EXTINCENTRO | C17: https://www.extincentro.com.br/aa2puao0k-extintor-abc-04-kg-2a20bc-1-unid | G17: 25.923.913/0001-00 | H17: (37) 2101-0665 | I17: UN | J17: 193 | K17: 31.67 | L17: =J17+K17 -> 224.67
C23: RESPONSÁVEL TÉCNICO: | F23: =DADOS!D16 -> ALOISIO CAETANO FERREIRA
F24: =DADOS!D18 -> CREA - MG 97.132/D

Sheet SINAPI
B1: SINAPI ABRIL 2024
A2: CÓDIGO | B2: DESCRIÇÃO | C2: UNIDADE | D2: PREÇO
A3: 97141 | B3: ASSENTAMENTO DE TUBO DE FERRO FUNDIDO PARA REDE DE ÁGUA, DN 80 MM, JUNTA ELÁSTICA, INSTALADO EM LOCAL COM NÍVEL ALTO DE INTERFERÊNCIAS (NÃO INCLUI FORNECIMENTO). AF_11/2017 | C3: M | D3: 8.03
A4: 97142 | B4: ASSENTAMENTO DE TUBO DE FERRO FUNDIDO PARA REDE DE ÁGUA, DN 100 MM, JUNTA ELÁSTICA, INSTALADO EM LOCAL COM NÍVEL ALTO DE INTERFERÊNCIAS (NÃO INCLUI FORNECIMENTO). AF_11/2017 | C4: M | D4: 8.9
A5: 97143 | B5: ASSENTAMENTO DE TUBO DE FERRO FUNDIDO PARA REDE DE ÁGUA, DN 150 MM, JUNTA ELÁSTICA, INSTALADO EM LOCAL COM NÍVEL ALTO DE INTERFERÊNCIAS (NÃO INCLUI FORNECIMENTO). AF_11/2017 | C5: M | D5: 11.08
A6: 97144 | B6: ASSENTAMENTO DE TUBO DE FERRO FUNDIDO PARA REDE DE ÁGUA, DN 200 MM, JUNTA ELÁSTICA, INSTALADO EM LOCAL COM NÍVEL ALTO DE INTERFERÊNCIAS (NÃO INCLUI FORNECIMENTO). AF_11/2017 | C6: M | D6: 13.24
A7: 97145 | B7: ASSENTAMENTO DE TUBO DE FERRO FUNDIDO PARA REDE DE ÁGUA, DN 250 MM, JUNTA ELÁSTICA, INSTALADO EM LOCAL COM NÍVEL ALTO DE INTERFERÊNCIAS (NÃO INCLUI FORNECIMENTO). AF_11/2017 | C7: M | D7: 15.44
A8: 97146 | B8: ASSENTAMENTO DE TUBO DE FERRO FUNDIDO PARA REDE DE ÁGUA, DN 300 MM, JUNTA ELÁSTICA, INSTALADO EM LOCAL COM NÍVEL ALTO DE INTERFERÊNCIAS (NÃO INCLUI FORNECIMENTO). AF_11/2017 | C8: M | D8: 17.61
A9: 97147 | B9: ASSENTAMENTO DE TUBO DE FERRO FUNDIDO PARA REDE DE ÁGUA, DN 350 MM, JUNTA ELÁSTICA, INSTALADO EM LOCAL COM NÍVEL ALTO DE INTERFERÊNCIAS (NÃO INCLUI FORNECIMENTO). AF_11/2017 | C9: M | D9: 19.82
A10: 97148 | B10: ASSENTAMENTO DE TUBO DE FERRO FUNDIDO PARA REDE DE ÁGUA, DN 400 MM, JUNTA ELÁSTICA, INSTALADO EM LOCAL COM NÍVEL ALTO DE INTERFERÊNCIAS (NÃO INCLUI FORNECIMENTO). AF_11/2017 | C10: M | D10: 22.02
A11: 97149 | B11: ASSENTAMENTO DE TUBO DE FERRO FUNDIDO PARA REDE DE ÁGUA, DN 450 MM, JUNTA ELÁSTICA, INSTALADO EM LOCAL COM NÍVEL ALTO DE INTERFERÊNCIAS (NÃO INCLUI FORNECIMENTO). AF_11/2017 | C11: M | D11: 24.23
A12: 97150 | B12: ASSENTAMENTO DE TUBO DE FERRO FUNDIDO PARA REDE DE ÁGUA, DN 500 MM, JUNTA ELÁSTICA, INSTALADO EM LOCAL COM NÍVEL ALTO DE INTERFERÊNCIAS (NÃO INCLUI FORNECIMENTO). AF_11/2017 | C12: M | D12: 30.86
A13: 97151 | B13: ASSENTAMENTO DE TUBO DE FERRO FUNDIDO PARA REDE DE ÁGUA, DN 600 MM, JUNTA ELÁSTICA, INSTALADO EM LOCAL COM NÍVEL ALTO DE INTERFERÊNCIAS (NÃO INCLUI FORNECIMENTO). AF_11/2017 | C13: M | D13: 35.92
A14: 97152 | B14: ASSENTAMENTO DE TUBO DE FERRO FUNDIDO PARA REDE DE ÁGUA, DN 700 MM, JUNTA ELÁSTICA, INSTALADO EM LOCAL COM NÍVEL ALTO DE INTERFERÊNCIAS (NÃO INCLUI FORNECIMENTO). AF_11/2017 | C14: M | D14: 40.76
A15: 97153 | B15: ASSENTAMENTO DE TUBO DE FERRO FUNDIDO PARA REDE DE ÁGUA, DN 800 MM, JUNTA ELÁSTICA, INSTALADO EM LOCAL COM NÍVEL ALTO DE INTERFERÊNCIAS (NÃO INCLUI FORNECIMENTO). AF_11/2017 | C15: M | D15: 45.72
A16: 97154 | B16: ASSENTAMENTO DE TUBO DE FERRO FUNDIDO PARA REDE DE ÁGUA, DN 900 MM, JUNTA ELÁSTICA, INSTALADO EM LOCAL COM NÍVEL ALTO DE INTERFERÊNCIAS (NÃO INCLUI FORNECIMENTO). AF_11/2017 | C16: M | D16: 50.71
A17: 97155 | B17: ASSENTAMENTO DE TUBO DE FERRO FUNDIDO PARA REDE DE ÁGUA, DN 1000 MM, JUNTA ELÁSTICA, INSTALADO EM LOCAL COM NÍVEL ALTO DE INTERFERÊNCIAS (NÃO INCLUI FORNECIMENTO). AF_11/2017 | C17: M | D17: 55.72
A18: 97156 | B18: ASSENTAMENTO DE TUBO DE FERRO FUNDIDO PARA REDE DE ÁGUA, DN 1200 MM, JUNTA ELÁSTICA, INSTALADO EM LOCAL COM NÍVEL ALTO DE INTERFERÊNCIAS (NÃO INCLUI FORNECIMENTO). AF_11/2017 | C18: M | D18: 66.11
A19: 97157 | B19: ASSENTAMENTO DE TUBO DE FERRO FUNDIDO PARA REDE DE ÁGUA, DN 80 MM, JUNTA ELÁSTICA, INSTALADO EM LOCAL COM NÍVEL BAIXO DE INTERFERÊNCIAS (NÃO INCLUI FORNECIMENTO). AF_11/2017 | C19: M | D19: 4.83
A20: 97158 | B20: ASSENTAMENTO DE TUBO DE FERRO FUNDIDO PARA REDE DE ÁGUA, DN 100 MM, JUNTA ELÁSTICA, INSTALADO EM LOCAL COM NÍVEL BAIXO DE INTERFERÊNCIAS (NÃO INCLUI FORNECIMENTO). AF_11/2017 | C20: M | D20: 5.37
A21: 97159 | B21: ASSENTAMENTO DE TUBO DE FERRO FUNDIDO PARA REDE DE ÁGUA, DN 150 MM, JUNTA ELÁSTICA, INSTALADO EM LOCAL COM NÍVEL BAIXO DE INTERFERÊNCIAS (NÃO INCLUI FORNECIMENTO). AF_11/2017 | C21: M | D21: 6.69
A22: 97160 | B22: ASSENTAMENTO DE TUBO DE FERRO FUNDIDO PARA REDE DE ÁGUA, DN 200 MM, JUNTA ELÁSTICA, INSTALADO EM LOCAL COM NÍVEL BAIXO DE INTERFERÊNCIAS (NÃO INCLUI FORNECIMENTO). AF_11/2017 | C22: M | D22: 7.99
A23: 97161 | B23: ASSENTAMENTO DE TUBO DE FERRO FUNDIDO PARA REDE DE ÁGUA, DN 250 MM, JUNTA ELÁSTICA, INSTALADO EM LOCAL COM NÍVEL BAIXO DE INTERFERÊNCIAS (NÃO INCLUI FORNECIMENTO). AF_11/2017 | C23: M | D23: 9.35
A24: 97162 | B24: ASSENTAMENTO DE TUBO DE FERRO FUNDIDO PARA REDE DE ÁGUA, DN 300 MM, JUNTA ELÁSTICA, INSTALADO EM LOCAL COM NÍVEL BAIXO DE INTERFERÊNCIAS (NÃO INCLUI FORNECIMENTO). AF_11/2017 | C24: M | D24: 10.67
A25: 97163 | B25: ASSENTAMENTO DE TUBO DE FERRO FUNDIDO PARA REDE DE ÁGUA, DN 350 MM, JUNTA ELÁSTICA, INSTALADO EM LOCAL COM NÍVEL BAIXO DE INTERFERÊNCIAS (NÃO INCLUI FORNECIMENTO). AF_11/2017 | C25: M | D25: 12.01
A26: 97164 | B26: ASSENTAMENTO DE TUBO DE FERRO FUNDIDO PARA REDE DE ÁGUA, DN 400 MM, JUNTA ELÁSTICA, INSTALADO EM LOCAL COM NÍVEL BAIXO DE INTERFERÊNCIAS (NÃO INCLUI FORNECIMENTO). AF_11/2017 | C26: M | D26: 13.35
A27: 97165 | B27: ASSENTAMENTO DE TUBO DE FERRO FUNDIDO PARA REDE DE ÁGUA, DN 450 MM, JUNTA ELÁSTICA, INSTALADO EM LOCAL COM NÍVEL BAIXO DE INTERFERÊNCIAS (NÃO INCLUI FORNECIMENTO). AF_11/2017 | C27: M | D27: 14.72
A28: 97166 | B28: ASSENTAMENTO DE TUBO DE FERRO FUNDIDO PARA REDE DE ÁGUA, DN 500 MM, JUNTA ELÁSTICA, INSTALADO EM LOCAL COM NÍVEL BAIXO DE INTERFERÊNCIAS (NÃO INCLUI FORNECIMENTO). AF_11/2017 | C28: M | D28: 18.74
A29: 97167 | B29: ASSENTAMENTO DE TUBO DE FERRO FUNDIDO PARA REDE DE ÁGUA, DN 600 MM, JUNTA ELÁSTICA, INSTALADO EM LOCAL COM NÍVEL BAIXO DE INTERFERÊNCIAS (NÃO INCLUI FORNECIMENTO). AF_11/2017 | C29: M | D29: 21.84
A30: 97168 | B30: ASSENTAMENTO DE TUBO DE FERRO FUNDIDO PARA REDE DE ÁGUA, DN 700 MM, JUNTA ELÁSTICA, INSTALADO EM LOCAL COM NÍVEL BAIXO DE INTERFERÊNCIAS (NÃO INCLUI FORNECIMENTO). AF_11/2017 | C30: M | D30: 24.72
A31: 97169 | B31: ASSENTAMENTO DE TUBO DE FERRO FUNDIDO PARA REDE DE ÁGUA, DN 800 MM, JUNTA ELÁSTICA, INSTALADO EM LOCAL COM NÍVEL BAIXO DE INTERFERÊNCIAS (NÃO INCLUI FORNECIMENTO). AF_11/2017 | C31: M | D31: 27.74
A32: 97170 | B32: ASSENTAMENTO DE TUBO DE FERRO FUNDIDO PARA REDE DE ÁGUA, DN 900 MM, JUNTA ELÁSTICA, INSTALADO EM LOCAL COM NÍVEL BAIXO DE INTERFERÊNCIAS (NÃO INCLUI FORNECIMENTO). AF_11/2017 | C32: M | D32: 30.77
A33: 97171 | B33: ASSENTAMENTO DE TUBO DE FERRO FUNDIDO PARA REDE DE ÁGUA, DN 1000 MM, JUNTA ELÁSTICA, INSTALADO EM LOCAL COM NÍVEL BAIXO DE INTERFERÊNCIAS (NÃO INCLUI FORNECIMENTO). AF_11/2017 | C33: M | D33: 33.83
A34: 97172 | B34: ASSENTAMENTO DE TUBO DE FERRO FUNDIDO PARA REDE DE ÁGUA, DN 1200 MM, JUNTA ELÁSTICA, INSTALADO EM LOCAL COM NÍVEL BAIXO DE INTERFERÊNCIAS (NÃO INCLUI FORNECIMENTO). AF_11/2017 | C34: M | D34: 40.3
A35: 97173 | B35: ASSENTAMENTO DE TUBO DE AÇO CARBONO PARA REDE DE ÁGUA, DN 600 MM (24"), JUNTA SOLDADA, INSTALADO EM LOCAL COM NÍVEL ALTO DE INTERFERÊNCIAS (NÃO INCLUI FORNECIMENTO). AF_11/2017 | C35: M | D35: 41.09
A36: 97174 | B36: ASSENTAMENTO DE TUBO DE AÇO CARBONO PARA REDE DE ÁGUA, DN 700 MM (28"), JUNTA SOLDADA, INSTALADO EM LOCAL COM NÍVEL ALTO DE INTERFERÊNCIAS (NÃO INCLUI FORNECIMENTO). AF_11/2017 | C36: M | D36: 47.65
A37: 97175 | B37: ASSENTAMENTO DE TUBO DE AÇO CARBONO PARA REDE DE ÁGUA, DN 800 MM (32"), JUNTA SOLDADA, INSTALADO EM LOCAL COM NÍVEL ALTO DE INTERFERÊNCIAS (NÃO INCLUI FORNECIMENTO). AF_11/2017 | C37: M | D37: 54.2
A38: 97176 | B38: ASSENTAMENTO DE TUBO DE AÇO CARBONO PARA REDE DE ÁGUA, DN 900 MM (36"), JUNTA SOLDADA, INSTALADO EM LOCAL COM NÍVEL ALTO DE INTERFERÊNCIAS (NÃO INCLUI FORNECIMENTO). AF_11/2017 | C38: M | D38: 60.76
A39: 97177 | B39: ASSENTAMENTO DE TUBO DE AÇO CARBONO PARA REDE DE ÁGUA, DN 1000 MM (40") OU DN 1100 MM (44"), JUNTA SOLDADA, INSTALADO EM LOCAL COM NÍVEL ALTO DE INTERFERÊNCIAS (NÃO INCLUI FORNECIMENTO). AF_11/2017 | C39: M | D39: 73.88
A40: 97178 | B40: ASSENTAMENTO DE TUBO DE AÇO CARBONO PARA REDE DE ÁGUA, DN 1200 MM (48") OU DN 1300 MM (52"), JUNTA SOLDADA, INSTALADO EM LOCAL COM NÍVEL ALTO DE INTERFERÊNCIAS (NÃO INCLUI FORNECIMENTO). AF_11/2017 | C40: M | D40: 87.01
A41: 97179 | B41: ASSENTAMENTO DE TUBO DE AÇO CARBONO PARA REDE DE ÁGUA, DN 1400 MM (56'') OU DN 1500 MM (60"), JUNTA SOLDADA, INSTALADO EM LOCAL COM NÍVEL ALTO DE INTERFERÊNCIAS (NÃO INCLUI FORNECIMENTO). AF_11/2017 | C41: M | D41: 100.13
A42: 97180 | B42: ASSENTAMENTO DE TUBO DE AÇO CARBONO PARA REDE DE ÁGUA, DN 1600 MM (64") OU DN 1700 MM (68"), JUNTA SOLDADA, INSTALADO EM LOCAL COM NÍVEL ALTO DE INTERFERÊNCIAS (NÃO INCLUI FORNECIMENTO). AF_11/2017 | C42: M | D42: 113.25
A43: 97181 | B43: ASSENTAMENTO DE TUBO DE AÇO CARBONO PARA REDE DE ÁGUA, DN 1800 MM (72") OU DN 1900 MM (76"), JUNTA SOLDADA, INSTALADO EM LOCAL COM NÍVEL ALTO DE INTERFERÊNCIAS (NÃO INCLUI FORNECIMENTO). AF_11/2017 | C43: M | D43: 130.83
A44: 97182 | B44: ASSENTAMENTO DE TUBO DE AÇO CARBONO PARA REDE DE ÁGUA, DN 2000 MM (80") OU DN 2100 MM (84"), JUNTA SOLDADA, INSTALADO EM LOCAL COM NÍVEL ALTO DE INTERFERÊNCIAS (NÃO INCLUI FORNECIMENTO). AF_11/2017 | C44: M | D44: 144.42
A45: 97183 | B45: ASSENTAMENTO DE TUBO DE AÇO CARBONO PARA REDE DE ÁGUA, DN 600 MM (24"), JUNTA SOLDADA, INSTALADO EM LOCAL COM NÍVEL BAIXO DE INTERFERÊNCIAS (NÃO INCLUI FORNECIMENTO). AF_11/2017 | C45: M | D45: 34.06
A46: 97184 | B46: ASSENTAMENTO DE TUBO DE AÇO CARBONO PARA REDE DE ÁGUA, DN 700 MM (28"), JUNTA SOLDADA, INSTALADO EM LOCAL COM NÍVEL BAIXO DE INTERFERÊNCIAS (NÃO INCLUI FORNECIMENTO). AF_11/2017 | C46: M | D46: 39.57
A47: 97185 | B47: ASSENTAMENTO DE TUBO DE AÇO CARBONO PARA REDE DE ÁGUA, DN 800 MM (32"), JUNTA SOLDADA, INSTALADO EM LOCAL COM NÍVEL BAIXO DE INTERFERÊNCIAS (NÃO INCLUI FORNECIMENTO). AF_11/2017 | C47: M | D47: 45.08
A48: 97186 | B48: ASSENTAMENTO DE TUBO DE AÇO CARBONO PARA REDE DE ÁGUA, DN 900 MM (36"), JUNTA SOLDADA, INSTALADO EM LOCAL COM NÍVEL BAIXO DE INTERFERÊNCIAS (NÃO INCLUI FORNECIMENTO). AF_11/2017 | C48: M | D48: 50.58
A49: 97187 | B49: ASSENTAMENTO DE TUBO DE AÇO CARBONO PARA REDE DE ÁGUA, DN 1000 MM (40 ) OU DN 1100 MM (44 ), JUNTA SOLDADA, INSTALADO EM LOCAL COM NÍVEL BAIXO DE INTERFERÊNCIAS (NÃO INCLUI FORNECIMENTO). AF_11/2017 | C49: M | D49: 61.59
A50: 97188 | B50: ASSENTAMENTO DE TUBO DE AÇO CARBONO PARA REDE DE ÁGUA, DN 1200 MM (48") OU DN 1300 MM (52"), JUNTA SOLDADA, INSTALADO EM LOCAL COM NÍVEL BAIXO DE INTERFERÊNCIAS (NÃO INCLUI FORNECIMENTO). AF_11/2017 | C50: M | D50: 72.61
A51: 97189 | B51: ASSENTAMENTO DE TUBO DE AÇO CARBONO PARA REDE DE ÁGUA, DN 1400 MM (56'') OU DN 1500 MM (60"), JUNTA SOLDADA, INSTALADO EM LOCAL COM NÍVEL BAIXO DE INTERFERÊNCIAS (NÃO INCLUI FORNECIMENTO). AF_11/2017 | C51: M | D51: 83.62
A52: 97190 | B52: ASSENTAMENTO DE TUBO DE AÇO CARBONO PARA REDE DE ÁGUA, DN 1600 MM (64") OU DN 1700 MM (68"), JUNTA SOLDADA, INSTALADO EM LOCAL COM NÍVEL BAIXO DE INTERFERÊNCIAS (NÃO INCLUI FORNECIMENTO). AF_11/2017 | C52: M | D52: 94.62
A53: 97191 | B53: ASSENTAMENTO DE TUBO DE AÇO CARBONO PARA REDE DE ÁGUA, DN 1800 MM (72") OU DN 1900 MM (76"), JUNTA SOLDADA, INSTALADO EM LOCAL COM NÍVEL BAIXO DE INTERFERÊNCIAS (NÃO INCLUI FORNECIMENTO). AF_11/2017 | C53: M | D53: 108.89
A54: 97192 | B54: ASSENTAMENTO DE TUBO DE AÇO CARBONO PARA REDE DE ÁGUA, DN 2000 MM (80") OU DN 2100 MM (84"), JUNTA SOLDADA, INSTALADO EM LOCAL COM NÍVEL BAIXO DE INTERFERÊNCIAS (NÃO INCLUI FORNECIMENTO). AF_11/2017 | C54: M | D54: 120.25
A55: 90694 | B55: TUBO DE PVC PARA REDE COLETORA DE ESGOTO DE PAREDE MACIÇA, DN 100 MM, JUNTA ELÁSTICA - FORNECIMENTO E ASSENTAMENTO. AF_01/2021 | C55: M | D55: 45.51
A56: 90695 | B56: TUBO DE PVC PARA REDE COLETORA DE ESGOTO DE PAREDE MACIÇA, DN 150 MM, JUNTA ELÁSTICA - FORNECIMENTO E ASSENTAMENTO. AF_01/2021 | C56: M | D56: 86.89
A57: 90696 | B57: TUBO DE PVC PARA REDE COLETORA DE ESGOTO DE PAREDE MACIÇA, DN 200 MM, JUNTA ELÁSTICA - FORNECIMENTO E ASSENTAMENTO. AF_01/2021 | C57: M | D57: 145.52
A58: 90697 | B58: TUBO DE PVC PARA REDE COLETORA DE ESGOTO DE PAREDE MACIÇA, DN 250 MM, JUNTA ELÁSTICA - FORNECIMENTO E ASSENTAMENTO. AF_01/2021 | C58: M | D58: 226.1
A59: 90698 | B59: TUBO DE PVC PARA REDE COLETORA DE ESGOTO DE PAREDE MACIÇA, DN 300 MM, JUNTA ELÁSTICA, FORNECIMENTO E ASSENTAMENTO. AF_01/2021 | C59: M | D59: 345.97
A60: 90699 | B60: TUBO DE PVC PARA REDE COLETORA DE ESGOTO DE PAREDE MACIÇA, DN 350 MM, JUNTA ELÁSTICA - FORNECIMENTO E ASSENTAMENTO. AF_01/2021 | C60: M | D60: 487.25
A61: 90700 | B61: TUBO DE PVC PARA REDE COLETORA DE ESGOTO DE PAREDE MACIÇA, DN 400 MM, JUNTA ELÁSTICA FORNECIMENTO E ASSENTAMENTO. AF_01/2021 | C61: M | D61: 569.5
A62: 90701 | B62: TUBO DE PVC CORRUGADO DE DUPLA PAREDE PARA REDE COLETORA DE ESGOTO, DN 150 MM, JUNTA ELÁSTICA - FORNECIMENTO E ASSENTAMENTO. AF_01/2021 | C62: M | D62: 68.08
A63: 90702 | B63: TUBO DE PVC CORRUGADO DE DUPLA PAREDE PARA REDE COLETORA DE ESGOTO, DN 200 MM, JUNTA ELÁSTICA - FORNECIMENTO E ASSENTAMENTO. AF_01/2021 | C63: M | D63: 113.09
A64: 90703 | B64: TUBO DE PVC CORRUGADO DE DUPLA PAREDE PARA REDE COLETORA DE ESGOTO, DN 250 MM, JUNTA ELÁSTICA - FORNECIMENTO E ASSENTAMENTO. AF_01/2021 | C64: M | D64: 177.58
A65: 90704 | B65: TUBO DE PVC CORRUGADO DE DUPLA PAREDE PARA REDE COLETORA DE ESGOTO, DN 300 MM, JUNTA ELÁSTICA - FORNECIMENTO E ASSENTAMENTO. AF_01/2021 | C65: M | D65: 264.43
A66: 90705 | B66: TUBO DE PVC CORRUGADO DE DUPLA PAREDE PARA REDE COLETORA DE ESGOTO, DN 350 MM, JUNTA ELÁSTICA - FORNECIMENTO E ASSENTAMENTO. AF_01/2021 | C66: M | D66: 345.61
A67: 90706 | B67: TUBO DE PVC CORRUGADO DE DUPLA PAREDE PARA REDE COLETORA DE ESGOTO, DN 400 MM, JUNTA ELÁSTICA - FORNECIMENTO E ASSENTAMENTO. AF_01/2021 | C67: M | D67: 458.8
A68: 90708 | B68: TUBO DE PEAD CORRUGADO DE DUPLA PAREDE PARA REDE COLETORA DE ESGOTO, DN 600 MM, JUNTA ELÁSTICA INTEGRADA - FORNECIMENTO E ASSENTAMENTO. AF_01/2021 | C68: M | D68: 795.1
A69: 90724 | B69: JUNTA ARGAMASSADA ENTRE TUBO DN 100 MM E O POÇO DE VISITA/ CAIXA DE CONCRETO OU ALVENARIA EM REDES DE ESGOTO. AF_01/2021 | C69: UN | D69: 20.65
A70: 90725 | B70: JUNTA ARGAMASSADA ENTRE TUBO DN 150 MM E O POÇO DE VISITA/ CAIXA DE CONCRETO OU ALVENARIA EM REDES DE ESGOTO. AF_01/2021 | C70: UN | D70: 25.45
A71: 90726 | B71: JUNTA ARGAMASSADA ENTRE TUBO DN 200 MM E O POÇO/ CAIXA DE CONCRETO OU ALVENARIA EM REDES DE ESGOTO. AF_01/2021 | C71: UN | D71: 30.3
A72: 90727 | B72: JUNTA ARGAMASSADA ENTRE TUBO DN 250 MM E O POÇO DE VISITA/ CAIXA DE CONCRETO OU ALVENARIA EM REDES DE ESGOTO. AF_01/2021 | C72: UN | D72: 35.09
A73: 90728 | B73: JUNTA ARGAMASSADA ENTRE TUBO DN 300 MM E O POÇO DE VISITA/ CAIXA DE CONCRETO OU ALVENARIA EM REDES DE ESGOTO. AF_01/2021 | C73: UN | D73: 39.88
A74: 90729 | B74: JUNTA ARGAMASSADA ENTRE TUBO DN 350 MM E O POÇO DE VISITA/ CAIXA DE CONCRETO OU ALVENARIA EM REDES DE ESGOTO. AF_01/2021 | C74: UN | D74: 44.67
A75: 90730 | B75: JUNTA ARGAMASSADA ENTRE TUBO DN 400 MM E O POÇO DE VISITA/ CAIXA DE CONCRETO OU ALVENARIA EM REDES DE ESGOTO. AF_01/2021 | C75: UN | D75: 49.46
A76: 90731 | B76: JUNTA ARGAMASSADA ENTRE TUBO DN 450 MM E O POÇO DE VISITA/ CAIXA DE CONCRETO OU ALVENARIA EM REDES DE ESGOTO. AF_01/2021 | C76: UN | D76: 54.25
A77: 90732 | B77: JUNTA ARGAMASSADA ENTRE TUBO DN 600 MM E O POÇO DE VISITA/ CAIXA DE CONCRETO OU ALVENARIA EM REDES DE ESGOTO. AF_01/2021 | C77: UN | D77: 68.64
A78: 90733 | B78: ASSENTAMENTO DE TUBO DE PVC PARA REDE COLETORA DE ESGOTO DE PAREDE MACIÇA, DN 100 MM, JUNTA ELÁSTICA (NÃO INCLUI FORNECIMENTO). AF_01/2021 | C78: M | D78: 2.88
A79: 90734 | B79: ASSENTAMENTO DE TUBO DE PVC PARA REDE COLETORA DE ESGOTO DE PAREDE MACIÇA, DN 150 MM, JUNTA ELÁSTICA, (NÃO INCLUI FORNECIMENTO). AF_01/2021 | C79: M | D79: 3.41
A80: 90735 | B80: ASSENTAMENTO DE TUBO DE PVC PARA REDE COLETORA DE ESGOTO DE PAREDE MACIÇA, DN 200 MM, JUNTA ELÁSTICA (NÃO INCLUI FORNECIMENTO). AF_01/2021 | C80: M | D80: 3.94
A81: 90736 | B81: ASSENTAMENTO DE TUBO DE PVC PARA REDE COLETORA DE ESGOTO DE PAREDE MACIÇA, DN 250 MM, JUNTA ELÁSTICA (NÃO INCLUI FORNECIMENTO). AF_01/2021 | C81: M | D81: 4.47
A82: 90737 | B82: ASSENTAMENTO DE TUBO DE PVC PARA REDE COLETORA DE ESGOTO DE PAREDE MACIÇA, DN 300 MM, JUNTA ELÁSTICA (NÃO INCLUI FORNECIMENTO). AF_01/2021 | C82: M | D82: 5.01
A83: 90738 | B83: ASSENTAMENTO DE TUBO DE PVC PARA REDE COLETORA DE ESGOTO DE PAREDE MACIÇA, DN 350 MM, JUNTA ELÁSTICA (NÃO INCLUI FORNECIMENTO). AF_01/2021 | C83: M | D83: 5.54
A84: 90739 | B84: ASSENTAMENTO DE TUBO DE PVC PARA REDE COLETORA DE ESGOTO DE PAREDE MACIÇA, DN 400 MM, JUNTA ELÁSTICA (NÃO INCLUI FORNECIMENTO). AF_01/2021 | C84: M | D84: 8.51
A85: 90740 | B85: ASSENTAMENTO DE TUBO DE PVC CORRUGADO DE DUPLA PAREDE PARA REDE COLETORA DE ESGOTO, DN 150 MM, JUNTA ELÁSTICA (NÃO INCLUI FORNECIMENTO). AF_01/2021 | C85: M | D85: 3.8
A86: 90741 | B86: ASSENTAMENTO DE TUBO DE PVC CORRUGADO DE DUPLA PAREDE PARA REDE COLETORA DE ESGOTO, DN 200 MM, JUNTA ELÁSTICA (NÃO INCLUI FORNECIMENTO). AF_01/2021 | C86: M | D86: 4.33
A87: 90742 | B87: ASSENTAMENTO DE TUBO DE PVC CORRUGADO DE DUPLA PAREDE PARA REDE COLETORA DE ESGOTO, DN 250 MM, JUNTA ELÁSTICA (NÃO INCLUI FORNECIMENTO). AF_01/2021 | C87: M | D87: 4.86
A88: 90743 | B88: ASSENTAMENTO DE TUBO DE PVC CORRUGADO DE DUPLA PAREDE PARA REDE COLETORA DE ESGOTO, DN 300 MM, JUNTA ELÁSTICA (NÃO INCLUI FORNECIMENTO). AF_01/2021 | C88: M | D88: 5.4
A89: 90744 | B89: ASSENTAMENTO DE TUBO DE PVC CORRUGADO DE DUPLA PAREDE PARA REDE COLETORA DE ESGOTO, DN 350 MM, JUNTA ELÁSTICA (NÃO INCLUI FORNECIMENTO). AF_01/2021 | C89: M | D89: 5.93
A90: 90745 | B90: ASSENTAMENTO DE TUBO DE PVC CORRUGADO DE DUPLA PAREDE PARA REDE COLETORA DE ESGOTO, DN 400 MM, JUNTA ELÁSTICA (NÃO INCLUI FORNECIMENTO). AF_01/2021 | C90: M | D90: 9.51
A91: 90746 | B91: ASSENTAMENTO DE TUBO DE PEAD CORRUGADO DE DUPLA PAREDE PARA REDE COLETORA DE ESGOTO, DN 450 MM, JUNTA ELÁSTICA INTEGRADA (NÃO INCLUI FORNECIMENTO). AF_01/2021 | C91: M | D91: 3.11
A92: 90747 | B92: ASSENTAMENTO DE TUBO DE PEAD CORRUGADO DE DUPLA PAREDE PARA REDE COLETORA DE ESGOTO, DN 600 MM, JUNTA ELÁSTICA INTEGRADA (NÃO INCLUI FORNECIMENTO). AF_01/2021 | C92: M | D92: 15.97
A93: 94869 | B93: TUBO DE PEAD CORRUGADO DE DUPLA PAREDE PARA REDE COLETORA DE ESGOTO, DN 250 MM, JUNTA ELÁSTICA INTEGRADA - FORNECIMENTO E ASSENTAMENTO. AF_01/2021 | C93: M | D93: 140.2
A94: 94870 | B94: ASSENTAMENTO DE TUBO DE PEAD CORRUGADO DE DUPLA PAREDE PARA REDE COLETORA DE ESGOTO, DN 250 MM, JUNTA ELÁSTICA INTEGRADA (NÃO INCLUI FORNECIMENTO). AF_01/2021 | C94: M | D94: 1.68
A95: 94871 | B95: TUBO DE PEAD CORRUGADO DE DUPLA PAREDE PARA REDE COLETORA DE ESGOTO, DN 300 MM, JUNTA ELÁSTICA INTEGRADA - FORNECIMENTO E ASSENTAMENTO. AF_01/2021 | C95: M | D95: 219.36
A96: 94872 | B96: ASSENTAMENTO DE TUBO DE PEAD CORRUGADO DE DUPLA PAREDE PARA REDE COLETORA DE ESGOTO, DN 300 MM, JUNTA ELÁSTICA INTEGRADA (NÃO INCLUI FORNECIMENTO). AF_01/2021 | C96: M | D96: 2.34
A97: 94875 | B97: TUBO DE PEAD CORRUGADO DE DUPLA PAREDE PARA REDE COLETORA DE ESGOTO, DN 800 MM, JUNTA ELÁSTICA INTEGRADA - FORNECIMENTO E ASSENTAMENTO. AF_01/2021 | C97: M | D97: 1291.25
A98: 94876 | B98: ASSENTAMENTO DE TUBO DE PEAD CORRUGADO DE DUPLA PAREDE PARA REDE COLETORA DE ESGOTO, DN 800 MM, JUNTA ELÁSTICA INTEGRADA (NÃO INCLUI FORNECIMENTO). AF_01/2021 | C98: M | D98: 26.72
A99: 94878 | B99: ASSENTAMENTO DE TUBO DE PEAD CORRUGADO DE DUPLA PAREDE PARA REDE COLETORA DE ESGOTO, DN 900 MM, JUNTA ELÁSTICA INTEGRADA (NÃO INCLUI FORNECIMENTO). AF_01/2021 | C99: M | D99: 30.91
A100: 94879 | B100: TUBO DE PEAD CORRUGADO DE DUPLA PAREDE PARA REDE COLETORA DE ESGOTO, DN 1000 MM, JUNTA ELÁSTICA INTEGRADA - FORNECIMENTO E ASSENTAMENTO. AF_01/2021 | C100: M | D100: 1987.81
A101: 94880 | B101: ASSENTAMENTO DE TUBO DE PEAD CORRUGADO DE DUPLA PAREDE PARA REDE COLETORA DE ESGOTO, DN 1000 MM, JUNTA ELÁSTICA INTEGRADA (NÃO INCLUI FORNECIMENTO). AF_01/2021 | C101: M | D101: 39.82
A102: 94881 | B102: TUBO DE PEAD CORRUGADO DE DUPLA PAREDE PARA REDE COLETORA DE ESGOTO, DN 1200 MM, JUNTA ELÁSTICA INTEGRADA - FORNECIMENTO E ASSENTAMENTO. AF_01/2021 | C102: M | D102: 2738.53
A103: 94882 | B103: ASSENTAMENTO DE TUBO DE PEAD CORRUGADO DE DUPLA PAREDE PARA REDE COLETORA DE ESGOTO, DN 1200 MM, JUNTA ELÁSTICA INTEGRADA (NÃO INCLUI FORNECIMENTO). AF_01/2021 | C103: M | D103: 46.29
A104: 94884 | B104: ASSENTAMENTO DE TUBO DE PEAD CORRUGADO DE DUPLA PAREDE PARA REDE COLETORA DE ESGOTO, DN 1500 MM, JUNTA ELÁSTICA INTEGRADA (NÃO INCLUI FORNECIMENTO). AF_01/2021 | C104: M | D104: 59.42
A105: 97121 | B105: ASSENTAMENTO DE TUBO DE PVC PBA PARA REDE DE ÁGUA, DN 50 MM, JUNTA ELÁSTICA INTEGRADA, INSTALADO EM LOCAL COM NÍVEL ALTO DE INTERFERÊNCIAS (NÃO INCLUI FORNECIMENTO). AF_11/2017 | C105: M | D105: 1.72
A106: 97122 | B106: ASSENTAMENTO DE TUBO DE PVC PBA PARA REDE DE ÁGUA, DN 75 MM, JUNTA ELÁSTICA INTEGRADA, INSTALADO EM LOCAL COM NÍVEL ALTO DE INTERFERÊNCIAS (NÃO INCLUI FORNECIMENTO). AF_11/2017 | C106: M | D106: 2.4
A107: 97123 | B107: ASSENTAMENTO DE TUBO DE PVC PBA PARA REDE DE ÁGUA, DN 100 MM, JUNTA ELÁSTICA INTEGRADA, INSTALADO EM LOCAL COM NÍVEL ALTO DE INTERFERÊNCIAS (NÃO INCLUI FORNECIMENTO). AF_11/2017 | C107: M | D107: 3.04
A108: 97124 | B108: ASSENTAMENTO DE TUBO DE PVC PBA PARA REDE DE ÁGUA, DN 50 MM, JUNTA ELÁSTICA INTEGRADA, INSTALADO EM LOCAL COM NÍVEL BAIXO DE INTERFERÊNCIAS (NÃO INCLUI FORNECIMENTO). AF_11/2017 | C108: M | D108: 0.76
A109: 97125 | B109: ASSENTAMENTO DE TUBO DE PVC PBA PARA REDE DE ÁGUA, DN 75 MM, JUNTA ELÁSTICA INTEGRADA, INSTALADO EM LOCAL COM NÍVEL BAIXO DE INTERFERÊNCIAS (NÃO INCLUI FORNECIMENTO). AF_11/2017 | C109: M | D109: 1.09
A110: 97126 | B110: ASSENTAMENTO DE TUBO DE PVC PBA PARA REDE DE ÁGUA, DN 100 MM, JUNTA ELÁSTICA INTEGRADA, INSTALADO EM LOCAL COM NÍVEL BAIXO DE INTERFERÊNCIAS (NÃO INCLUI FORNECIMENTO). AF_11/2017 | C110: M | D110: 1.39
A111: 102264 | B111: TUBO DE PVC BRANCO PARA REDE COLETORA DE ESGOTO CONDOMINIAL DE PAREDE MACIÇA, DN 100 MM, JUNTA ELÁSTICA - FORNECIMENTO E ASSENTAMENTO. AF_01/2021 | C111: M | D111: 19.41
A112: 102265 | B112: JUNTA ARGAMASSADA ENTRE TUBO DN 800 MM E O POÇO DE VISITA/ CAIXA DE CONCRETO OU ALVENARIA EM REDES DE ESGOTO. AF_01/2021 | C112: UN | D112: 87.8
A113: 102266 | B113: JUNTA ARGAMASSADA ENTRE TUBO DN 900 MM E O POÇO DE VISITA/ CAIXA DE CONCRETO OU ALVENARIA EM REDES DE ESGOTO. AF_01/2021 | C113: UN | D113: 97.38
A114: 102267 | B114: JUNTA ARGAMASSADA ENTRE TUBO DN 1000 MM E O POÇO DE VISITA/ CAIXA DE CONCRETO OU ALVENARIA EM REDES DE ESGOTO. AF_01/2021 | C114: UN | D114: 111.81
A115: 102268 | B115: JUNTA ARGAMASSADA ENTRE TUBO DN 1200 MM E O POÇO DE VISITA/ CAIXA DE CONCRETO OU ALVENARIA EM REDES DE ESGOTO. AF_01/2021 | C115: UN | D115: 126.19
A116: 102269 | B116: JUNTA ARGAMASSADA ENTRE TUBO DN 1500 MM E O POÇO DE VISITA/ CAIXA DE CONCRETO OU ALVENARIA EM REDES DE ESGOTO. AF_01/2021 | C116: UN | D116: 154.93
A117: 92833 | B117: TUBO DE CONCRETO PARA REDES COLETORAS DE ESGOTO SANITÁRIO, DIÂMETRO DE 300 MM, JUNTA ELÁSTICA, INSTALADO EM LOCAL COM BAIXO NÍVEL DE INTERFERÊNCIAS - FORNECIMENTO E ASSENTAMENTO. AF_03/2024 | C117: M | D117: 217.23
A118: 92834 | B118: ASSENTAMENTO DE TUBO DE CONCRETO PARA REDES COLETORAS DE ESGOTO SANITÁRIO, DIÂMETRO DE 300 MM, JUNTA ELÁSTICA, INSTALADO EM LOCAL COM BAIXO NÍVEL DE INTERFERÊNCIAS (NÃO INCLUI FORNECIMENTO). AF_03/2024 | C118: M | D118: 18.92
A119: 92835 | B119: TUBO DE CONCRETO PARA REDES COLETORAS DE ESGOTO SANITÁRIO, DIÂMETRO DE 400 MM, JUNTA ELÁSTICA, INSTALADO EM LOCAL COM BAIXO NÍVEL DE INTERFERÊNCIAS - FORNECIMENTO E ASSENTAMENTO. AF_03/2024 | C119: M | D119: 228.32
A120: 92836 | B120: ASSENTAMENTO DE TUBO DE CONCRETO PARA REDES COLETORAS DE ESGOTO SANITÁRIO, DIÂMETRO DE 400 MM, JUNTA ELÁSTICA, INSTALADO EM LOCAL COM BAIXO NÍVEL DE INTERFERÊNCIAS (NÃO INCLUI FORNECIMENTO). AF_03/2024 | C120: M | D120: 24.93
A121: 92837 | B121: TUBO DE CONCRETO PARA REDES COLETORAS DE ESGOTO SANITÁRIO, DIÂMETRO DE 500 MM, JUNTA ELÁSTICA, INSTALADO EM LOCAL COM BAIXO NÍVEL DE INTERFERÊNCIAS - FORNECIMENTO E ASSENTAMENTO. AF_03/2024 | C121: M | D121: 407.57
A122: 92838 | B122: ASSENTAMENTO DE TUBO DE CONCRETO PARA REDES COLETORAS DE ESGOTO SANITÁRIO, DIÂMETRO DE 500 MM, JUNTA ELÁSTICA, INSTALADO EM LOCAL COM BAIXO NÍVEL DE INTERFERÊNCIAS (NÃO INCLUI FORNECIMENTO). AF_03/2024 | C122: M | D122: 31.29
A123: 92839 | B123: TUBO DE CONCRETO PARA REDES COLETORAS DE ESGOTO SANITÁRIO, DIÂMETRO DE 600 MM, JUNTA ELÁSTICA, INSTALADO EM LOCAL COM BAIXO NÍVEL DE INTERFERÊNCIAS - FORNECIMENTO E ASSENTAMENTO. AF_03/2024 | C123: M | D123: 499.65
A124: 92840 | B124: ASSENTAMENTO DE TUBO DE CONCRETO PARA REDES COLETORAS DE ESGOTO SANITÁRIO, DIÂMETRO DE 600 MM, JUNTA ELÁSTICA, INSTALADO EM LOCAL COM BAIXO NÍVEL DE INTERFERÊNCIAS (NÃO INCLUI FORNECIMENTO). AF_03/2024 | C124: M | D124: 37.94
A125: 92841 | B125: TUBO DE CONCRETO PARA REDES COLETORAS DE ESGOTO SANITÁRIO, DIÂMETRO DE 700 MM, JUNTA ELÁSTICA, INSTALADO EM LOCAL COM BAIXO NÍVEL DE INTERFERÊNCIAS - FORNECIMENTO E ASSENTAMENTO. AF_03/2024 | C125: M | D125: 650.73
A126: 92842 | B126: ASSENTAMENTO DE TUBO DE CONCRETO PARA REDES COLETORAS DE ESGOTO SANITÁRIO, DIÂMETRO DE 700 MM, JUNTA ELÁSTICA, INSTALADO EM LOCAL COM BAIXO NÍVEL DE INTERFERÊNCIAS (NÃO INCLUI FORNECIMENTO). AF_03/2024 | C126: M | D126: 47.65
A127: 92843 | B127: TUBO DE CONCRETO PARA REDES COLETORAS DE ESGOTO SANITÁRIO, DIÂMETRO DE 800 MM, JUNTA ELÁSTICA, INSTALADO EM LOCAL COM BAIXO NÍVEL DE INTERFERÊNCIAS - FORNECIMENTO E ASSENTAMENTO. AF_03/2024 | C127: M | D127: 673.08
A128: 92844 | B128: ASSENTAMENTO DE TUBO DE CONCRETO PARA REDES COLETORAS DE ESGOTO SANITÁRIO, DIÂMETRO DE 800 MM, JUNTA ELÁSTICA, INSTALADO EM LOCAL COM BAIXO NÍVEL DE INTERFERÊNCIAS (NÃO INCLUI FORNECIMENTO). AF_03/2024 | C128: M | D128: 56.67
A129: 92845 | B129: TUBO DE CONCRETO PARA REDES COLETORAS DE ESGOTO SANITÁRIO, DIÂMETRO DE 900 MM, JUNTA ELÁSTICA, INSTALADO EM LOCAL COM BAIXO NÍVEL DE INTERFERÊNCIAS - FORNECIMENTO E ASSENTAMENTO. AF_03/2024 | C129: M | D129: 999.65
A130: 92846 | B130: ASSENTAMENTO DE TUBO DE CONCRETO PARA REDES COLETORAS DE ESGOTO SANITÁRIO, DIÂMETRO DE 900 MM, JUNTA ELÁSTICA, INSTALADO EM LOCAL COM BAIXO NÍVEL DE INTERFERÊNCIAS (NÃO INCLUI FORNECIMENTO). AF_03/2024 | C130: M | D130: 65.02
A131: 92847 | B131: TUBO DE CONCRETO PARA REDES COLETORAS DE ESGOTO SANITÁRIO, DIÂMETRO DE 1000 MM, JUNTA ELÁSTICA, INSTALADO EM LOCAL COM BAIXO NÍVEL DE INTERFERÊNCIAS - FORNECIMENTO E ASSENTAMENTO. AF_03/2024 | C131: M | D131: 1024.61
A132: 92848 | B132: ASSENTAMENTO DE TUBO DE CONCRETO PARA REDES COLETORAS DE ESGOTO SANITÁRIO, DIÂMETRO DE 1000 MM, JUNTA ELÁSTICA, INSTALADO EM LOCAL COM BAIXO NÍVEL DE INTERFERÊNCIAS (NÃO INCLUI FORNECIMENTO). AF_03/2024 | C132: M | D132: 76.76
A133: 92849 | B133: TUBO DE CONCRETO PARA REDES COLETORAS DE ESGOTO SANITÁRIO, DIÂMETRO DE 300 MM, JUNTA ELÁSTICA, INSTALADO EM LOCAL COM ALTO NÍVEL DE INTERFERÊNCIAS - FORNECIMENTO E ASSENTAMENTO. AF_03/2024 | C133: M | D133: 219.49
A134: 92850 | B134: ASSENTAMENTO DE TUBO DE CONCRETO PARA REDES COLETORAS DE ESGOTO SANITÁRIO, DIÂMETRO DE 300 MM, JUNTA ELÁSTICA, INSTALADO EM LOCAL COM ALTO NÍVEL DE INTERFERÊNCIAS (NÃO INCLUI FORNECIMENTO). AF_03/2024 | C134: M | D134: 21.18
A135: 92851 | B135: TUBO DE CONCRETO PARA REDES COLETORAS DE ESGOTO SANITÁRIO, DIÂMETRO DE 400 MM, JUNTA ELÁSTICA, INSTALADO EM LOCAL COM ALTO NÍVEL DE INTERFERÊNCIAS - FORNECIMENTO E ASSENTAMENTO. AF_03/2024 | C135: M | D135: 231.53
A136: 92852 | B136: ASSENTAMENTO DE TUBO DE CONCRETO PARA REDES COLETORAS DE ESGOTO SANITÁRIO, DIÂMETRO DE 400 MM, JUNTA ELÁSTICA, INSTALADO EM LOCAL COM ALTO NÍVEL DE INTERFERÊNCIAS (NÃO INCLUI FORNECIMENTO). AF_03/2024 | C136: M | D136: 28.14
A137: 92853 | B137: TUBO DE CONCRETO PARA REDES COLETORAS DE ESGOTO SANITÁRIO, DIÂMETRO DE 500 MM, JUNTA ELÁSTICA, INSTALADO EM LOCAL COM ALTO NÍVEL DE INTERFERÊNCIAS - FORNECIMENTO E ASSENTAMENTO. AF_03/2024 | C137: M | D137: 411.74
A138: 92854 | B138: ASSENTAMENTO DE TUBO DE CONCRETO PARA REDES COLETORAS DE ESGOTO SANITÁRIO, DIÂMETRO DE 500 MM, JUNTA ELÁSTICA, INSTALADO EM LOCAL COM ALTO NÍVEL DE INTERFERÊNCIAS (NÃO INCLUI FORNECIMENTO). AF_03/2024 | C138: M | D138: 35.46
A139: 92855 | B139: TUBO DE CONCRETO PARA REDES COLETORAS DE ESGOTO SANITÁRIO, DIÂMETRO DE 600 MM, JUNTA ELÁSTICA, INSTALADO EM LOCAL COM ALTO NÍVEL DE INTERFERÊNCIAS - FORNECIMENTO E ASSENTAMENTO. AF_03/2024 | C139: M | D139: 504.78
A140: 92856 | B140: ASSENTAMENTO DE TUBO DE CONCRETO PARA REDES COLETORAS DE ESGOTO SANITÁRIO, DIÂMETRO DE 600 MM, JUNTA ELÁSTICA, INSTALADO EM LOCAL COM ALTO NÍVEL DE INTERFERÊNCIAS (NÃO INCLUI FORNECIMENTO). AF_03/2024 | C140: M | D140: 43.07
A141: 92857 | B141: TUBO DE CONCRETO PARA REDES COLETORAS DE ESGOTO SANITÁRIO, DIÂMETRO DE 700 MM, JUNTA ELÁSTICA, INSTALADO EM LOCAL COM ALTO NÍVEL DE INTERFERÊNCIAS - FORNECIMENTO E ASSENTAMENTO. AF_03/2024 | C141: M | D141: 656.86
A142: 92858 | B142: ASSENTAMENTO DE TUBO DE CONCRETO PARA REDES COLETORAS DE ESGOTO SANITÁRIO, DIÂMETRO DE 700 MM, JUNTA ELÁSTICA, INSTALADO EM LOCAL COM ALTO NÍVEL DE INTERFERÊNCIAS (NÃO INCLUI FORNECIMENTO). AF_03/2024 | C142: M | D142: 53.78
A143: 92859 | B143: TUBO DE CONCRETO PARA REDES COLETORAS DE ESGOTO SANITÁRIO, DIÂMETRO DE 800 MM, JUNTA ELÁSTICA, INSTALADO EM LOCAL COM ALTO NÍVEL DE INTERFERÊNCIAS - FORNECIMENTO E ASSENTAMENTO. AF_03/2024 | C143: M | D143: 680.15
A144: 92860 | B144: ASSENTAMENTO DE TUBO DE CONCRETO PARA REDES COLETORAS DE ESGOTO SANITÁRIO, DIÂMETRO DE 800 MM, JUNTA ELÁSTICA, INSTALADO EM LOCAL COM ALTO NÍVEL DE INTERFERÊNCIAS (NÃO INCLUI FORNECIMENTO). AF_03/2024 | C144: M | D144: 63.74
A145: 92861 | B145: TUBO DE CONCRETO PARA REDES COLETORAS DE ESGOTO SANITÁRIO, DIÂMETRO DE 900 MM, JUNTA ELÁSTICA, INSTALADO EM LOCAL COM ALTO NÍVEL DE INTERFERÊNCIAS - FORNECIMENTO E ASSENTAMENTO. AF_03/2024 | C145: M | D145: 1007.69
A146: 92862 | B146: ASSENTAMENTO DE TUBO DE CONCRETO PARA REDES COLETORAS DE ESGOTO SANITÁRIO, DIÂMETRO DE 900 MM, JUNTA ELÁSTICA, INSTALADO EM LOCAL COM ALTO NÍVEL DE INTERFERÊNCIAS (NÃO INCLUI FORNECIMENTO). AF_03/2024 | C146: M | D146: 73.06
A147: 92863 | B147: TUBO DE CONCRETO PARA REDES COLETORAS DE ESGOTO SANITÁRIO, DIÂMETRO DE 1000 MM, JUNTA ELÁSTICA, INSTALADO EM LOCAL COM ALTO NÍVEL DE INTERFERÊNCIAS - FORNECIMENTO E ASSENTAMENTO. AF_03/2024 | C147: M | D147: 1033.6
A148: 92864 | B148: ASSENTAMENTO DE TUBO DE CONCRETO PARA REDES COLETORAS DE ESGOTO SANITÁRIO, DIÂMETRO DE 1000 MM, JUNTA ELÁSTICA, INSTALADO EM LOCAL COM ALTO NÍVEL DE INTERFERÊNCIAS (NÃO INCLUI FORNECIMENTO). AF_03/2024 | C148: M | D148: 85.75
A149: 92210 | B149: TUBO DE CONCRETO PARA REDES COLETORAS DE ÁGUAS PLUVIAIS, DIÂMETRO DE 400 MM, JUNTA RÍGIDA, INSTALADO EM LOCAL COM BAIXO NÍVEL DE INTERFERÊNCIAS - FORNECIMENTO E ASSENTAMENTO. AF_03/2024 | C149: M | D149: 156.5
A150: 92211 | B150: TUBO DE CONCRETO PARA REDES COLETORAS DE ÁGUAS PLUVIAIS, DIÂMETRO DE 500 MM, JUNTA RÍGIDA, INSTALADO EM LOCAL COM BAIXO NÍVEL DE INTERFERÊNCIAS - FORNECIMENTO E ASSENTAMENTO. AF_03/2024 | C150: M | D150: 190.07
A151: 92212 | B151: TUBO DE CONCRETO PARA REDES COLETORAS DE ÁGUAS PLUVIAIS, DIÂMETRO DE 600 MM, JUNTA RÍGIDA, INSTALADO EM LOCAL COM BAIXO NÍVEL DE INTERFERÊNCIAS - FORNECIMENTO E ASSENTAMENTO. AF_03/2024 | C151: M | D151: 292.02
A152: 92213 | B152: TUBO DE CONCRETO PARA REDES COLETORAS DE ÁGUAS PLUVIAIS, DIÂMETRO DE 700 MM, JUNTA RÍGIDA, INSTALADO EM LOCAL COM BAIXO NÍVEL DE INTERFERÊNCIAS - FORNECIMENTO E ASSENTAMENTO. AF_03/2024 | C152: M | D152: 389.5
A153: 92214 | B153: TUBO DE CONCRETO PARA REDES COLETORAS DE ÁGUAS PLUVIAIS, DIÂMETRO DE 800 MM, JUNTA RÍGIDA, INSTALADO EM LOCAL COM BAIXO NÍVEL DE INTERFERÊNCIAS - FORNECIMENTO E ASSENTAMENTO. AF_03/2024 | C153: M | D153: 472.21
A154: 92215 | B154: TUBO DE CONCRETO PARA REDES COLETORAS DE ÁGUAS PLUVIAIS, DIÂMETRO DE 900 MM, JUNTA RÍGIDA, INSTALADO EM LOCAL COM BAIXO NÍVEL DE INTERFERÊNCIAS - FORNECIMENTO E ASSENTAMENTO. AF_03/2024 | C154: M | D154: 542.35
A155: 92216 | B155: TUBO DE CONCRETO PARA REDES COLETORAS DE ÁGUAS PLUVIAIS, DIÂMETRO DE 1000 MM, JUNTA RÍGIDA, INSTALADO EM LOCAL COM BAIXO NÍVEL DE INTERFERÊNCIAS - FORNECIMENTO E ASSENTAMENTO. AF_03/2024 | C155: M | D155: 561.86
A156: 92219 | B156: TUBO DE CONCRETO PARA REDES COLETORAS DE ÁGUAS PLUVIAIS, DIÂMETRO DE 400 MM, JUNTA RÍGIDA, INSTALADO EM LOCAL COM ALTO NÍVEL DE INTERFERÊNCIAS - FORNECIMENTO E ASSENTAMENTO. AF_03/2024 | C156: M | D156: 159.71
A157: 92220 | B157: TUBO DE CONCRETO PARA REDES COLETORAS DE ÁGUAS PLUVIAIS, DIÂMETRO DE 500 MM, JUNTA RÍGIDA, INSTALADO EM LOCAL COM ALTO NÍVEL DE INTERFERÊNCIAS - FORNECIMENTO E ASSENTAMENTO. AF_03/2024 | C157: M | D157: 194.26
A158: 92221 | B158: TUBO DE CONCRETO PARA REDES COLETORAS DE ÁGUAS PLUVIAIS, DIÂMETRO DE 600 MM, JUNTA RÍGIDA, INSTALADO EM LOCAL COM ALTO NÍVEL DE INTERFERÊNCIAS - FORNECIMENTO E ASSENTAMENTO. AF_03/2024 | C158: M | D158: 297.14
A159: 92222 | B159: TUBO DE CONCRETO PARA REDES COLETORAS DE ÁGUAS PLUVIAIS, DIÂMETRO DE 700 MM, JUNTA RÍGIDA, INSTALADO EM LOCAL COM ALTO NÍVEL DE INTERFERÊNCIAS - FORNECIMENTO E ASSENTAMENTO. AF_03/2024 | C159: M | D159: 395.6
A160: 92223 | B160: TUBO DE CONCRETO PARA REDES COLETORAS DE ÁGUAS PLUVIAIS, DIÂMETRO DE 800 MM, JUNTA RÍGIDA, INSTALADO EM LOCAL COM ALTO NÍVEL DE INTERFERÊNCIAS - FORNECIMENTO E ASSENTAMENTO. AF_03/2024 | C160: M | D160: 479.28
A161: 92224 | B161: TUBO DE CONCRETO PARA REDES COLETORAS DE ÁGUAS PLUVIAIS, DIÂMETRO DE 900 MM, JUNTA RÍGIDA, INSTALADO EM LOCAL COM ALTO NÍVEL DE INTERFERÊNCIAS - FORNECIMENTO E ASSENTAMENTO. AF_03/2024 | C161: M | D161: 550.4
A162: 92226 | B162: TUBO DE CONCRETO PARA REDES COLETORAS DE ÁGUAS PLUVIAIS, DIÂMETRO DE 1000 MM, JUNTA RÍGIDA, INSTALADO EM LOCAL COM ALTO NÍVEL DE INTERFERÊNCIAS - FORNECIMENTO E ASSENTAMENTO. AF_03/2024 | C162: M | D162: 570.87
A163: 92808 | B163: ASSENTAMENTO DE TUBO DE CONCRETO PARA REDES COLETORAS DE ÁGUAS PLUVIAIS, DIÂMETRO DE 300 MM, JUNTA RÍGIDA, INSTALADO EM LOCAL COM BAIXO NÍVEL DE INTERFERÊNCIAS (NÃO INCLUI FORNECIMENTO). AF_03/2024 | C163: M | D163: 22.56
A164: 92809 | B164: ASSENTAMENTO DE TUBO DE CONCRETO PARA REDES COLETORAS DE ÁGUAS PLUVIAIS, DIÂMETRO DE 400 MM, JUNTA RÍGIDA, INSTALADO EM LOCAL COM BAIXO NÍVEL DE INTERFERÊNCIAS (NÃO INCLUI FORNECIMENTO). AF_03/2024 | C164: M | D164: 31.42
A165: 92810 | B165: ASSENTAMENTO DE TUBO DE CONCRETO PARA REDES COLETORAS DE ÁGUAS PLUVIAIS, DIÂMETRO DE 500 MM, JUNTA RÍGIDA, INSTALADO EM LOCAL COM BAIXO NÍVEL DE INTERFERÊNCIAS (NÃO INCLUI FORNECIMENTO). AF_03/2024 | C165: M | D165: 40.58
A166: 92811 | B166: ASSENTAMENTO DE TUBO DE CONCRETO PARA REDES COLETORAS DE ÁGUAS PLUVIAIS, DIÂMETRO DE 600 MM, JUNTA RÍGIDA, INSTALADO EM LOCAL COM BAIXO NÍVEL DE INTERFERÊNCIAS (NÃO INCLUI FORNECIMENTO). AF_03/2024 | C166: M | D166: 49.97
A167: 92812 | B167: ASSENTAMENTO DE TUBO DE CONCRETO PARA REDES COLETORAS DE ÁGUAS PLUVIAIS, DIÂMETRO DE 700 MM, JUNTA RÍGIDA, INSTALADO EM LOCAL COM BAIXO NÍVEL DE INTERFERÊNCIAS (NÃO INCLUI FORNECIMENTO). AF_03/2024 | C167: M | D167: 59.59
A168: 92813 | B168: ASSENTAMENTO DE TUBO DE CONCRETO PARA REDES COLETORAS DE ÁGUAS PLUVIAIS, DIÂMETRO DE 800 MM, JUNTA RÍGIDA, INSTALADO EM LOCAL COM BAIXO NÍVEL DE INTERFERÊNCIAS (NÃO INCLUI FORNECIMENTO). AF_03/2024 | C168: M | D168: 69.48
A169: 92814 | B169: ASSENTAMENTO DE TUBO DE CONCRETO PARA REDES COLETORAS DE ÁGUAS PLUVIAIS, DIÂMETRO DE 900 MM, JUNTA RÍGIDA, INSTALADO EM LOCAL COM BAIXO NÍVEL DE INTERFERÊNCIAS (NÃO INCLUI FORNECIMENTO). AF_03/2024 | C169: M | D169: 79.62
A170: 92815 | B170: ASSENTAMENTO DE TUBO DE CONCRETO PARA REDES COLETORAS DE ÁGUAS PLUVIAIS, DIÂMETRO DE 1000 MM, JUNTA RÍGIDA, INSTALADO EM LOCAL COM BAIXO NÍVEL DE INTERFERÊNCIAS (NÃO INCLUI FORNECIMENTO). AF_03/2024 | C170: M | D170: 89.97
A171: 92816 | B171: TUBO DE CONCRETO PARA REDES COLETORAS DE ÁGUAS PLUVIAIS, DIÂMETRO DE 1200 MM, JUNTA RÍGIDA, INSTALADO EM LOCAL COM BAIXO NÍVEL DE INTERFERÊNCIAS - FORNECIMENTO E ASSENTAMENTO. AF_03/2024 | C171: M | D171: 816.22
A172: 92817 | B172: ASSENTAMENTO DE TUBO DE CONCRETO PARA REDES COLETORAS DE ÁGUAS PLUVIAIS, DIÂMETRO DE 1200 MM, JUNTA RÍGIDA, INSTALADO EM LOCAL COM BAIXO NÍVEL DE INTERFERÊNCIAS (NÃO INCLUI FORNECIMENTO). AF_03/2024 | C172: M | D172: 111.44
A173: 92818 | B173: TUBO DE CONCRETO PARA REDES COLETORAS DE ÁGUAS PLUVIAIS, DIÂMETRO DE 1500 MM, JUNTA RÍGIDA, INSTALADO EM LOCAL COM BAIXO NÍVEL DE INTERFERÊNCIAS - FORNECIMENTO E ASSENTAMENTO. AF_03/2024 | C173: M | D173: 1166.53
A174: 92819 | B174: ASSENTAMENTO DE TUBO DE CONCRETO PARA REDES COLETORAS DE ÁGUAS PLUVIAIS, DIÂMETRO DE 1500 MM, JUNTA RÍGIDA, INSTALADO EM LOCAL COM BAIXO NÍVEL DE INTERFERÊNCIAS (NÃO INCLUI FORNECIMENTO). AF_03/2024 | C174: M | D174: 145.45
A175: 92820 | B175: ASSENTAMENTO DE TUBO DE CONCRETO PARA REDES COLETORAS DE ÁGUAS PLUVIAIS, DIÂMETRO DE 300 MM, JUNTA RÍGIDA, INSTALADO EM LOCAL COM ALTO NÍVEL DE INTERFERÊNCIAS (NÃO INCLUI FORNECIMENTO). AF_03/2024 | C175: M | D175: 24.82
A176: 92821 | B176: ASSENTAMENTO DE TUBO DE CONCRETO PARA REDES COLETORAS DE ÁGUAS PLUVIAIS, DIÂMETRO DE 400 MM, JUNTA RÍGIDA, INSTALADO EM LOCAL COM ALTO NÍVEL DE INTERFERÊNCIAS (NÃO INCLUI FORNECIMENTO). AF_03/2024 | C176: M | D176: 34.63
A177: 92822 | B177: ASSENTAMENTO DE TUBO DE CONCRETO PARA REDES COLETORAS DE ÁGUAS PLUVIAIS, DIÂMETRO DE 500 MM, JUNTA RÍGIDA, INSTALADO EM LOCAL COM ALTO NÍVEL DE INTERFERÊNCIAS (NÃO INCLUI FORNECIMENTO). AF_03/2024 | C177: M | D177: 44.77
A178: 92824 | B178: ASSENTAMENTO DE TUBO DE CONCRETO PARA REDES COLETORAS DE ÁGUAS PLUVIAIS, DIÂMETRO DE 600 MM, JUNTA RÍGIDA, INSTALADO EM LOCAL COM ALTO NÍVEL DE INTERFERÊNCIAS (NÃO INCLUI FORNECIMENTO). AF_03/2024 | C178: M | D178: 55.09
A179: 92825 | B179: ASSENTAMENTO DE TUBO DE CONCRETO PARA REDES COLETORAS DE ÁGUAS PLUVIAIS, DIÂMETRO DE 700 MM, JUNTA RÍGIDA, INSTALADO EM LOCAL COM ALTO NÍVEL DE INTERFERÊNCIAS (NÃO INCLUI FORNECIMENTO). AF_03/2024 | C179: M | D179: 65.69
A180: 92826 | B180: ASSENTAMENTO DE TUBO DE CONCRETO PARA REDES COLETORAS DE ÁGUAS PLUVIAIS, DIÂMETRO DE 800 MM, JUNTA RÍGIDA, INSTALADO EM LOCAL COM ALTO NÍVEL DE INTERFERÊNCIAS (NÃO INCLUI FORNECIMENTO). AF_03/2024 | C180: M | D180: 76.55
A181: 92827 | B181: ASSENTAMENTO DE TUBO DE CONCRETO PARA REDES COLETORAS DE ÁGUAS PLUVIAIS, DIÂMETRO DE 900 MM, JUNTA RÍGIDA, INSTALADO EM LOCAL COM ALTO NÍVEL DE INTERFERÊNCIAS (NÃO INCLUI FORNECIMENTO). AF_03/2024 | C181: M | D181: 87.67
A182: 92828 | B182: ASSENTAMENTO DE TUBO DE CONCRETO PARA REDES COLETORAS DE ÁGUAS PLUVIAIS, DIÂMETRO DE 1000 MM, JUNTA RÍGIDA, INSTALADO EM LOCAL COM ALTO NÍVEL DE INTERFERÊNCIAS (NÃO INCLUI FORNECIMENTO). AF_03/2024 | C182: M | D182: 98.98
A183: 92829 | B183: TUBO DE CONCRETO PARA REDES COLETORAS DE ÁGUAS PLUVIAIS, DIÂMETRO DE 1200 MM, JUNTA RÍGIDA, INSTALADO EM LOCAL COM ALTO NÍVEL DE INTERFERÊNCIAS - FORNECIMENTO E ASSENTAMENTO. AF_03/2024 | C183: M | D183: 827.14
A184: 92830 | B184: ASSENTAMENTO DE TUBO DE CONCRETO PARA REDES COLETORAS DE ÁGUAS PLUVIAIS, DIÂMETRO DE 1200 MM, JUNTA RÍGIDA, INSTALADO EM LOCAL COM ALTO NÍVEL DE INTERFERÊNCIAS (NÃO INCLUI FORNECIMENTO). AF_03/2024 | C184: M | D184: 122.36
A185: 92831 | B185: TUBO DE CONCRETO PARA REDES COLETORAS DE ÁGUAS PLUVIAIS, DIÂMETRO DE 1500 MM, JUNTA RÍGIDA, INSTALADO EM LOCAL COM ALTO NÍVEL DE INTERFERÊNCIAS - FORNECIMENTO E ASSENTAMENTO. AF_03/2024 | C185: M | D185: 1180.35
A186: 92832 | B186: ASSENTAMENTO DE TUBO DE CONCRETO PARA REDES COLETORAS DE ÁGUAS PLUVIAIS, DIÂMETRO DE 1500 MM, JUNTA RÍGIDA, INSTALADO EM LOCAL COM ALTO NÍVEL DE INTERFERÊNCIAS (NÃO INCLUI FORNECIMENTO). AF_03/2024 | C186: M | D186: 159.27
A187: 95565 | B187: TUBO DE CONCRETO PARA REDES COLETORAS DE ÁGUAS PLUVIAIS, DIÂMETRO DE 300MM, JUNTA RÍGIDA, INSTALADO EM LOCAL COM BAIXO NÍVEL DE INTERFERÊNCIAS - FORNECIMENTO E ASSENTAMENTO. AF_03/2024 | C187: M | D187: 133.4
A188: 95566 | B188: TUBO DE CONCRETO PARA REDES COLETORAS DE ÁGUAS PLUVIAIS, DIÂMETRO DE 300MM, JUNTA RÍGIDA, INSTALADO EM LOCAL COM ALTO NÍVEL DE INTERFERÊNCIAS - FORNECIMENTO E ASSENTAMENTO. AF_03/2024 | C188: M | D188: 135.66
A189: 95567 | B189: TUBO DE CONCRETO (SIMPLES) PARA REDES COLETORAS DE ÁGUAS PLUVIAIS, DIÂMETRO DE 300 MM, JUNTA RÍGIDA, INSTALADO EM LOCAL COM BAIXO NÍVEL DE INTERFERÊNCIAS - FORNECIMENTO E ASSENTAMENTO. AF_03/2024 | C189: M | D189: 124.53
A190: 95568 | B190: TUBO DE CONCRETO (SIMPLES) PARA REDES COLETORAS DE ÁGUAS PLUVIAIS, DIÂMETRO DE 400 MM, JUNTA RÍGIDA, INSTALADO EM LOCAL COM BAIXO NÍVEL DE INTERFERÊNCIAS - FORNECIMENTO E ASSENTAMENTO. AF_03/2024 | C190: M | D190: 151.91
A191: 95569 | B191: TUBO DE CONCRETO (SIMPLES) PARA REDES COLETORAS DE ÁGUAS PLUVIAIS, DIÂMETRO DE 500 MM, JUNTA RÍGIDA, INSTALADO EM LOCAL COM BAIXO NÍVEL DE INTERFERÊNCIAS - FORNECIMENTO E ASSENTAMENTO. AF_03/2024 | C191: M | D191: 219.91
A192: 95570 | B192: TUBO DE CONCRETO (SIMPLES) PARA REDES COLETORAS DE ÁGUAS PLUVIAIS, DIÂMETRO DE 300 MM, JUNTA RÍGIDA, INSTALADO EM LOCAL COM ALTO NÍVEL DE INTERFERÊNCIAS - FORNECIMENTO E ASSENTAMENTO. AF_03/2024 | C192: M | D192: 126.79
A193: 95571 | B193: TUBO DE CONCRETO (SIMPLES) PARA REDES COLETORAS DE ÁGUAS PLUVIAIS, DIÂMETRO DE 400 MM, JUNTA RÍGIDA, INSTALADO EM LOCAL COM ALTO NÍVEL DE INTERFERÊNCIAS - FORNECIMENTO E ASSENTAMENTO. AF_03/2024 | C193: M | D193: 155.12
A194: 95572 | B194: TUBO DE CONCRETO (SIMPLES) PARA REDES COLETORAS DE ÁGUAS PLUVIAIS, DIÂMETRO DE 500 MM, JUNTA RÍGIDA, INSTALADO EM LOCAL COM ALTO NÍVEL DE INTERFERÊNCIAS - FORNECIMENTO E ASSENTAMENTO. AF_03/2024 | C194: M | D194: 224.1
A195: 97127 | B195: ASSENTAMENTO DE TUBO DE PVC DEFOFO OU PRFV OU RPVC PARA REDE DE ÁGUA, DN 150 MM, JUNTA ELÁSTICA INTEGRADA, INSTALADO EM LOCAL COM NÍVEL ALTO DE INTERFERÊNCIAS (NÃO INCLUI FORNECIMENTO). AF_11/2017 | C195: M | D195: 4.37
A196: 97128 | B196: ASSENTAMENTO DE TUBO DE PVC DEFOFO OU PRFV OU RPVC PARA REDE DE ÁGUA, DN 200 MM, JUNTA ELÁSTICA INTEGRADA, INSTALADO EM LOCAL COM NÍVEL ALTO DE INTERFERÊNCIAS (NÃO INCLUI FORNECIMENTO). AF_11/2017 | C196: M | D196: 9.54
A197: 97129 | B197: ASSENTAMENTO DE TUBO DE PVC DEFOFO OU PRFV OU RPVC PARA REDE DE ÁGUA, DN 250 MM, JUNTA ELÁSTICA INTEGRADA, INSTALADO EM LOCAL COM NÍVEL ALTO DE INTERFERÊNCIAS (NÃO INCLUI FORNECIMENTO). AF_11/2017 | C197: M | D197: 11.73
A198: 97130 | B198: ASSENTAMENTO DE TUBO DE PVC DEFOFO OU PRFV OU RPVC PARA REDE DE ÁGUA, DN 300 MM, JUNTA ELÁSTICA INTEGRADA, INSTALADO EM LOCAL COM NÍVEL ALTO DE INTERFERÊNCIAS (NÃO INCLUI FORNECIMENTO). AF_11/2017 | C198: M | D198: 13.93
A199: 97131 | B199: ASSENTAMENTO DE TUBO DE PVC DEFOFO OU PRFV OU RPVC PARA REDE DE ÁGUA, DN 350 MM, JUNTA ELÁSTICA INTEGRADA, INSTALADO EM LOCAL COM NÍVEL ALTO DE INTERFERÊNCIAS (NÃO INCLUI FORNECIMENTO). AF_11/2017 | C199: M | D199: 16.11
A200: 97132 | B200: ASSENTAMENTO DE TUBO DE PVC DEFOFO OU PRFV OU RPVC PARA REDE DE ÁGUA, DN 400 MM, JUNTA ELÁSTICA INTEGRADA, INSTALADO EM LOCAL COM NÍVEL ALTO DE INTERFERÊNCIAS (NÃO INCLUI FORNECIMENTO). AF_11/2017 | C200: M | D200: 18.3
... 12186 more rows

Sheet SETOP
B1: SETOP JANEIRO 2024
A2: CÓDIGO | B2: DESCRIÇÃO | C2: UNIDADE | D2: PREÇO
A3: 8662 | B3: MOBILIZAÇÃO E DESMOBILIZAÇÃO DE OBRA
A4: 8700 | B4: OBRAS EM CENTRO URBANO OU REGIÃO LIMÍTROFE
A5: ED-50394 | B5: MOBILIZAÇÃO E DESMOBILIZAÇÃO DE OBRA EM CENTRO URBANO OU REGIÃO LIMÍTROFE COM VALOR ACIMA DE 3.000.000,01 | C5: % | D5: 0.2
A6: ED-50392 | B6: MOBILIZAÇÃO E DESMOBILIZAÇÃO DE OBRA EM CENTRO URBANO OU REGIÃO LIMÍTROFE COM VALOR ATÉ O VALOR DE 1.000.000,00 | C6: % | D6: 0.5
A7: ED-50393 | B7: MOBILIZAÇÃO E DESMOBILIZAÇÃO DE OBRA EM CENTRO URBANO OU REGIÃO LIMÍTROFE COM VALOR ENTRE 1.000.000,01 E 3.000.000,00 | C7: % | D7: 0.3
A8: 8701 | B8: OBRA DISTANTE DE CENTRO URBANO
A9: ED-50391 | B9: MOBILIZAÇÃO E DESMOBILIZAÇÃO OBRA DISTANTE DE CENTRO URBANO COM ACIMA DE 3.000.000,01 | C9: % | D9: 1
A10: ED-50390 | B10: MOBILIZAÇÃO E DESMOBILIZAÇÃO OBRA DISTANTE DE CENTRO URBANO COM ENTRE 1.000.000,01 E 3.000.000,00 | C10: % | D10: 1.5
A11: ED-50389 | B11: MOBILIZAÇÃO E DESMOBILIZAÇÃO OBRA DISTANTE DE CENTRO URBANO COM VALOR ATÉ O VALOR DE 1.000.000,00 | C11: % | D11: 2
A12: 8663 | B12: SERVIÇOS PRELIMINARES
A13: 8702 | B13: LIMPEZA DO TERRENO
A14: ED-50701 | B14: CAPINA MANUAL DO TERRENO, EXCLUSIVE RASTELAMENTO E QUEIMA | C14: m2 | D14: 1.21
A15: ED-28163 | B15: DESTOCAMENTO E AFASTAMENTO DE REMANESCENTE ARBÓREO, INCLUSIVE TRANSPORTE E RETIRADA DO MATERIAL ESCAVADO (EM CAÇAMBA) | C15: un | D15: 427.31
A16: ED-50703 | B16: LIMPEZA DE TERRENO, INCLUSIVE CAPINA, RASTELAMENTO COM AFASTAMENTO ATÉ VINTE (20) METROS E QUEIMA CONTROLADA | C16: m2 | D16: 2.15
A17: ED-8143 | B17: RASTELAMENTO DE ÁREA COM AFASTAMENTO DE ATÉ VINTE (20) METROS, EXCLUSIVE CAPINA OU ROÇADA MANUAL | C17: m2 | D17: 0.81
A18: ED-28162 | B18: ROÇADA MANUAL DE TERRENO COM ROÇADEIRA COSTAL, EXCLUSIVE RASTELAMENTO E QUEIMA | C18: m2 | D18: 0.25
A19: 8703 | B19: DESMATAMENTO E DESTOCAMENTO
A20: ED-50702 | B20: DESMATAMENTO, DESTOCAMENTO E LIMPEZA, INCLUSIVE TRANSPORTE ATÉ CINQUENTA (50) METROS | C20: m2 | D20: 0.49
A21: 8704 | B21: SUPRESSÃO DE ÁRVORE
A22: ED-50699 | B22: CORTE DE ÁRVORE COM MOTOSSERRA, DIÂMETRO DO TRONCO ACIMA DE TRINTA (30) CENTÍMETROS ATÉ CINQUENTA (50) CENTÍMETROS, EXCLUSIVE DESTOCAMENTO E AFASTAMENTO | C22: un | D22: 85.19
A23: ED-50697 | B23: CORTE DE ÁRVORE COM MOTOSSERRA, DIÂMETRO DO TRONCO DE QUINZE (15) CENTÍMETROS ATÉ TRINTA (30) CENTÍMETROS, EXCLUSIVE DESTOCAMENTO E AFASTAMENTO | C23: un | D23: 51.12
A24: 8706 | B24: REMOÇÃO DE TELHADO
A25: ED-48438 | B25: REMOÇÃO DE CALHA EM CHAPA GALVANIZADA OU EM PVC, COM REAPROVEITAMENTO, INCLUSIVE AFASTAMENTO E EMPILHAMENTO, EXCLUSIVE TRANSPORTE E RETIRADA DO MATERIAL REMOVIDO NÃO REAPROVEITÁVEL | C25: m | D25: 4.19
A26: ED-48446 | B26: REMOÇÃO MANUAL DE CONDUTOR EM PVC OU METÁLICO, COM REAPROVEITAMENTO, INCLUSIVE AFASTAMENTO E EMPILHAMENTO, EXCLUSIVE TRANSPORTE E RETIRADA DO MATERIAL REMOVIDO NÃO REAPROVEITÁVEL | C26: m | D26: 5.03
A27: ED-48455 | B27: REMOÇÃO MANUAL DE ENGRADAMENTO PARA TELHA TIPO CALHA ESTRUTURAL EM FIBROCIMENTO, COM REAPROVEITAMENTO, INCLUSIVE AFASTAMENTO E EMPILHAMENTO, EXCLUSIVE TRANSPORTE E RETIRADA DO MATERIAL REMOVIDO NÃO REAPROVEITÁVEL | C27: m2 | D27: 10.01
A28: ED-48457 | B28: REMOÇÃO MANUAL DE ENGRADAMENTO PARA TELHA TIPO CERÂMICA OU CONCRETO, INCLUSIVE AFASTAMENTO E EMPILHAMENTO, EXCLUSIVE TRANSPORTE E RETIRADA DO MATERIAL REMOVIDO NÃO REAPROVEITÁVEL | C28: m2 | D28: 20.02
A29: ED-48454 | B29: REMOÇÃO MANUAL DE ENGRADAMENTO PARA TELHA TIPO METÁLICA, PVC OU FIBROCIMENTO, COM REAPROVEITAMENTO, INCLUSIVE AFASTAMENTO E EMPILHAMENTO, EXCLUSIVE TRANSPORTE E RETIRADA DO MATERIAL REMOVIDO NÃO REAPROVEITÁVEL | C29: m2 | D29: 13.35
A30: ED-48506 | B30: REMOÇÃO MANUAL DE RUFO METÁLICO, COM REAPROVEITAMENTO, INCLUSIVE AFASTAMENTO E EMPILHAMENTO, EXCLUSIVE TRANSPORTE E RETIRADA DO MATERIAL REMOVIDO NÃO REAPROVEITÁVEL | C30: m | D30: 6.16
A31: ED-48512 | B31: REMOÇÃO MANUAL DE TELHA EM FIBROCIMENTO, TIPO ONDULADA, COM REAPROVEITAMENTO, INCLUSIVE AFASTAMENTO E EMPILHAMENTO, EXCLUSIVE TRANSPORTE E RETIRADA DO MATERIAL REMOVIDO NÃO REAPROVEITÁVEL | C31: m2 | D31: 11.44
A32: ED-48514 | B32: REMOÇÃO MANUAL DE TELHA CERÂMICA, COM REAPROVEITAMENTO, INCLUSIVE AFASTAMENTO E EMPILHAMENTO, EXCLUSIVE TRANSPORTE E RETIRADA DO MATERIAL REMOVIDO NÃO REAPROVEITÁVEL | C32: m2 | D32: 21.75
A33: ED-48510 | B33: REMOÇÃO MANUAL DE TELHA EM FIBROCIMENTO, TIPO CALHA ESTRUTURAL, COM REAPROVEITAMENTO, INCLUSIVE IÇAMENTO, AFASTAMENTO E EMPILHAMENTO, EXCLUSIVE TRANSPORTE E RETIRADA DO MATERIAL REMOVIDO NÃO REAPROVEITÁVEL | C33: m2 | D33: 22.75
A34: ED-48509 | B34: REMOÇÃO MANUAL DE TELHA METÁLICA OU PVC, COM REAPROVEITAMENTO, INCLUSIVE AFASTAMENTO E EMPILHAMENTO, EXCLUSIVE TRANSPORTE E RETIRADA DO MATERIAL REMOVIDO NÃO REAPROVEITÁVEL | C34: m2 | D34: 8.01
A35: 8707 | B35: DEMOLIÇÃO E REMOÇÃO DE INSTALAÇÃO
A36: ED-48500 | B36: DEMOLIÇÃO MANUAL DE TUBULAÇÕES EMBUTIDAS DE REDE (ÁGUA, ELÉTRICA, GASES, ETC.), INCLUSIVE RASGO EM ALVENARIA, REMOÇÃO DE ACESSÓRIOS DE FIXAÇÃO, AFASTAMENTO E EMPILHAMENTO, EXCLUSIVE TRANSPORTE E RETIRADA DO MATERIAL DEMOLIDO | C36: m | D36: 7.54
A37: ED-48466 | B37: REMOÇÃO MANUAL DE INTERFONE, COM REAPROVEITAMENTO, INCLUSIVE AFASTAMENTO E EMPILHAMENTO, EXCLUSIVE TRANSPORTE E RETIRADA DO MATERIAL REMOVIDO NÃO REAPROVEITÁVEL | C37: un | D37: 39.24
A38: ED-48468 | B38: REMOÇÃO MANUAL DE LUMINÁRIA COMERCIAL, EMBUTIDA OU SOBREPOR, COM REAPROVEITAMENTO, INCLUSIVE AFASTAMENTO E EMPILHAMENTO, EXCLUSIVE TRANSPORTE E RETIRADA DO MATERIAL REMOVIDO NÃO REAPROVEITÁVEL | C38: un | D38: 9.44
A39: ED-48469 | B39: REMOÇÃO MANUAL DE LUMINÁRIA COMPACTA (PLAFON, PAINEL LED, ETC.) EMBUTIDA OU SOBREPOR, COM REAPROVEITAMENTO, INCLUSIVE AFASTAMENTO E EMPILHAMENTO, EXCLUSIVE TRANSPORTE E RETIRADA DO MATERIAL REMOVIDO NÃO REAPROVEITÁVEL | C39: un | D39: 5.5
A40: ED-48499 | B40: REMOÇÃO MANUAL DE REDES DE DUTOS PARA CLIMATIZAÇÃO, INCLUSIVE AFASTAMENTO E EMPILHAMENTO, EXCLUSIVE TRANSPORTE E RETIRADA DO MATERIAL REMOVIDO NÃO REAPROVEITÁVEL | C40: m | D40: 8.38
A41: ED-48515 | B41: REMOÇÃO MANUAL DE TUBULAÇÕES EMBUTIDAS DE REDE (ÁGUA, ELÉTRICA, GASES, ETC.), COM REAPROVEITAMENTO, INCLUSIVE RASGO EM ALVENARIA, REMOÇÃO DE ACESSÓRIOS DE FIXAÇÃO, AFASTAMENTO E EMPILHAMENTO, EXCLUSIVE TRANSPORTE E RETIRADA DO MATERIAL REMOVIDO NÃO REAPROVEITÁVEL | C41: m | D41: 10.85
A42: 8708 | B42: DEMOLIÇÃO DE FORRO
A43: ED-48463 | B43: DEMOLIÇÃO MANUAL DE FORRO DE CHAPA OU PLACA DE GESSO, INCLUSIVE DEMOLIÇÃO DA ESTRUTURA DE SUSTENTAÇÃO, AFASTAMENTO E EMPILHAMENTO, EXCLUSIVE TRANSPORTE E RETIRADA DO MATERIAL DEMOLIDO | C43: m2 | D43: 4.9
A44: 8709 | B44: REMOÇÃO DE FORRO
A45: ED-48460 | B45: REMOÇÃO MANUAL DE FORRO DE PLACAS (GESSO, MINERAL, FIBRA, ISOPOR, COLMEIA, PVC, ETC.), COM REAPROVEITAMENTO, INCLUSIVE AFASTAMENTO E EMPILHAMENTO, EXCLUSIVE DEMOLIÇÃO DA ESTRUTURA DE SUSTENTAÇÃO, TRANSPORTE E RETIRADA DO MATERIAL REMOVIDO NÃO REAPROVEITÁVEL | C45: m2 | D45: 1.88
A46: ED-48459 | B46: REMOÇÃO MANUAL DE FORRO DE PLACAS (GESSO, MINERAL, FIBRA, ISOPOR, COLMEIA, PVC, ETC.), COM REAPROVEITAMENTO, INCLUSIVE DEMOLIÇÃO ESTRUTURA DE SUSTENTAÇÃO, AFASTAMENTO E EMPILHAMENTO, EXCLUSIVE TRANSPORTE E RETIRADA DO MATERIAL REMOVIDO NÃO REAPROVEITÁVEL | C46: m2 | D46: 5.65
A47: ED-48464 | B47: REMOÇÃO MANUAL DE FORRO DE TÁBUAS DE PINHO, COM REAPROVEITAMENTO, INCLUSIVE AFASTAMENTO E EMPILHAMENTO, EXCLUSIVE REMOÇÃO DA ESTRUTURA DE SUSTENTAÇÃO, TRANSPORTE E RETIRADA DO MATERIAL REMOVIDO NÃO REAPROVEITÁVEL | C47: m2 | D47: 8.78
A48: ED-28355 | B48: REMOÇÃO MANUAL ESTRUTURA OU TRAMA DE SUSTENTAÇÃO DE MADEIRA OU METÁLICA PARA FORRO, COM REAPROVEITAMENTO, INCLUSIVE AFASTAMENTO E EMPILHAMENTO, EXCLUSIVE TRANSPORTE E RETIRADA DO MATERIAL REMOVIDO NÃO REAPROVEITÁVEL | C48: m2 | D48: 3.77
A49: 8710 | B49: REMOÇÃO DE ESQUADRIA
A50: ED-48496 | B50: REMOÇÃO MANUAL DE CONJUNTO DE ALIZARES, COM REAPROVEITAMENTO, INCLUSIVE AFASTAMENTO E EMPILHAMENTO, EXCLUSIVE TRANSPORTE E RETIRADA DO MATERIAL REMOVIDO NÃO REAPROVEITÁVEL | C50: cj | D50: 3.12
A51: ED-48458 | B51: REMOÇÃO MANUAL DE CONJUNTO DE FERRAGENS (DOBRADIÇAS, FECHADURA E MAÇANETAS), COM REAPROVEITAMENTO, INCLUSIVE AFASTAMENTO E EMPILHAMENTO, EXCLUSIVE TRANSPORTE E RETIRADA DO MATERIAL REMOVIDO NÃO REAPROVEITÁVEL | C51: un | D51: 18.89
A52: ED-48493 | B52: REMOÇÃO MANUAL DE ESQUADRIA EM MADEIRA, COM REAPROVEITAMENTO, INCLUSIVE REMOÇÃO DE MARCO/ALIZAR/GUARNIÇÕES, AFASTAMENTO E EMPILHAMENTO, EXCLUSIVE TRANSPORTE E RETIRADA DO MATERIAL REMOVIDO NÃO REAPROVEITÁVEL | C52: m2 | D52: 12.06
A53: ED-48497 | B53: REMOÇÃO MANUAL DE ESQUADRIA METÁLICA, COM REAPROVEITAMENTO, INCLUSIVE MARCO/ALIZAR/GUARNIÇÕES, AFASTAMENTO E EMPILHAMENTO, EXCLUSIVE TRANSPORTE E RETIRADA DO MATERIAL REMOVIDO NÃO REAPROVEITÁVEL | C53: m2 | D53: 16.75
A54: ED-48494 | B54: REMOÇÃO MANUAL DE FOLHA DE PORTA OU JANELA DE MADEIRA OU METÁLICA, COM REAPROVEITAMENTO, INCLUSIVE AFASTAMENTO E EMPILHAMENTO, EXCLUSIVE TRANSPORTE E RETIRADA DO MATERIAL REMOVIDO NÃO REAPROVEITÁVEL | C54: m2 | D54: 8.15
A55: ED-48495 | B55: REMOÇÃO MANUAL DE MARCO EM MADEIRA OU METÁLICO, COM REAPROVEITAMENTO, INCLUSIVE AFASTAMENTO E EMPILHAMENTO, EXCLUSIVE TRANSPORTE E RETIRADA DO MATERIAL REMOVIDO NÃO REAPROVEITÁVEL | C55: un | D55: 16
A56: 8711 | B56: DEMOLIÇÃO DE IMPERMEABILIZAÇÃO
A57: ED-48465 | B57: DEMOLIÇÃO MANUAL DE IMPERMEABILIZAÇÃO E PROTEÇÃO MECÂNICA, INCLUSIVE AFASTAMENTO E EMPILHAMENTO, EXCLUSIVE TRANSPORTE E RETIRADA DO MATERIAL DEMOLIDO | C57: m2 | D57: 24.69
A58: 8712 | B58: REMOÇÃO DE LOUÇA E ACESSÓRIOS
A59: ED-48467 | B59: REMOÇÃO DE LOUÇAS (LAVATÓRIO, BANHEIRA, PIA, VASO SANITÁRIO, TANQUE), COM REAPROVEITAMENTO, INCLUSIVE AFASTAMENTO E EMPILHAMENTO, EXCLUSIVE TRANSPORTE E RETIRADA DO MATERIAL REMOVIDO NÃO REAPROVEITÁVEL | C59: un | D59: 38.25
A60: ED-48470 | B60: REMOÇÃO MANUAL DE METAIS COMUNS E ACABAMENTOS (TORNEIRA, ACABAMENTO PARA REGISTRO, SIFÃO, ENGATE FLEXÍVEL, ETC.), COM REAPROVEITAMENTO, INCLUSIVE AFASTAMENTO E EMPILHAMENTO, EXCLUSIVE TRANSPORTE E RETIRADA DO MATERIAL REMOVIDO NÃO REAPROVEITÁVEL | C60: un | D60: 5.71
A61: ED-48471 | B61: REMOÇÃO MANUAL DE METAIS EMBUTIDOS (BASE DE REGISTRO, VÁLVULA DE DESCARGA, TORNEIRA ANTIVANDALISMO, ETC.), COM REAPROVEITAMENTO, INCLUSIVE AFASTAMENTO E EMPILHAMENTO, EXCLUSIVE TRANSPORTE E RETIRADA DO MATERIAL REMOVIDO NÃO REAPROVEITÁVEL | C61: un | D61: 18.29
A62: 8713 | B62: DEMOLIÇÃO E REMOÇÃO DE DIVISÓRIA E BANCADA
A63: ED-48452 | B63: DEMOLIÇÃO MANUAL DE ALVENARIA/DIVISÓRIA DE ELEMENTOS VAZADOS (COBOGÓ, ETC. ), INCLUSIVE AFASTAMENTO E EMPILHAMENTO, EXCLUSIVE TRANSPORTE E RETIRADA DO MATERIAL DEMOLIDO | C63: m2 | D63: 15.87
A64: ED-48453 | B64: DEMOLIÇÃO MANUAL DE DIVISÓRIA COMERCIAL EM LAMINADO, INCLUSIVE AFASTAMENTO E EMPILHAMENTO, EXCLUSIVE TRANSPORTE E RETIRADA DO MATERIAL DEMOLIDO | C64: m2 | D64: 6.35
A65: ED-8024 | B65: DEMOLIÇÃO MANUAL DE DIVISÓRIA DE MADEIRA, INCLUSIVE AFASTAMENTO E EMPILHAMENTO, EXCLUSIVE TRANSPORTE E RETIRADA DO MATERIAL DEMOLIDO | C65: m2 | D65: 9.66
A66: ED-48437 | B66: REMOÇÃO MANUAL DE BANCADA DE PEDRA (MÁRMORE, GRANITO, ARDÓSIA, MARMORITE, ETC.), COM REAPROVEITAMENTO, INCLUSIVE RASGO EM ALVENARIA, REMOÇÃO DE ACESSÓRIOS DE FIXAÇÃO, AFASTAMENTO E EMPILHAMENTO, EXCLUSIVE TRANSPORTE E RETIRADA DO MATERIAL REMOVIDO NÃO REAPROVEITÁVEL | C66: m2 | D66: 47.73
A67: ED-28348 | B67: REMOÇÃO MANUAL DE DIVISÓRIA EM PEDRA (MÁRMORE, GRANITO, ARDÓSIA, MARMORITE, ETC.), COM REAPROVEITAMENTO, INCLUSIVE RASGO EM ALVENARIA, REMOÇÃO DE ACESSÓRIOS DE FIXAÇÃO, AFASTAMENTO E EMPILHAMENTO, EXCLUSIVE TRANSPORTE E RETIRADA DO MATERIAL REMOVIDO NÃO REAPROVEITÁVEL | C67: m2 | D67: 39.81
A68: 8714 | B68: DEMOLIÇÃO DE ALVENARIA
A69: ED-48436 | B69: DEMOLIÇÃO MANUAL DE ALVENARIA DE TIJOLO CERÂMICO MACIÇO, INCLUSIVE AFASTAMENTO E EMPILHAMENTO, EXCLUSIVE TRANSPORTE E RETIRADA DO MATERIAL DEMOLIDO | C69: m3 | D69: 137.05
A70: ED-48435 | B70: DEMOLIÇÃO MANUAL DE ALVENARIA DE TIJOLO CERÂMICO OU BLOCO DE CONCRETO, INCLUSIVE AFASTAMENTO E EMPILHAMENTO, EXCLUSIVE TRANSPORTE E RETIRADA DO MATERIAL DEMOLIDO | C70: m3 | D70: 94.22
A71: ED-28338 | B71: DEMOLIÇÃO MANUAL DE CONSTRUÇÃO EM ALVENARIAS DE VEDAÇÃO, COM ESPESSURA MÁXIMA DE 15CM, INCLUSIVE REMOÇÃO COM REAPROVEITAMENTO DE ESQUADRIAS, AFASTAMENTO E EMPILHAMENTO, EXCLUSIVE TRANSPORTE E RETIRADA DO MATERIAL DEMOLIDO/REMOVIDO NÃO REAPROVEITÁVEL | C71: m2 | D71: 14.94
A72: 8715 | B72: DEMOLIÇÃO DE CONCRETO
A73: ED-48441 | B73: DEMOLIÇÃO MANUAL DE CONCRETO ARMADO, INCLUSIVE AFASTAMENTO E EMPILHAMENTO, EXCLUSIVE TRANSPORTE E RETIRADA DO MATERIAL DEMOLIDO | C73: m3 | D73: 430.72
A74: ED-48440 | B74: DEMOLIÇÃO MANUAL DE CONCRETO, SEM ARMAÇÃO, INCLUSIVE AFASTAMENTO E EMPILHAMENTO, EXCLUSIVE TRANSPORTE E RETIRADA DO MATERIAL DEMOLIDO | C74: m3 | D74: 261.04
A75: ED-48443 | B75: DEMOLIÇÃO MECANIZADA DE CONCRETO ARMADO, COM EQUIPAMENTO ELÉTRICO, INCLUSIVE AFASTAMENTO E EMPILHAMENTO, EXCLUSIVE TRANSPORTE E RETIRADA DO MATERIAL DEMOLIDO | C75: m3 | D75: 226.76
A76: ED-48445 | B76: DEMOLIÇÃO MECANIZADA DE CONCRETO ARMADO, COM EQUIPAMENTO PNEUMÁTICO, INCLUSIVE AFASTAMENTO E EMPILHAMENTO, EXCLUSIVE TRANSPORTE E RETIRADA DO MATERIAL DEMOLIDO | C76: m3 | D76: 337.02
A77: ED-48442 | B77: DEMOLIÇÃO MECANIZADA DE CONCRETO, SEM ARMAÇÃO, COM EQUIPAMENTO ELÉTRICO, INCLUSIVE AFASTAMENTO E EMPILHAMENTO, EXCLUSIVE TRANSPORTE E RETIRADA DO MATERIAL DEMOLIDO | C77: m3 | D77: 139.71
A78: ED-48444 | B78: DEMOLIÇÃO MECANIZADA DE CONCRETO, SEM ARMAÇÃO, COM EQUIPAMENTO PNEUMÁTICO, INCLUSIVE AFASTAMENTO E EMPILHAMENTO, EXCLUSIVE TRANSPORTE E RETIRADA DO MATERIAL DEMOLIDO | C78: m3 | D78: 206.53
A79: 8716 | B79: REMOÇÃO DE PADRÃO CONCESSIONÁRIA
A80: ED-48475 | B80: REMOÇÃO MANUAL DE PADRÃO DE ENTRADA DE ÁGUA, COM REAPROVEITAMENTO, INCLUSIVE AFASTAMENTO E EMPILHAMENTO, EXCLUSIVE TRANSPORTE E RETIRADA DO MATERIAL REMOVIDO NÃO REAPROVEITÁVEL | C80: un | D80: 87.43
A81: ED-48474 | B81: REMOÇÃO MANUAL DE PADRÃO DE ENTRADA DE ENERGIA, COM REAPROVEITAMENTO, INCLUSIVE AFASTAMENTO E EMPILHAMENTO, EXCLUSIVE TRANSPORTE E RETIRADA DO MATERIAL REMOVIDO NÃO REAPROVEITÁVEL | C81: un | D81: 220.2
A82: 8717 | B82: DEMOLIÇÃO E REMOÇÃO DE PAVIMENTAÇÃO
A83: ED-48487 | B83: DEMOLIÇÃO MANUAL DE LAJE DE CONCRETO ARMADO, COM ESPESSURA DE ATÉ 15CM, INCLUSIVE AFASTAMENTO E EMPILHAMENTO, EXCLUSIVE TRANSPORTE E RETIRADA DO MATERIAL DEMOLIDO | C83: m2 | D83: 37.69
A84: ED-48507 | B84: DEMOLIÇÃO MANUAL DE SARJETA OU SARJETÃO DE CONCRETO, INCLUSIVE AFASTAMENTO E EMPILHAMENTO, EXCLUSIVE TRANSPORTE E RETIRADA DO MATERIAL DEMOLIDO | C84: m2 | D84: 9.42
A85: ED-48489 | B85: DEMOLIÇÃO MECANIZADA DE LAJE DE CONCRETO ARMADO, COM ESPESSURA DE ATÉ 15CM, , COM EQUIPAMENTO ELÉTRICO, INCLUSIVE AFASTAMENTO E EMPILHAMENTO, EXCLUSIVE TRANSPORTE E RETIRADA DO MATERIAL DEMOLIDO | C85: m2 | D85: 20.6
A86: ED-48486 | B86: DEMOLIÇÃO MECANIZADA DE LAJE DE CONCRETO ARMADO, COM ESPESSURA DE ATÉ 15CM, , COM EQUIPAMENTO PNEUMÁTICO, INCLUSIVE AFASTAMENTO E EMPILHAMENTO, EXCLUSIVE TRANSPORTE E RETIRADA DO MATERIAL DEMOLIDO | C86: m2 | D86: 30.02
A87: ED-48492 | B87: DEMOLIÇÃO MECANIZADA DE REVESTIMENTO ASFÁLTICO, COM EQUIPAMENTO PNEUMÁTICO, INCLUSIVE AFASTAMENTO E EMPILHAMENTO, EXCLUSIVE TRANSPORTE E RETIRADA DO MATERIAL DEMOLIDO | C87: m2 | D87: 9.94
A88: ED-48490 | B88: REMOÇÃO MANUAL DE ALVENARIA POLIÉDRICA, COM REAPROVEITAMENTO, INCLUSIVE AFASTAMENTO E EMPILHAMENTO, EXCLUSIVE TRANSPORTE E RETIRADA DO MATERIAL REMOVIDO NÃO REAPROVEITÁVEL | C88: m2 | D88: 12.85
A89: ED-48488 | B89: REMOÇÃO MANUAL DE CALÇADA PORTUGUESA, COM REAPROVEITAMENTO, INCLUSIVE AFASTAMENTO E EMPILHAMENTO, EXCLUSIVE TRANSPORTE E RETIRADA DO MATERIAL REMOVIDO NÃO REAPROVEITÁVEL | C89: m2 | D89: 7.77
A90: ED-48473 | B90: REMOÇÃO MANUAL DE GUIA DE MEIO-FIO EM PEDRA (GNAISSE, BASALTO, ETC.), COM REAPROVEITAMENTO, INCLUSIVE AFASTAMENTO E EMPILHAMENTO, EXCLUSIVE TRANSPORTE E RETIRADA DO MATERIAL REMOVIDO NÃO REAPROVEITÁVEL | C90: m | D90: 18.84
A91: ED-48472 | B91: REMOÇÃO MANUAL DE GUIA DE MEIO-FIO PRÉ-MOLDADA EM CONCRETO, COM REAPROVEITAMENTO, INCLUSIVE AFASTAMENTO E EMPILHAMENTO, EXCLUSIVE TRANSPORTE E RETIRADA DO MATERIAL REMOVIDO NÃO REAPROVEITÁVEL | C91: m | D91: 10.05
A92: ED-48476 | B92: REMOÇÃO MANUAL DE PAVIMENTAÇÃO INTERTRAVADA OU SEXTAVADO EM PRÉ-MOLDADO DE CONCRETO, COM REAPROVEITAMENTO, INCLUSIVE AFASTAMENTO E EMPILHAMENTO, EXCLUSIVE TRANSPORTE E RETIRADA DO MATERIAL REMOVIDO NÃO REAPROVEITÁVEL | C92: m2 | D92: 12.85
A93: ED-48491 | B93: REMOÇÃO MANUAL DE PAVIMENTO PARALELEPÍPEDO, COM REAPROVEITAMENTO, INCLUSIVE AFASTAMENTO E EMPILHAMENTO, EXCLUSIVE TRANSPORTE E RETIRADA DO MATERIAL REMOVIDO NÃO REAPROVEITÁVEL | C93: m2 | D93: 14.39
A94: 8718 | B94: DEMOLIÇÃO E REMOÇÃO DE REVESTIMENTO
A95: ED-48504 | B95: DEMOLIÇÃO MANUAL DE LAMINADO MELAMÍNICO EM SUPERFÍCIE DE MADEIRA OU PAREDE, INCLUSIVE AFASTAMENTO E EMPILHAMENTO, EXCLUSIVE TRANSPORTE E RETIRADA DO MATERIAL DEMOLIDO | C95: m2 | D95: 9.42
A96: ED-48501 | B96: DEMOLIÇÃO MANUAL DE REBOCO OU EMBOÇO, COM ESPESSURA DE ATÉ 55MM, INCLUSIVE AFASTAMENTO E EMPILHAMENTO, EXCLUSIVE TRANSPORTE E RETIRADA DO MATERIAL DEMOLIDO | C96: m2 | D96: 8.89
A97: ED-48502 | B97: DEMOLIÇÃO MANUAL DE REVESTIMENTO CERÂMICO, AZULEJO OU LADRILHO HIDRÁULICO, INCLUSIVE AFASTAMENTO E EMPILHAMENTO, EXCLUSIVE DEMOLIÇÃO DO REBOCO OU EMBOÇO, TRANSPORTE E RETIRADA DO MATERIAL DEMOLIDO | C97: m2 | D97: 18.52
A98: ED-48503 | B98: DEMOLIÇÃO MANUAL DE REVESTIMENTO DE PEDRA (MÁRMORE, GRANITO, ARDÓSIA, ETC.), INCLUSIVE AFASTAMENTO E EMPILHAMENTO, EXCLUSIVE DEMOLIÇÃO DO REBOCO OU EMBOÇO, TRANSPORTE E RETIRADA DO MATERIAL DEMOLIDO | C98: m2 | D98: 22.22
A99: ED-48478 | B99: REMOÇÃO MANUAL DE PEITORIL DE MÁRMORE OU GRANITO, COM REAPROVEITAMENTO, INCLUSIVE AFASTAMENTO E EMPILHAMENTO, EXCLUSIVE TRANSPORTE E RETIRADA DO MATERIAL REMOVIDO NÃO REAPROVEITÁVEL | C99: m | D99: 7.28
A100: 8719 | B100: DEMOLIÇÃO E REMOÇÃO DE PISO
A101: ED-48480 | B101: DEMOLIÇÃO MANUAL DE PISO CERÂMICO OU LADRILHO HIDRÁULICO, INCLUSIVE AFASTAMENTO E EMPILHAMENTO, EXCLUSIVE DEMOLIÇÃO DE CONTRAPISO, TRANSPORTE E RETIRADA DO MATERIAL DEMOLIDO | C101: m2 | D101: 14.82
A102: ED-48479 | B102: DEMOLIÇÃO MANUAL DE PISO CIMENTADO OU CONTRAPISO DE ARGAMASSA, COM ESPESSURA MÁXIMA DE 10CM, INCLUSIVE AFASTAMENTO E EMPILHAMENTO, EXCLUSIVE TRANSPORTE E RETIRADA DO MATERIAL DEMOLIDO | C102: m2 | D102: 15.87
A103: ED-48481 | B103: DEMOLIÇÃO MANUAL DE PISO DE PEDRAS (MÁRMORE, GRANITO, ARDÓSIA, ETC.), INCLUSIVE AFASTAMENTO E EMPILHAMENTO, EXCLUSIVE DEMOLIÇÃO DE CONTRAPISO, TRANSPORTE E RETIRADA DO MATERIAL DEMOLIDO | C103: m2 | D103: 18.52
A104: ED-48483 | B104: DEMOLIÇÃO MANUAL DE PISO EM GRANILITE/MARMORITE, INCLUSIVE AFASTAMENTO E EMPILHAMENTO, EXCLUSIVE TRANSPORTE E RETIRADA DO MATERIAL DEMOLIDO | C104: m2 | D104: 20.2
A105: ED-48482 | B105: DEMOLIÇÃO MANUAL DE PISO VINÍLICO, INCLUSIVE AFASTAMENTO E EMPILHAMENTO, EXCLUSIVE TRANSPORTE E RETIRADA DO MATERIAL DEMOLIDO | C105: m2 | D105: 7.93
A106: ED-48505 | B106: DEMOLIÇÃO MANUAL DE RODAPÉ, INCLUSIVE ARGAMASSA DE ASSENTAMENTO E AFASTAMENTO, EXCLUSIVE TRANSPORTE E RETIRADA DO MATERIAL DEMOLIDO | C106: m | D106: 2.47
A107: ED-48485 | B107: REMOÇÃO MANUAL DE PISO DE TÁBUAS, COM REAPROVEITAMENTO, INCLUSIVE AFASTAMENTO E EMPILHAMENTO, EXCLUSIVE TRANSPORTE E RETIRADA DO MATERIAL REMOVIDO NÃO REAPROVEITÁVEL | C107: m2 | D107: 22.22
A108: ED-48484 | B108: REMOÇÃO MANUAL DE PISO DE TACO DE MADEIRA, COM REAPROVEITAMENTO, INCLUSIVE AFASTAMENTO E EMPILHAMENTO, EXCLUSIVE TRANSPORTE E RETIRADA DO MATERIAL REMOVIDO NÃO REAPROVEITÁVEL | C108: m2 | D108: 19.32
A109: ED-48508 | B109: REMOÇÃO MANUAL DE SOLEIRA DE MÁRMORE OU GRANITO, COM REAPROVEITAMENTO, INCLUSIVE AFASTAMENTO E EMPILHAMENTO, EXCLUSIVE TRANSPORTE E RETIRADA DO MATERIAL REMOVIDO NÃO REAPROVEITÁVEL | C109: m | D109: 7.78
A110: 8720 | B110: REMOÇÃO DE CERCA E ALAMBRADO
A111: ED-48434 | B111: REMOÇÃO MANUAL DE ALAMBRADO METÁLICO, COM REAPROVEITAMENTO, INCLUSIVE AFASTAMENTO E EMPILHAMENTO, EXCLUSIVE TRANSPORTE E RETIRADA DO MATERIAL REMOVIDO NÃO REAPROVEITÁVEL | C111: m2 | D111: 17.1
A112: ED-48439 | B112: REMOÇÃO MANUAL DE CERCA, COM REAPROVEITAMENTO, INCLUSIVE AFASTAMENTO E EMPILHAMENTO, EXCLUSIVE TRANSPORTE E RETIRADA DO MATERIAL REMOVIDO NÃO REAPROVEITÁVEL | C112: m2 | D112: 14.82
A113: ED-48449 | B113: REMOÇÃO MANUAL DE CONCERTINA, COM DIÂMETRO DE ATÉ 730MM, COM REAPROVEITAMENTO, INCLUSIVE AFASTAMENTO E EMPILHAMENTO, EXCLUSIVE TRANSPORTE E RETIRADA DO MATERIAL REMOVIDO NÃO REAPROVEITÁVEL | C113: m | D113: 2.51
A114: 8721 | B114: REMOÇÃO DE VIDRO
A115: ED-48516 | B115: REMOÇÃO MANUAL DE VIDRO EM ESQUADRIAS, COM REAPROVEITAMENTO, INCLUSIVE LIMPEZA DO ENCAIXE, AFASTAMENTO E EMPILHAMENTO, EXCLUSIVE TRANSPORTE E RETIRADA DO MATERIAL REMOVIDO NÃO REAPROVEITÁVEL | C115: m2 | D115: 5.9
A116: 8722 | B116: REMOÇÃO DE ITEM ESCOLAR
A117: ED-48498 | B117: REMOÇÃO MANUAL DE QUADRO NEGRO, COM REAPROVEITAMENTO, INCLUSIVE AFASTAMENTO E EMPILHAMENTO, EXCLUSIVE TRANSPORTE E RETIRADA DO MATERIAL REMOVIDO NÃO REAPROVEITÁVEL | C117: m2 | D117: 25.13
A118: 8664 | B118: INSTALAÇÕES PROVISÓRIAS
A119: 8723 | B119: PLACA DE OBRA
A120: ED-16660 | B120: FORNECIMENTO E COLOCAÇÃO DE PLACA DE OBRA EM CHAPA GALVANIZADA #26, ESP. 0,45 MM, PLOTADA COM ADESIVO VINÍLICO, AFIXADA COM REBITES 4,8X40 MM, EM ESTRUTURA METÁLICA DE METALON 20X20 MM, ESP. 1,25 MM, INCLUSIVE SUPORTE EM EUCALIPTO AUTOCLAVADO PINTADO COM TINTA PVA DUAS (2) DEMÃOS | C120: m2 | D120: 302.03
A121: ED-28427 | B121: FORNECIMENTO E COLOCAÇÃO DE PLACA DE OBRA EM CHAPA GALVANIZADA #26, ESP. 0,45MM, DIMENSÃO (3X1,5)M, PLOTADA COM ADESIVO VINÍLICO, AFIXADA COM REBITES 4,8X40MM, EM ESTRUTURA METÁLICA DE METALON 20X20MM, ESP. 1,25MM, INCLUSIVE SUPORTE EM EUCALIPTO AUTOCLAVADO PINTADO COM TINTA PVA DUAS (2) DEMÃOS | C121: un | D121: 1359.14
A122: ED-28428 | B122: FORNECIMENTO E COLOCAÇÃO DE PLACA DE OBRA EM CHAPA GALVANIZADA #26, ESP. 0,45MM, DIMENSÃO (4X3)M, PLOTADA COM ADESIVO VINÍLICO, AFIXADA COM REBITES 4,8X40MM, EM ESTRUTURA METÁLICA DE METALON 20X20MM, ESP. 1,25MM, INCLUSIVE SUPORTE EM EUCALIPTO AUTOCLAVADO PINTADO COM TINTA PVA DUAS (2) DEMÃOS | C122: un | D122: 3624.36
A123: ED-28429 | B123: FORNECIMENTO E COLOCAÇÃO DE PLACA DE OBRA EM CHAPA GALVANIZADA #26, ESP. 0,45MM, DIMENSÃO (6X3)M, PLOTADA COM ADESIVO VINÍLICO, AFIXADA COM REBITES 4,8X40MM, EM ESTRUTURA METÁLICA DE METALON 20X20MM, ESP. 1,25MM, INCLUSIVE SUPORTE EM EUCALIPTO AUTOCLAVADO PINTADO COM TINTA PVA DUAS (2) DEMÃOS | C123: un | D123: 5436.54
A124: 8724 | B124: INSTALAÇÃO PROVISÓRIA ÁGUA E ENERGIA
A125: ED-50150 | B125: LIGAÇÃO DE ÁGUA PROVISÓRIA PARA CANTEIRO, INCLUSIVE HIDRÔMETRO E CAVALETE PARA MEDIÇÃO DE ÁGUA - ENTRADA PRINCIPAL, EM AÇO GALVANIZADO DN 20MM (1/2") - PADRÃO CONCESSIONÁRIA | C125: un | D125: 381.49
A126: ED-31745 | B126: LIGAÇÃO DE ESGOTO PARA BARRACÃO DE OBRA EM CANTEIRO, EXCLUSIVE FOSSA SÉPTICA | C126: un | D126: 759.63
A127: ED-50151 | B127: LIGAÇÃO PROVISÓRIA COM ENTRADA DE ENERGIA AÉREA, PADRÃO CEMIG, CARGA INSTALADA DE 15,1KVA ATÉ 30KVA, TRIFÁSICO, COM SAÍDA SUBTERRÂNEA, INCLUSIVE POSTE, CAIXA PARA MEDIDOR, DISJUNTOR, BARRAMENTO, ATERRAMENTO E ACESSÓRIOS | C127: un | D127: 1149.16
A128: 8725 | B128: ESCRITÓRIO DE OBRA
A129: ED-50125 | B129: ÁREA COBERTA EM TELHA FIBROCIMENTO PARA CENTRAL DE CORTE/DOBRA/MONTAGEM EM CANTEIRO DE OBRAS, INCLUSIVE BANCADA E INSTALAÇÕES ELÉTRICAS, EXCLUSIVE VEDAÇÕES LATERAIS | C129: m2 | D129: 125.31
A130: ED-50135 | B130: BARRACÃO DE OBRA, EM CHAPA DE COMPENSADO RESINADO, INCLUSIVE INSTALAÇÕES SANITÁRIAS E MOBILIÁRIO - PADRÃO DER-MG | C130: m2 | D130: 554.14
A131: ED-50128 | B131: BARRACÃO DE OBRA PARA DEPÓSITO E FERRAMENTARIA TIPO-I, ÁREA INTERNA 14,52M2, EM CHAPA DE COMPENSADO RESINADO, INCLUSIVE MOBILIÁRIO (OBRA DE PEQUENO PORTE, EFETIVO ATÉ 30 HOMENS), PADRÃO DER-MG | C131: un | D131: 7404.16
A132: ED-50129 | B132: BARRACÃO DE OBRA PARA DEPÓSITO E FERRAMENTARIA TIPO-II, ÁREA INTERNA 25,41M2, EM CHAPA DE COMPENSADO RESINADO, INCLUSIVE MOBILIÁRIO (OBRA DE MÉDIO PORTE, EFETIVO DE 30 A 60 HOMENS), PADRÃO DER-MG | C132: un | D132: 12203.19
A133: ED-50148 | B133: BARRACÃO DE OBRA PARA ESCRITÓRIO DA EMPREITEIRA TIPO-I, ÁREA INTERNA 18,15M2, EM CHAPA DE COMPENSADO RESINADO, INCLUSIVE MOBILIÁRIO (OBRA DE PEQUENO A MÉDIO PORTE, EFETIVO ATÉ 60 HOMENS) - PADRÃO DER-MG | C133: un | D133: 10041.16
A134: ED-50149 | B134: BARRACÃO DE OBRA PARA ESCRITÓRIO DA EMPREITEIRA TIPO-II, ÁREA INTERNA 21,78M2, EM CHAPA DE COMPENSADO RESINADO, INCLUSIVE MOBILIÁRIO (OBRA DE GRANDE PORTE, EFETIVO ACIMA 60 HOMENS) - PADRÃO DER-MG | C134: un | D134: 11583.07
A135: ED-50146 | B135: BARRACÃO DE OBRA PARA ESCRITÓRIO DA FISCALIZAÇÃO TIPO-I, ÁREA INTERNA 18,15M2, EM CHAPA DE COMPENSADO RESINADO, INCLUSIVE MOBILIÁRIO (OBRA DE PEQUENO A MÉDIO PORTE, EFETIVO ATÉ 60 HOMENS) - PADRÃO DER-MG | C135: un | D135: 9869.84
A136: ED-50147 | B136: BARRACÃO DE OBRA PARA ESCRITÓRIO DA FISCALIZAÇÃO TIPO-II, ÁREA INTERNA 21,78M2, EM CHAPA DE COMPENSADO RESINADO, INCLUSIVE MOBILIÁRIO (OBRA DE GRANDE PORTE, EFETIVO ACIMA 60 HOMENS) - PADRÃO DER-MG | C136: un | D136: 11411.74
A137: ED-50130 | B137: BARRACÃO DE OBRA PARA INSTALAÇÃO SANITÁRIA TIPO-I, ÁREA INTERNA 14,52M2, EM CHAPA DE COMPENSADO RESINADO (OBRA DE PEQUENO PORTE, EFETIVO ATÉ 30 HOMENS), PADRÃO DER-MG | C137: un | D137: 8192.2
A138: ED-50131 | B138: BARRACÃO DE OBRA PARA INSTALAÇÃO SANITÁRIA TIPO-II, ÁREA INTERNA 18,15M2, EM CHAPA DE COMPENSADO RESINADO (OBRA DE MÉDIO PORTE, EFETIVO DE 30 A 60 HOMENS), PADRÃO DER-MG | C138: un | D138: 10484.33
A139: ED-50132 | B139: BARRACÃO DE OBRA PARA INSTALAÇÃO SANITÁRIA TIPO-III, ÁREA INTERNA 25,41M2, EM CHAPA DE COMPENSADO RESINADO (OBRA DE GRANDE PORTE, EFETIVO ACIMA DE 60 HOMENS), PADRÃO DER-MG | C139: un | D139: 14847.1
A140: ED-50133 | B140: BARRACÃO DE OBRA PARA REFEITÓRIO TIPO-I, ÁREA INTERNA 18,15M2, EM CHAPA DE COMPENSADO RESINADO (OBRA DE MÉDIO PORTE, EFETIVO DE 30 A 60 HOMENS), PADRÃO DER-MG | C140: un | D140: 9250.89
A141: ED-50134 | B141: BARRACÃO DE OBRA PARA REFEITÓRIO TIPO-II, ÁREA INTERNA 25,41M2, EM CHAPA DE COMPENSADO RESINADO (OBRA DE GRANDE PORTE, EFETIVO ACIMA DE 60 HOMENS), PADRÃO DER-MG | C141: un | D141: 12459.57
A142: ED-50126 | B142: BARRACÃO DE OBRA PARA VESTIÁRIO TIPO-I, ÁREA INTERNA 25,41M2, EM CHAPA DE COMPENSADO RESINADO, INCLUSIVE MOBILIÁRIO (OBRA DE PEQUENO PORTE, EFETIVO ATÉ 30 HOMENS), PADRÃO DER-MG | C142: un | D142: 13652.24
A143: ED-50127 | B143: BARRACÃO DE OBRA PARA VESTIÁRIO TIPO-II, ÁREA INTERNA 67,76M2, EM CHAPA DE COMPENSADO RESINADO, INCLUSIVE MOBILIÁRIO (OBRA DE MÉDIO PORTE, EFETIVO DE 30 A 60 HOMENS), PADRÃO DER-MG | C143: un | D143: 26781.22
A144: ED-16341 | B144: LIGAÇÃO PROVISÓRIA DE ÁGUA E ESGOTO PARA CONTAINER (ESCRITÓRIO DE OBRA) | C144: un | D144: 290.05
A145: ED-16343 | B145: LIGAÇÃO PROVISÓRIA DE ÁGUA E ESGOTO PARA CONTAINER (VESTIÁRIO DE OBRA), EXCLUSIVE CHUVEIRO ELÉTRICO | C145: un | D145: 342.58
A146: ED-16342 | B146: LIGAÇÃO PROVISÓRIA DE ENERGIA ELÉTRICA PARA CONTAINER | C146: un | D146: 310.92
A147: ED-16356 | B147: LIGAÇÕES PROVISÓRIAS PARA CONTAINER TIPO 1 (CORRESPONDENTE AO CÓDIGO ED-16348) | C147: un | D147: 310.92
A148: ED-16357 | B148: LIGAÇÕES PROVISÓRIAS PARA CONTAINER TIPO 2 (CORRESPONDENTE AO CÓDIGO ED-16349) | C148: un | D148: 600.97
A149: ED-16358 | B149: LIGAÇÕES PROVISÓRIAS PARA CONTAINER TIPO 3 (CORRESPONDENTE AO CÓDIGO ED-16350) | C149: un | D149: 310.92
A150: ED-16359 | B150: LIGAÇÕES PROVISÓRIAS PARA CONTAINER TIPO 4 (CORRESPONDENTE AO CÓDIGO ED-16351) | C150: un | D150: 310.92
A151: ED-16360 | B151: LIGAÇÕES PROVISÓRIAS PARA CONTAINER TIPO 5 (CORRESPONDENTE AO CÓDIGO ED-16352) | C151: un | D151: 1039.1
A152: ED-16361 | B152: LIGAÇÕES PROVISÓRIAS PARA CONTAINER TIPO 6 (CORRESPONDENTE AO CÓDIGO ED-16353) | C152: un | D152: 653.5
A153: ED-16362 | B153: LIGAÇÕES PROVISÓRIAS PARA CONTAINER TIPO 7 (CORRESPONDENTE AO CÓDIGO ED-16354) | C153: un | D153: 873.84
A154: ED-16363 | B154: LIGAÇÕES PROVISÓRIAS PARA CONTAINER TIPO 8 (CORRESPONDENTE AO CÓDIGO ED-16355) | C154: un | D154: 310.92
A155: ED-50155 | B155: LOCAÇÃO DE BANHEIRO QUÍMICO, DIMENSÃO (110X120X230)CM, LINHA PADRÃO, CONTENDO UMA (1) PIA/HIGIENIZADOR DE MÃOS, INCLUSIVE MANUTENÇÃO E MOBILIZAÇÃO/DESMOBILIZAÇÃO | C155: mês | D155: 843.01
A156: ED-16348 | B156: LOCAÇÃO DE CONTAINER COM ISOLAMENTO TÉRMICO, TIPO 1, PARA ESCRITÓRIO DE OBRA, COM MEDIDAS REFERENCIAIS DE (6) METROS COMPRIMENTO, (2,3) METROS LARGURA E (2,5) METROS ALTURA ÚTIL INTERNA, INCLUSIVE AR CONDICIONADO E LIGAÇÕES ELÉTRICAS INTERNAS, EXCLUSIVE MOBILIZAÇÃO/DESMOBILIZAÇÃO E LIGAÇÕES PROVISÓRIAS EXTERNAS | C156: mês | D156: 974.82
A157: ED-16349 | B157: LOCAÇÃO DE CONTAINER COM ISOLAMENTO TÉRMICO, TIPO 2, PARA ESCRITÓRIO DE OBRA COM SANITÁRIO CONTENDO UM (1) VASO SANITÁRIO E UM (1) LAVATÓRIO, COM MEDIDAS REFERENCIAIS DE (6) METROS COMPRIMENTO, (2,3) METROS LARGURA E (2,5) METROS ALTURA ÚTIL INTERNA, INCLUSIVE AR CONDICIONADO E LIGAÇÕES ELÉTRICAS E HIDROSSANITÁRIAS INTERNAS, EXCLUSIVE MOBILIZAÇÃO/DESMOBILIZAÇÃO E LIGAÇÕES PROVISÓRIAS EXTERNAS | C157: mês | D157: 1177.42
A158: ED-16350 | B158: LOCAÇÃO DE CONTAINER COM ISOLAMENTO TÉRMICO, TIPO 3, PARA DEPÓSITO/FERRAMENTARIA DE OBRA, COM MEDIDAS REFERENCIAIS DE (6) METROS COMPRIMENTO, (2,3) METROS LARGURA E (2,5) METROS ALTURA ÚTIL INTERNA, INCLUSIVE LIGAÇÕES ELÉTRICAS INTERNAS, EXCLUSIVE MOBILIZAÇÃO/DESMOBILIZAÇÃO E LIGAÇÕES PROVISÓRIAS EXTERNAS | C158: mês | D158: 900.76
A159: ED-16351 | B159: LOCAÇÃO DE CONTAINER COM ISOLAMENTO TÉRMICO, TIPO 4, PARA REFEITÓRIO DE OBRA, COM MEDIDAS REFERENCIAIS DE (6) METROS COMPRIMENTO, (2,3) METROS LARGURA E (2,5) METROS ALTURA ÚTIL INTERNA, INCLUSIVE LIGAÇÕES ELÉTRICAS INTERNAS, EXCLUSIVE MOBILIZAÇÃO/DESMOBILIZAÇÃO E LIGAÇÕES PROVISÓRIAS EXTERNAS | C159: mês | D159: 792.95
A160: ED-16352 | B160: LOCAÇÃO DE CONTAINER COM ISOLAMENTO TÉRMICO, TIPO 5, PARA VESTIÁRIO DE OBRA COM SETE (7) CHUVEIROS E DOIS (2) LAVATÓRIOS, COM MEDIDAS REFERENCIAIS DE (6) METROS COMPRIMENTO, (2,3) METROS LARGURA E (2,5) METROS ALTURA ÚTIL INTERNA, INCLUSIVE LIGAÇÕES ELÉTRICAS E HIDROSSANITÁRIAS INTERNAS, EXCLUSIVE MOBILIZAÇÃO/DESMOBILIZAÇÃO E LIGAÇÕES PROVISÓRIAS EXTERNAS | C160: mês | D160: 1127.52
A161: ED-16353 | B161: LOCAÇÃO DE CONTAINER COM ISOLAMENTO TÉRMICO, TIPO 6, PARA VESTIÁRIO DE OBRA COM SETE (7) VASOS SANITÁRIOS, UM (1) MICTÓRIO E UM (1) LAVATÓRIO, COM MEDIDAS REFERENCIAIS DE (6) METROS COMPRIMENTO, (2,3) METROS LARGURA E (2,5) METROS ALTURA ÚTIL INTERNA, INCLUSIVE LIGAÇÕES ELÉTRICAS E HIDROSSANITÁRIAS INTERNAS, EXCLUSIVE MOBILIZAÇÃO/DESMOBILIZAÇÃO E LIGAÇÕES PROVISÓRIAS EXTERNAS | C161: mês | D161: 1085.12
A162: ED-16354 | B162: LOCAÇÃO DE CONTAINER COM ISOLAMENTO TÉRMICO, TIPO 7, PARA VESTIÁRIO DE OBRA COM QUATRO (4) CHUVEIROS, TRÊS (3) VASOS SANITÁRIOS, UM (1) MICTÓRIO E UM (1) LAVATÓRIO, COM MEDIDAS REFERENCIAIS DE (6) METROS COMPRIMENTO, (2,3) METROS LARGURA E (2,5) METROS ALTURA ÚTIL INTERNA, INCLUSIVE LIGAÇÕES ELÉTRICAS E HIDROSSANITÁRIAS INTERNAS, EXCLUSIVE MOBILIZAÇÃO/DESMOBILIZAÇÃO E LIGAÇÕES PROVISÓRIAS EXTERNAS | C162: mês | D162: 1091.5
A163: ED-16355 | B163: LOCAÇÃO DE CONTAINER COM ISOLAMENTO TÉRMICO, TIPO 8, PARA VESTIÁRIO DE OBRA COM OITO (8) BANCOS E CINCO (5) ARMÁRIOS, COM MEDIDAS REFERENCIAIS DE (6) METROS COMPRIMENTO, (2,3) METROS LARGURA E (2,5) METROS ALTURA ÚTIL INTERNA, INCLUSIVE LIGAÇÕES ELÉTRICAS INTERNAS, EXCLUSIVE MOBILIZAÇÃO/DESMOBILIZAÇÃO E LIGAÇÕES PROVISÓRIAS EXTERNAS | C163: mês | D163: 808.96
A164: ED-50137 | B164: MOBILIZAÇÃO E DESMOBILIZAÇÃO DE CONTAINER, INCLUSIVE CARGA, DESCARGA E TRANSPORTE EM CAMINHÃO CARROCERIA COM GUINDAUTO (MUNCK), EXCLUSIVE LOCAÇÃO DO CONTAINER | C164: un | D164: 1450.14
A165: 8726 | B165: LOCAÇÃO DA OBRA
A166: ED-17989 | B166: LOCAÇÃO DE OBRA COM GABARITO DE TÁBUAS CORRIDAS PONTALETADAS A CADA 2,00M, REAPROVEITAMENTO (2X), INCLUSIVE ACOMPANHAMENTO DE EQUIPE TOPOGRÁFICA PARA MARCAÇÃO DE PONTO TOPOGRÁFICO | C166: m | D166: 40.68
A167: ED-50276 | B167: LOCAÇÃO TOPOGRÁFICA ACIMA DE CINQUENTA (50) PONTOS REFERENCIAIS, INCLUSIVE ESTACA (PIQUETE) DE MARCAÇÃO | C167: un | D167: 31.57
A168: ED-50275 | B168: LOCAÇÃO TOPOGRÁFICA DE VINTE UM (21) ATÉ CINQUENTA (50) PONTOS REFERENCIAIS, INCLUSIVE ESTACA (PIQUETE) DE MARCAÇÃO | C168: un | D168: 54.57
A169: ED-50274 | B169: LOCAÇÃO TOPOGRÁFICA PARA ATÉ VINTE (20) PONTOS REFERENCIAIS, INCLUSIVE ESTACA (PIQUETE) DE MARCAÇÃO | C169: un | D169: 72.45
A170: 8727 | B170: TAPUME
A171: ED-50162 | B171: PORTÃO PARA TAPUME FIXO DE PROTEÇÃO COM FECHAMENTO DE OBRA EM CHAPA DE COMPENSADO, ESP. 12MM, COM MÓDULO NA DIMENSÃO DE (110X220)CM, INCLUSIVE FERRAGENS E PINTURA LÁTEX (PVA) COM DUAS (2) DEMÃOS | C171: m2 | D171: 140.82
A172: ED-50166 | B172: REMANEJAMENTO DE TAPUME FIXO DE PROTEÇÃO PARA FECHAMENTO DE OBRA, INCLUSIVE ESCAVAÇÃO MANUAL E REATERRO COMPACTADO | C172: m2 | D172: 9.45
A173: ED-50163 | B173: TAPUME DE PROTEÇÃO PARA TRANSEUNTE EM TELA DE POLIETILENO, COM MÓDULO NA DIMENSÃO DE (150X150)CM, INCLUSIVE PONTALETE COM BASE DE APOIO EM CONCRETO MAGRO, FORNECIMENTO E MOVIMENTAÇÃO | C173: m | D173: 12.47
A174: ED-50159 | B174: TAPUME FIXO DE PROTEÇÃO PARA FECHAMENTO DE OBRA EM CHAPA DE COMPENSADO, ESP. 12MM, COM MÓDULO NA DIMENSÃO DE (110X220)CM, INCLUSIVE PINTURA LÁTEX (PVA) COM DUAS (2) DEMÃOS, EXCLUSIVE ABERTURA PARA PORTÃO | C174: m | D174: 179.09
A175: ED-50164 | B175: TAPUME FIXO DE PROTEÇÃO PARA FECHAMENTO DE OBRA EM TELA GALVANIZADA, COM TRAMA LOSANGULAR DE 2"X2", FIO BWG 14, COM MÓDULO NA DIMENSÃO DE (300X220)CM, INCLUSIVE PINTURA ESMALTE COM DUAS (2) DEMÃOS, EXCLUSIVE ABERTURA PARA PORTÃO | C175: m2 | D175: 73.69
A176: ED-29823 | B176: TAPUME FIXO DE PROTEÇÃO PARA FECHAMENTO DE OBRA EM TELHA METÁLICA GALVANIZADA, TIPO TRAPEZOIDAL, ESP. 0,5MM, COM MÓDULO NA DIMENSÃO DE (300X220)CM, COM REAPROVEITAMENTO, EXCLUSIVE PINTURA ESMALTE, INCLUSIVE PONTALETE E FIXAÇÃO | C176: m2 | D176: 58.17
A177: ED-50165 | B177: TAPUME REMOVÍVEL DE PROTEÇÃO PARA FECHAMENTO DE OBRA EM TELA GALVANIZADA, COM TRAMA LOSANGULAR DE 2"X2", FIO BWG 14, COM MÓDULO NA DIMENSÃO DE (300X220)CM, INCLUSIVE PONTALETE COM BASE DE APOIO EM CONCRETO MAGRO | C177: m2 | D177: 68.75
A178: 8728 | B178: PROTEÇÃO DE TRANSEUNTE
A179: ED-27006 | B179: CONE PARA SINALIZAÇÃO/ISOLAMENTO DE ÁREAS, ALTURA 75CM, INCLUSIVE FORNECIMENTO E MOVIMENTAÇÃO | C179: un | D179: 4.72
A180: ED-50157 | B180: FITA ZEBRADA AMARELA PARA SINALIZAÇÃO ISOLAMENTO DE ÁREA, EXCLUSIVE SUPORTE PARA SUSTENTAÇÃO, INCLUSIVE FIXAÇÃO E FORNECIMENTO | C180: m | D180: 2.54
A181: ED-50156 | B181: PROTEÇÃO PARA TRANSEUNTE OU ISOLAMENTO DE ÁREA COM FITA ZEBRADA AMARELA, INCLUSIVE PONTALETE COM BASE DE APOIO EM CONCRETO MAGRO, ALTURA DE 150CM, FORNECIMENTO E MOVIMENTAÇÃO | C181: m | D181: 10.24
A182: 8729 | B182: ANDAIME
A183: ED-28530 | B183: ANDAIME EM CAVALETE METÁLICO PARA ALVENARIA, COM CHAPA DE COMPENSADO E TÁBUA, COM REAPROVEITAMENTO, INCLUSIVE MONTAGEM/DESMONTAGEM E REMANEJAMENTO | C183: m | D183: 1.45
A184: ED-28533 | B184: ANDAIME EM CAVALETE METÁLICO PARA FORRO OU SERVIÇO EM ALTURA INTERNO, COM CHAPA DE COMPENSADO E TÁBUA, COM REAPROVEITAMENTO, INCLUSIVE MONTAGEM/DESMONTAGEM E REMANEJAMENTO | C184: m2 | D184: 1.32
A185: ED-48243 | B185: CONDUTOR/DUTO DE ENTULHO EM POLIETILENO, INCLUSIVE ACESSÓRIOS DE FIXAÇÃO, SUPORTES, MONTAGEM/DESMONTAGEM E REMANEJAMENTO | C185: mxmês | D185: 45.53
A186: ED-9075 | B186: FORNECIMENTO DE ANDAIME METÁLICO PARA FACHADA (LOCAÇÃO), INCLUSIVE PISO METÁLICO E SAPATAS, EXCLUSIVE MONTAGEM E DESMONTAGEM | C186: m2xmês | D186: 13.01
A187: ED-9076 | B187: FORNECIMENTO DE ANDAIME METÁLICO TUBULAR TIPO TORRE (LOCAÇÃO), INCLUSIVE RODÍZIOS, EXCLUSIVE MONTAGEM E DESMONTAGEM | C187: mxmês | D187: 20
A188: ED-48246 | B188: MONTAGEM E DESMONTAGEM DE ANDAIME METÁLICO PARA FACHADA COM PISO METÁLICO, EXCLUSIVE FORNECIMENTO DO ANDAIME E RODAPÉ/GUARDA-CORPO EM MADEIRA | C188: m2 | D188: 7.66
A189: ED-48245 | B189: MONTAGEM E DESMONTAGEM DE ANDAIME METÁLICO PARA FACHADA COM PISO METÁLICO, INCLUSIVE RODAPÉ/GUARDA-CORPO EM MADEIRA, EXCLUSIVE FORNECIMENTO DO ANDAIME | C189: m2 | D189: 10.92
A190: ED-9077 | B190: MONTAGEM E DESMONTAGEM DE ANDAIME METÁLICO TUBULAR TIPO TORRE, EXCLUSIVE FORNECIMENTO DO ANDAIME | C190: m | D190: 8.83
A191: ED-48249 | B191: TELA DE PROTEÇÃO, TIPO FACHADEIRA, INSTALADA EM ANDAIME METÁLICO PARA FACHADA, EXCLUSIVE ANDAIME METÁLICO, INCLUSIVE ACESSÓRIOS DE FIXAÇÃO | C191: m2 | D191: 12.04
A192: ED-48248 | B192: TELA PARA PROTEÇÃO DE FACHADA EM POLIETILENO, EXCLUSIVE BANDEJA SALVA VIDAS, INCLUSIVE ACESSÓRIOS DE FIXAÇÃO | C192: m2 | D192: 13.75
A193: 8730 | B193: BANDEJA DE PROTEÇÃO/SALVA VIDAS
A194: ED-28493 | B194: BANDEJA SALVA VIDAS, TIPO PRIMÁRIA, EM SUPORTE METÁLICO COM FORRO EM COMPENSADO RESINADO E TÁBUA, COMPRIMENTO DE 250CM COM COMPLEMENTO DE 80CM, INCLUSIVE ACESSÓRIOS DE FIXAÇÃO E INSTALAÇÃO | C194: m | D194: 178.2
A195: ED-28494 | B195: BANDEJA SALVA VIDAS, TIPO SECUNDÁRIA, EM SUPORTE METÁLICO COM FORRO EM COMPENSADO RESINADO E TÁBUA, COMPRIMENTO DE 140CM COM COMPLEMENTO DE 80CM, INCLUSIVE ACESSÓRIOS DE FIXAÇÃO E INSTALAÇÃO | C195: m | D195: 111.07
A196: 8665 | B196: TERRAPLENAGEM/TRABALHOS EM TERRA
A197: 8731 | B197: REGULARIZAÇÃO E COMPACTAÇÃO DE SOLO
A198: ED-51100 | B198: CORTE E DESATERRO MECÂNICO PARA REGULARIZAÇÃO, COM TRATOR DE ESTEIRA, INCLUSIVE ARRASTAMENTO NIVELADO, AFASTAMENTO E EMPILHAMENTO, EXCLUSIVE CARGA, TRANSPORTE E DESCARGA | C198: m3 | D198: 3.51
A199: ED-51122 | B199: REGULARIZAÇÃO E COMPACTAÇÃO DE TERRENO MANUAL COM SOQUETE, EXCLUSIVE DESMATAMENTO, DESTOCAMENTO, LIMPEZA/ROÇADA DO TERRENO | C199: m2 | D199: 8.87
A200: ED-51124 | B200: REGULARIZAÇÃO E COMPACTAÇÃO MECÂNICA DE TERRENO COM ROLO VIBRATÓRIO, EXCLUSIVE DESMATAMENTO, DESTOCAMENTO, LIMPEZA/ROÇADA DO TERRENO | C200: m2 | D200: 2.85
... 3449 more rows

Sheet SICRO
B1: SICRO JANEIRO 2024
A2: CÓDIGO | B2: DESCRIÇÃO | C2: UNIDADE | D2: PREÇO
A3: 307731 | B3: Aparelho de apoio de neoprene fretado para estruturas moldadas no local - fornecimento e instalação | C3: dm³ | D3: 114.38
A4: 307732 | B4: Aparelho de apoio de neoprene fretado para estruturas pré-moldadas - fornecimento e instalação | C4: dm³ | D4: 91.2
A5: 308308 | B5: Aparelho de apoio metálico elastomérico fixo com capacidade de 1.500 kN - fornecimento e instalação | C5: un | D5: 7247.13
A6: 308313 | B6: Aparelho de apoio metálico elastomérico fixo com capacidade de 10.000 kN - fornecimento e instalação | C6: un | D6: 46222.33
A7: 308309 | B7: Aparelho de apoio metálico elastomérico fixo com capacidade de 2.500 kN - fornecimento e instalação | C7: un | D7: 11769.22
A8: 308310 | B8: Aparelho de apoio metálico elastomérico fixo com capacidade de 4.000 kN - fornecimento e instalação | C8: un | D8: 17735.28
A9: 308311 | B9: Aparelho de apoio metálico elastomérico fixo com capacidade de 5.500 kN - fornecimento e instalação | C9: un | D9: 24354.18
A10: 308312 | B10: Aparelho de apoio metálico elastomérico fixo com capacidade de 7.500 kN - fornecimento e instalação | C10: un | D10: 33685.78
A11: 308307 | B11: Aparelho de apoio metálico elastomérico fixo com capacidade de 700 kN - fornecimento e instalação | C11: un | D11: 4823.22
A12: 308322 | B12: Aparelho de apoio metálico elastomérico multidirecional com capacidade de 1.500 kN - fornecimento e instalação | C12: un | D12: 5937.46
A13: 308327 | B13: Aparelho de apoio metálico elastomérico multidirecional com capacidade de 10.000 kN - fornecimento e instalação | C13: un | D13: 37037.88
A14: 308323 | B14: Aparelho de apoio metálico elastomérico multidirecional com capacidade de 2.500 kN - fornecimento e instalação | C14: un | D14: 8648.55
A15: 308324 | B15: Aparelho de apoio metálico elastomérico multidirecional com capacidade de 4.000 kN - fornecimento e instalação | C15: un | D15: 13646.85
A16: 308325 | B16: Aparelho de apoio metálico elastomérico multidirecional com capacidade de 5.500 kN - fornecimento e instalação | C16: un | D16: 19340.87
A17: 308326 | B17: Aparelho de apoio metálico elastomérico multidirecional com capacidade de 7.500 kN - fornecimento e instalação | C17: un | D17: 27295.15
A18: 308321 | B18: Aparelho de apoio metálico elastomérico multidirecional com capacidade de 700 kN - fornecimento e instalação | C18: un | D18: 3777.33
A19: 308315 | B19: Aparelho de apoio metálico elastomérico unidirecional com capacidade de 1.500 kN - fornecimento e instalação | C19: un | D19: 7283.86
A20: 308320 | B20: Aparelho de apoio metálico elastomérico unidirecional com capacidade de 10.000 kN - fornecimento e instalação | C20: un | D20: 46423.74
A21: 308316 | B21: Aparelho de apoio metálico elastomérico unidirecional com capacidade de 2.500 kN - fornecimento e instalação | C21: un | D21: 10322.13
A22: 308317 | B22: Aparelho de apoio metálico elastomérico unidirecional com capacidade de 4.000 kN - fornecimento e instalação | C22: un | D22: 17335.06
A23: 308318 | B23: Aparelho de apoio metálico elastomérico unidirecional com capacidade de 5.500 kN - fornecimento e instalação | C23: un | D23: 24498.47
A24: 308319 | B24: Aparelho de apoio metálico elastomérico unidirecional com capacidade de 7.500 kN - fornecimento e instalação | C24: un | D24: 30869.71
A25: 308314 | B25: Aparelho de apoio metálico elastomérico unidirecional com capacidade de 700 kN - fornecimento e instalação | C25: un | D25: 4873.37
A26: 308250 | B26: Aparelho de apoio metálico esférico fixo com capacidade de 1.000 kN - fornecimento e instalação | C26: un | D26: 5930.94
A27: 308251 | B27: Aparelho de apoio metálico esférico fixo com capacidade de 1.500 kN - fornecimento e instalação | C27: un | D27: 9041.06
A28: 308268 | B28: Aparelho de apoio metálico esférico fixo com capacidade de 10.000 kN - fornecimento e instalação | C28: un | D28: 82370.54
A29: 308252 | B29: Aparelho de apoio metálico esférico fixo com capacidade de 2.000 kN - fornecimento e instalação | C29: un | D29: 10933.05
A30: 308253 | B30: Aparelho de apoio metálico esférico fixo com capacidade de 2.500 kN - fornecimento e instalação | C30: un | D30: 13510.42
A31: 308254 | B31: Aparelho de apoio metálico esférico fixo com capacidade de 3.000 kN - fornecimento e instalação | C31: un | D31: 15201.87
A32: 308255 | B32: Aparelho de apoio metálico esférico fixo com capacidade de 3.500 kN - fornecimento e instalação | C32: un | D32: 18684.57
A33: 308256 | B33: Aparelho de apoio metálico esférico fixo com capacidade de 4.000 kN - fornecimento e instalação | C33: un | D33: 23125.92
A34: 308257 | B34: Aparelho de apoio metálico esférico fixo com capacidade de 4.500 kN - fornecimento e instalação | C34: un | D34: 31894.26
A35: 308258 | B35: Aparelho de apoio metálico esférico fixo com capacidade de 5.000 kN - fornecimento e instalação | C35: un | D35: 35546.16
A36: 308259 | B36: Aparelho de apoio metálico esférico fixo com capacidade de 5.500 kN - fornecimento e instalação | C36: un | D36: 42846.31
A37: 308260 | B37: Aparelho de apoio metálico esférico fixo com capacidade de 6.000 kN - fornecimento e instalação | C37: un | D37: 47162.42
A38: 308261 | B38: Aparelho de apoio metálico esférico fixo com capacidade de 6.500 kN - fornecimento e instalação | C38: un | D38: 52327.82
A39: 308262 | B39: Aparelho de apoio metálico esférico fixo com capacidade de 7.000 kN - fornecimento e instalação | C39: un | D39: 57209.53
A40: 308263 | B40: Aparelho de apoio metálico esférico fixo com capacidade de 7.500 kN - fornecimento e instalação | C40: un | D40: 58074.38
A41: 308264 | B41: Aparelho de apoio metálico esférico fixo com capacidade de 8.000 kN - fornecimento e instalação | C41: un | D41: 64695.79
A42: 308265 | B42: Aparelho de apoio metálico esférico fixo com capacidade de 8.500 kN - fornecimento e instalação | C42: un | D42: 66182.13
A43: 308266 | B43: Aparelho de apoio metálico esférico fixo com capacidade de 9.000 kN - fornecimento e instalação | C43: un | D43: 73704.81
A44: 308267 | B44: Aparelho de apoio metálico esférico fixo com capacidade de 9.500 kN - fornecimento e instalação | C44: un | D44: 77944.62
A45: 308288 | B45: Aparelho de apoio metálico esférico multidirecional com capacidade de 1.000 kN - fornecimento e instalação | C45: un | D45: 8651.61
A46: 308289 | B46: Aparelho de apoio metálico esférico multidirecional com capacidade de 1.500 kN - fornecimento e instalação | C46: un | D46: 12740.51
A47: 308306 | B47: Aparelho de apoio metálico esférico multidirecional com capacidade de 10.000 kN - fornecimento e instalação | C47: un | D47: 92458.68
A48: 308290 | B48: Aparelho de apoio metálico esférico multidirecional com capacidade de 2.000 kN - fornecimento e instalação | C48: un | D48: 15981.93
A49: 308291 | B49: Aparelho de apoio metálico esférico multidirecional com capacidade de 2.500 kN - fornecimento e instalação | C49: un | D49: 20082.39
A50: 308292 | B50: Aparelho de apoio metálico esférico multidirecional com capacidade de 3.000 kN - fornecimento e instalação | C50: un | D50: 21836.03
A51: 308293 | B51: Aparelho de apoio metálico esférico multidirecional com capacidade de 3.500 kN - fornecimento e instalação | C51: un | D51: 25128.94
A52: 308294 | B52: Aparelho de apoio metálico esférico multidirecional com capacidade de 4.000 kN - fornecimento e instalação | C52: un | D52: 28842.58
A53: 308295 | B53: Aparelho de apoio metálico esférico multidirecional com capacidade de 4.500 kN - fornecimento e instalação | C53: un | D53: 34863.65
A54: 308296 | B54: Aparelho de apoio metálico esférico multidirecional com capacidade de 5.000 kN - fornecimento e instalação | C54: un | D54: 36775.17
A55: 308297 | B55: Aparelho de apoio metálico esférico multidirecional com capacidade de 5.500 kN - fornecimento e instalação | C55: un | D55: 41991.36
A56: 308298 | B56: Aparelho de apoio metálico esférico multidirecional com capacidade de 6.000 kN - fornecimento e instalação | C56: un | D56: 47760.45
A57: 308299 | B57: Aparelho de apoio metálico esférico multidirecional com capacidade de 6.500 kN - fornecimento e instalação | C57: un | D57: 51610.91
A58: 308300 | B58: Aparelho de apoio metálico esférico multidirecional com capacidade de 7.000 kN - fornecimento e instalação | C58: un | D58: 55566.6
A59: 308301 | B59: Aparelho de apoio metálico esférico multidirecional com capacidade de 7.500 kN - fornecimento e instalação | C59: un | D59: 59938.9
A60: 308302 | B60: Aparelho de apoio metálico esférico multidirecional com capacidade de 8.000 kN - fornecimento e instalação | C60: un | D60: 71669.01
A61: 308303 | B61: Aparelho de apoio metálico esférico multidirecional com capacidade de 8.500 kN - fornecimento e instalação | C61: un | D61: 78641.18
A62: 308304 | B62: Aparelho de apoio metálico esférico multidirecional com capacidade de 9.000 kN - fornecimento e instalação | C62: un | D62: 82919.9
A63: 308305 | B63: Aparelho de apoio metálico esférico multidirecional com capacidade de 9.500 kN - fornecimento e instalação | C63: un | D63: 88052.03
A64: 308269 | B64: Aparelho de apoio metálico esférico unidirecional com capacidade de 1.000 kN - fornecimento e instalação | C64: un | D64: 9051
A65: 308270 | B65: Aparelho de apoio metálico esférico unidirecional com capacidade de 1.500 kN - fornecimento e instalação | C65: un | D65: 12754.53
A66: 308287 | B66: Aparelho de apoio metálico esférico unidirecional com capacidade de 10.000 kN - fornecimento e instalação | C66: un | D66: 92568.42
A67: 308271 | B67: Aparelho de apoio metálico esférico unidirecional com capacidade de 2.000 kN - fornecimento e instalação | C67: un | D67: 15971.75
A68: 308272 | B68: Aparelho de apoio metálico esférico unidirecional com capacidade de 2.500 kN - fornecimento e instalação | C68: un | D68: 18464.9
A69: 308273 | B69: Aparelho de apoio metálico esférico unidirecional com capacidade de 3.000 kN - fornecimento e instalação | C69: un | D69: 22644.95
A70: 308274 | B70: Aparelho de apoio metálico esférico unidirecional com capacidade de 3.500 kN - fornecimento e instalação | C70: un | D70: 26083.93
A71: 308275 | B71: Aparelho de apoio metálico esférico unidirecional com capacidade de 4.000 kN - fornecimento e instalação | C71: un | D71: 30626.8
A72: 308276 | B72: Aparelho de apoio metálico esférico unidirecional com capacidade de 4.500 kN - fornecimento e instalação | C72: un | D72: 41161.07
A73: 308277 | B73: Aparelho de apoio metálico esférico unidirecional com capacidade de 5.000 kN - fornecimento e instalação | C73: un | D73: 45573.09
A74: 308278 | B74: Aparelho de apoio metálico esférico unidirecional com capacidade de 5.500 kN - fornecimento e instalação | C74: un | D74: 49424.84
A75: 308279 | B75: Aparelho de apoio metálico esférico unidirecional com capacidade de 6.000 kN - fornecimento e instalação | C75: un | D75: 52309.71
A76: 308280 | B76: Aparelho de apoio metálico esférico unidirecional com capacidade de 6.500 kN - fornecimento e instalação | C76: un | D76: 59293.44
A77: 308281 | B77: Aparelho de apoio metálico esférico unidirecional com capacidade de 7.000 kN - fornecimento e instalação | C77: un | D77: 63674.34
A78: 308282 | B78: Aparelho de apoio metálico esférico unidirecional com capacidade de 7.500 kN - fornecimento e instalação | C78: un | D78: 68403.11
A79: 308283 | B79: Aparelho de apoio metálico esférico unidirecional com capacidade de 8.000 kN - fornecimento e instalação | C79: un | D79: 72673.11
A80: 308284 | B80: Aparelho de apoio metálico esférico unidirecional com capacidade de 8.500 kN - fornecimento e instalação | C80: un | D80: 78477.51
A81: 308285 | B81: Aparelho de apoio metálico esférico unidirecional com capacidade de 9.000 kN - fornecimento e instalação | C81: un | D81: 83208.75
A82: 308286 | B82: Aparelho de apoio metálico esférico unidirecional com capacidade de 9.500 kN - fornecimento e instalação | C82: un | D82: 88033.18
A83: 307733 | B83: Junta de dilatação em elastômero e perfil VV - L = 20 mm e H = 40 mm - fornecimento e instalação | C83: m | D83: 436.13
A84: 307734 | B84: Junta de dilatação em elastômero e perfil VV - L = 25 mm e H = 50 mm - fornecimento e instalação | C84: m | D84: 554.18
A85: 307735 | B85: Junta de dilatação em elastômero e perfil VV - L = 35 mm e H = 60 mm - fornecimento e instalação | C85: m | D85: 948.51
A86: 307736 | B86: Junta de dilatação em elastômero e perfil VV - L = 40 mm e H = 70 mm - fornecimento e instalação | C86: m | D86: 1316.74
A87: 307737 | B87: Junta de dilatação em elastômero e perfil VV - L = 50 mm e H = 80 mm - fornecimento e instalação | C87: m | D87: 1633.27
A88: 307730 | B88: Junta de dilatação em perfil extrudado de borracha vulcanizada | C88: m | D88: 0
A89: 307084 | B89: Lábios poliméricos em junta de pavimento de concreto - L = 20 mm e H = 30 mm - confecção e assentamento | C89: m | D89: 30.14
A90: 407818 | B90: Armação em aço CA-25 - fornecimento, preparo e colocação | C90: kg | D90: 11.33
A91: 407819 | B91: Armação em aço CA-50 - fornecimento, preparo e colocação | C91: kg | D91: 11.53
A92: 407820 | B92: Armação em aço CA-60 - fornecimento, preparo e colocação | C92: kg | D92: 12.6
A93: 407740 | B93: Chumbador tipo espera em aço CA-25 para fixação de estrutura metálica em concreto - fornecimento e instalação | C93: kg | D93: 14.35
A94: 408037 | B94: Luva de emenda com rosca cônica para aço CA-50 - D = 12,5 mm - fornecimento e instalação | C94: un | D94: 20.11
A95: 408038 | B95: Luva de emenda com rosca cônica para aço CA-50 - D = 16 mm - fornecimento e instalação | C95: un | D95: 32.24
A96: 408039 | B96: Luva de emenda com rosca cônica para aço CA-50 - D = 20 mm - fornecimento e instalação | C96: un | D96: 42.47
A97: 408041 | B97: Luva de emenda com rosca cônica para aço CA-50 - D = 25 mm - fornecimento e instalação | C97: un | D97: 58.24
A98: 408042 | B98: Luva de emenda com rosca cônica para aço CA-50 - D = 32 mm - fornecimento e instalação | C98: un | D98: 83.35
A99: 408031 | B99: Luva de emenda prensada para aço CA-50 - D = 12,5 mm - fornecimento e instalação | C99: un | D99: 20.49
A100: 408032 | B100: Luva de emenda prensada para aço CA-50 - D = 16 mm - fornecimento e instalação | C100: un | D100: 27.8
A101: 408033 | B101: Luva de emenda prensada para aço CA-50 - D = 20 mm - fornecimento e instalação | C101: un | D101: 37.81
A102: 408035 | B102: Luva de emenda prensada para aço CA-50 - D = 25 mm - fornecimento e instalação | C102: un | D102: 73.26
A103: 408036 | B103: Luva de emenda prensada para aço CA-50 - D = 32 mm - fornecimento e instalação | C103: un | D103: 141.94
A104: 408067 | B104: Tela de aço eletrossoldada - fornecimento, preparo e colocação | C104: kg | D104: 10.57
A105: 407743 | B105: Treliça nervurada três barras longitudinais interligadas por duas diagonais sinusoidal - fornecimento e instalação | C105: kg | D105: 11.58
A106: 607137 | B106: Arco metálico galvanizado tipo MP 152S - arco alto - vão = 10,08 m e altura = 6,12 m - aterro rodoviário mínimo = 0,90 m e máximo = 5,00 m - areia e brita comerciais | C106: m | D106: 60077.74
A107: 606785 | B107: Arco metálico galvanizado tipo MP 152S - arco alto - vão = 10,08 m e altura = 6,12 m - aterro rodoviário mínimo = 0,90 m e máximo = 5,00 m - areia extraída e brita produzida | C107: m | D107: 59203.55
A108: 607139 | B108: Arco metálico galvanizado tipo MP 152S - arco alto - vão = 10,31 m e altura = 6,17 m - aterro rodoviário mínimo = 0,90 m e máximo = 4,90 m - areia e brita comerciais | C108: m | D108: 60882.35
A109: 606787 | B109: Arco metálico galvanizado tipo MP 152S - arco alto - vão = 10,31 m e altura = 6,17 m - aterro rodoviário mínimo = 0,90 m e máximo = 4,90 m - areia extraída e brita produzida | C109: m | D109: 59696.46
A110: 607140 | B110: Arco metálico galvanizado tipo MP 152S - arco alto - vão = 10,36 m e altura = 5,38 m - aterro rodoviário mínimo = 1,20 m e máximo = 3,60 m - areia e brita comerciais | C110: m | D110: 55595.51
A111: 606788 | B111: Arco metálico galvanizado tipo MP 152S - arco alto - vão = 10,36 m e altura = 5,38 m - aterro rodoviário mínimo = 1,20 m e máximo = 3,60 m - areia extraída e brita produzida | C111: m | D111: 55107.12
A112: 607141 | B112: Arco metálico galvanizado tipo MP 152S - arco alto - vão = 10,54 m e altura = 6,05 m - aterro rodoviário mínimo = 1,20 m e máximo = 4,20 m - areia e brita comerciais | C112: m | D112: 61983.61
A113: 606789 | B113: Arco metálico galvanizado tipo MP 152S - arco alto - vão = 10,54 m e altura = 6,05 m - aterro rodoviário mínimo = 1,20 m e máximo = 4,20 m - areia extraída e brita produzida | C113: m | D113: 61075.09
A114: 607144 | B114: Arco metálico galvanizado tipo MP 152S - arco alto - vão = 10,57 m e altura = 5,41 m - aterro rodoviário mínimo = 1,20 m e máximo = 4,10 m - areia e brita comerciais | C114: m | D114: 72587.38
A115: 606792 | B115: Arco metálico galvanizado tipo MP 152S - arco alto - vão = 10,57 m e altura = 5,41 m - aterro rodoviário mínimo = 1,20 m e máximo = 4,10 m - areia extraída e brita produzida | C115: m | D115: 71757.55
A116: 607142 | B116: Arco metálico galvanizado tipo MP 152S - arco alto - vão = 10,74 m e altura = 6,48 m - aterro rodoviário mínimo = 1,20 m e máximo = 4,70 m - areia e brita comerciais | C116: m | D116: 65012.7
A117: 606790 | B117: Arco metálico galvanizado tipo MP 152S - arco alto - vão = 10,74 m e altura = 6,48 m - aterro rodoviário mínimo = 1,20 m e máximo = 4,70 m - areia extraída e brita produzida | C117: m | D117: 64035.49
A118: 607145 | B118: Arco metálico galvanizado tipo MP 152S - arco alto - vão = 10,77 m e altura = 6,10 m - aterro rodoviário mínimo = 1,20 m e máximo = 4,70 m - areia e brita comerciais | C118: m | D118: 80184.43
A119: 606793 | B119: Arco metálico galvanizado tipo MP 152S - arco alto - vão = 10,77 m e altura = 6,10 m - aterro rodoviário mínimo = 1,20 m e máximo = 4,70 m - areia extraída e brita produzida | C119: m | D119: 79256.34
A120: 607146 | B120: Arco metálico galvanizado tipo MP 152S - arco alto - vão = 10,97 m e altura = 6,53 m - aterro rodoviário mínimo = 1,20 m e máximo = 4,70 m - areia e brita comerciais | C120: m | D120: 83619.48
A121: 606794 | B121: Arco metálico galvanizado tipo MP 152S - arco alto - vão = 10,97 m e altura = 6,53 m - aterro rodoviário mínimo = 1,20 m e máximo = 4,70 m - areia extraída e brita produzida | C121: m | D121: 82612.17
A122: 607143 | B122: Arco metálico galvanizado tipo MP 152S - arco alto - vão = 11,35 m e altura = 7,12 m - aterro rodoviário mínimo = 1,20 m e máximo = 4,70 m - areia e brita comerciais | C122: m | D122: 70230.51
A123: 606791 | B123: Arco metálico galvanizado tipo MP 152S - arco alto - vão = 11,35 m e altura = 7,12 m - aterro rodoviário mínimo = 1,20 m e máximo = 4,70 m - areia extraída e brita produzida | C123: m | D123: 69105.47
A124: 607147 | B124: Arco metálico galvanizado tipo MP 152S - arco alto - vão = 11,58 m e altura = 7,16 m - aterro rodoviário mínimo = 1,20 m e máximo = 6,40 m - areia e brita comerciais | C124: m | D124: 90202.97
A125: 606795 | B125: Arco metálico galvanizado tipo MP 152S - arco alto - vão = 11,58 m e altura = 7,16 m - aterro rodoviário mínimo = 1,20 m e máximo = 6,40 m - areia extraída e brita produzida | C125: m | D125: 89042.24
A126: 607112 | B126: Arco metálico galvanizado tipo MP 152S - arco alto - vão = 6,12 m e altura = 2,77 m - aterro rodoviário mínimo = 0,75 m e máximo = 5,40 m - areia e brita comerciais | C126: m | D126: 29318.09
A127: 606760 | B127: Arco metálico galvanizado tipo MP 152S - arco alto - vão = 6,12 m e altura = 2,77 m - aterro rodoviário mínimo = 0,75 m e máximo = 5,40 m - areia extraída e brita produzida | C127: m | D127: 29013.82
A128: 607113 | B128: Arco metálico galvanizado tipo MP 152S - arco alto - vão = 6,30 m e altura = 3,68 m - aterro rodoviário mínimo = 0,75 m e máximo = 7,50 m - areia e brita comerciais | C128: m | D128: 34442.45
A129: 606761 | B129: Arco metálico galvanizado tipo MP 152S - arco alto - vão = 6,30 m e altura = 3,68 m - aterro rodoviário mínimo = 0,75 m e máximo = 7,50 m - areia extraída e brita produzida | C129: m | D129: 34092.7
A130: 606762 | B130: Arco metálico galvanizado tipo MP 152S - arco alto - vão = 6,55 m e altura = 3,56 m - aterro rodoviário mínimo = 0,75 m e máximo = 4,9 m - areia extraída e brita produzida | C130: m | D130: 33840.6
A131: 607114 | B131: Arco metálico galvanizado tipo MP 152S - arco alto - vão = 6,55 m e altura = 3,56 m - aterro rodoviário mínimo = 0,75 m e máximo = 4,90 m - areia e brita comerciais | C131: m | D131: 34196.96
A132: 607116 | B132: Arco metálico galvanizado tipo MP 152S - arco alto - vão = 6,78 m e altura = 3,61 m - aterro rodoviário mínimo = 0,75 m e máximo = 4,80 m - areia e brita comerciais | C132: m | D132: 36136.12
A133: 606764 | B133: Arco metálico galvanizado tipo MP 152S - arco alto - vão = 6,78 m e altura = 3,61 m - aterro rodoviário mínimo = 0,75 m e máximo = 4,80 m - areia extraída e brita produzida | C133: m | D133: 35764.76
A134: 607115 | B134: Arco metálico galvanizado tipo MP 152S - arco alto - vão = 6,96 m e altura = 4,42 m - aterro rodoviário mínimo = 0,75 m e máximo = 8,10 m - areia e brita comerciais | C134: m | D134: 41034.49
A135: 606763 | B135: Arco metálico galvanizado tipo MP 152S - arco alto - vão = 6,96 m e altura = 4,42 m - aterro rodoviário mínimo = 0,75 m e máximo = 8,10 m - areia extraída e brita produzida | C135: m | D135: 40587.72
A136: 607117 | B136: Arco metálico galvanizado tipo MP 152S - arco alto - vão = 6,99 m e altura = 4,27 m - aterro rodoviário mínimo = 0,75 m e máximo = 5,70 m - areia e brita comerciais | C136: m | D136: 41030.4
A137: 606765 | B137: Arco metálico galvanizado tipo MP 152S - arco alto - vão = 6,99 m e altura = 4,27 m - aterro rodoviário mínimo = 0,75 m e máximo = 5,70 m - areia extraída e brita produzida | C137: m | D137: 40595.9
A138: 607118 | B138: Arco metálico galvanizado tipo MP 152S - arco alto - vão = 7,01 m e altura = 3,63 m - aterro rodoviário mínimo = 0,75 m e máximo = 4,60 m - areia e brita comerciais | C138: m | D138: 36772.62
A139: 606766 | B139: Arco metálico galvanizado tipo MP 152S - arco alto - vão = 7,01 m e altura = 3,63 m - aterro rodoviário mínimo = 0,75 m e máximo = 4,60 m - areia extraída e brita produzida | C139: m | D139: 36389.24
A140: 607120 | B140: Arco metálico galvanizado tipo MP 152S - arco alto - vão = 7,24 m e altura = 3,68 m - aterro rodoviário mínimo = 0,90 m e máximo = 4,4 m - areia e brita comerciais | C140: m | D140: 37446.67
A141: 606768 | B141: Arco metálico galvanizado tipo MP 152S - arco alto - vão = 7,24 m e altura = 3,68 m - aterro rodoviário mínimo = 0,90 m e máximo = 4,40 m - areia extraída e brita produzida | C141: m | D141: 37042.95
A142: 607119 | B142: Arco metálico galvanizado tipo MP 152S - arco alto - vão = 7,42 m e altura = 4,52 m - aterro rodoviário mínimo = 0,90 m e máximo = 6,40 m - areia e brita comerciais | C142: m | D142: 43041.53
A143: 606767 | B143: Arco metálico galvanizado tipo MP 152S - arco alto - vão = 7,42 m e altura = 4,52 m - aterro rodoviário mínimo = 0,90 m e máximo = 6,40 m - areia extraída e brita produzida | C143: m | D143: 42549.18
A144: 607121 | B144: Arco metálico galvanizado tipo MP 152S - arco alto - vão = 7,47 m e altura = 4,19 m - aterro rodoviário mínimo = 0,90 m e máximo = 4,30 m - areia e brita comerciais | C144: m | D144: 40544.41
A145: 606769 | B145: Arco metálico galvanizado tipo MP 152S - arco alto - vão = 7,47 m e altura = 4,19 m - aterro rodoviário mínimo = 0,90 m e máximo = 4,30 m - areia extraída e brita produzida | C145: m | D145: 40084.12
A146: 607123 | B146: Arco metálico galvanizado tipo MP 152S - arco alto - vão = 7,67 m e altura = 3,99 m - aterro rodoviário mínimo = 0,90 m e máximo = 4,10 m - areia e brita comerciais | C146: m | D146: 40006.23
A147: 606771 | B147: Arco metálico galvanizado tipo MP 152S - arco alto - vão = 7,67 m e altura = 3,99 m - aterro rodoviário mínimo = 0,90 m e máximo = 4,10 m - areia extraída e brita produzida | C147: m | D147: 39547.67
A148: 607122 | B148: Arco metálico galvanizado tipo MP 152S - arco alto - vão = 7,85 m e altura = 4,60 m - aterro rodoviário mínimo = 0,90 m e máximo = 6,00 m - areia e brita comerciais | C148: m | D148: 44385.73
A149: 606770 | B149: Arco metálico galvanizado tipo MP 152S - arco alto - vão = 7,85 m e altura = 4,60 m - aterro rodoviário mínimo = 0,90 m e máximo = 6,00 m - areia extraída e brita produzida | C149: m | D149: 43856.87
A150: 607125 | B150: Arco metálico galvanizado tipo MP 152S - arco alto - vão = 7,90 m e altura = 4,04 m - aterro rodoviário mínimo = 0,90 m e máximo = 4,00 m - areia e brita comerciais | C150: m | D150: 41364.03
A151: 606773 | B151: Arco metálico galvanizado tipo MP 152S - arco alto - vão = 7,90 m e altura = 4,04 m - aterro rodoviário mínimo = 0,90 m e máximo = 4,00 m - areia extraída e brita produzida | C151: m | D151: 40881.55
A152: 607124 | B152: Arco metálico galvanizado tipo MP 152S - arco alto - vão = 8,08 m e altura = 4,65 m - aterro rodoviário mínimo = 0,90 m e máximo = 5,80 m - areia e brita comerciais | C152: m | D152: 45051.68
A153: 606772 | B153: Arco metálico galvanizado tipo MP 152S - arco alto - vão = 8,08 m e altura = 4,65 m - aterro rodoviário mínimo = 0,90 m e máximo = 5,80 m - areia extraída e brita produzida | C153: m | D153: 44505.9
A154: 607126 | B154: Arco metálico galvanizado tipo MP 152S - arco alto - vão = 8,31 m e altura = 4,70 m - aterro rodoviário mínimo = 0,90 m e máximo = 5,60 m - areia e brita comerciais | C154: m | D154: 46305.04
A155: 606774 | B155: Arco metálico galvanizado tipo MP 152S - arco alto - vão = 8,31 m e altura = 4,70 m - aterro rodoviário mínimo = 0,90 m e máximo = 5,60 m - areia extraída e brita produzida | C155: m | D155: 45732.96
A156: 607127 | B156: Arco metálico galvanizado tipo MP 152S - arco alto - vão = 8,36 m e altura = 4,11 m - aterro rodoviário mínimo = 0,90 m e máximo = 3,70 m - areia e brita comerciais | C156: m | D156: 42641.28
A157: 606775 | B157: Arco metálico galvanizado tipo MP 152S - arco alto - vão = 8,36 m e altura = 4,11 m - aterro rodoviário mínimo = 0,90 m e máximo = 3,70 m - areia extraída e brita produzida | C157: m | D157: 42129.8
A158: 607129 | B158: Arco metálico galvanizado tipo MP 152S - arco alto - vão = 8,59 m e altura = 4,39 m - aterro rodoviário mínimo = 0,90 m e máximo = 3,60 m - areia e brita comerciais | C158: m | D158: 44624.26
A159: 606777 | B159: Arco metálico galvanizado tipo MP 152S - arco alto - vão = 8,59 m e altura = 4,39 m - aterro rodoviário mínimo = 0,90 m e máximo = 3,60 m - areia extraída e brita produzida | C159: m | D159: 44064.11
A160: 607128 | B160: Arco metálico galvanizado tipo MP 152S - arco alto - vão = 8,97 m e altura = 5,00 m - aterro rodoviário mínimo = 0,90 m e máximo = 5,80 m - areia e brita comerciais | C160: m | D160: 49074.37
A161: 606776 | B161: Arco metálico galvanizado tipo MP 152S - arco alto - vão = 8,97 m e altura = 5,00 m - aterro rodoviário mínimo = 0,90 m e máximo = 5,80 m - areia extraída e brita produzida | C161: m | D161: 48419.88
A162: 607130 | B162: Arco metálico galvanizado tipo MP 152S - arco alto - vão = 9,17 m e altura = 5,49 m - aterro rodoviário mínimo = 0,90 m e máximo = 5,60 m - areia e brita comerciais | C162: m | D162: 52295.38
A163: 606778 | B163: Arco metálico galvanizado tipo MP 152S - arco alto - vão = 9,17 m e altura = 5,49 m - aterro rodoviário mínimo = 0,90 m e máximo = 5,60 m - areia extraída e brita produzida | C163: m | D163: 51575.98
A164: 607131 | B164: Arco metálico galvanizado tipo MP 152S - arco alto - vão = 9,22 m e altura = 4,70 m - aterro rodoviário mínimo = 0,90 m e máximo = 4,10 m - areia e brita comerciais | C164: m | D164: 49089.53
A165: 606779 | B165: Arco metálico galvanizado tipo MP 152S - arco alto - vão = 9,22 m e altura = 4,70 m - aterro rodoviário mínimo = 0,90 m e máximo = 4,10 m - areia extraída e brita produzida | C165: m | D165: 48453.09
A166: 607133 | B166: Arco metálico galvanizado tipo MP 152S - arco alto - vão = 9,45 m e altura = 4,75 m - aterro rodoviário mínimo = 0,90 m e máximo = 4,00 m - areia e brita comerciais | C166: m | D166: 49838.94
A167: 606781 | B167: Arco metálico galvanizado tipo MP 152S - arco alto - vão = 9,45 m e altura = 4,75 m - aterro rodoviário mínimo = 0,90 m e máximo = 4,00 m - areia extraída e brita produzida | C167: m | D167: 49183.37
A168: 607132 | B168: Arco metálico galvanizado tipo MP 152S - arco alto - vão = 9,63 m e altura = 5,59 m - aterro rodoviário mínimo = 0,90 m e máximo = 5,30 m - areia e brita comerciais | C168: m | D168: 54329.1
A169: 606780 | B169: Arco metálico galvanizado tipo MP 152S - arco alto - vão = 9,63 m e altura = 5,59 m - aterro rodoviário mínimo = 0,90 m e máximo = 5,30 m - areia extraída e brita produzida | C169: m | D169: 53559.27
A170: 607134 | B170: Arco metálico galvanizado tipo MP 152S - arco alto - vão = 9,65 m e altura = 5,41 m - aterro rodoviário mínimo = 0,90 m e máximo = 4,70 m - areia e brita comerciais | C170: m | D170: 53794.33
A171: 606782 | B171: Arco metálico galvanizado tipo MP 152S - arco alto - vão = 9,65 m e altura = 5,41 m - aterro rodoviário mínimo = 0,90 m e máximo = 4,70 m - areia extraída e brita produzida | C171: m | D171: 53042.1
A172: 607136 | B172: Arco metálico galvanizado tipo MP 152S - arco alto - vão = 9,68 m e altura = 5,23 m - aterro rodoviário mínimo = 0,90 m e máximo = 3,90 m - areia e brita comerciais | C172: m | D172: 53081.98
A173: 606784 | B173: Arco metálico galvanizado tipo MP 152S - arco alto - vão = 9,68 m e altura = 5,23 m - aterro rodoviário mínimo = 0,90 m e máximo = 3,90 m - areia extraída e brita produzida | C173: m | D173: 52353.78
A174: 607135 | B174: Arco metálico galvanizado tipo MP 152S - arco alto - vão = 9,86 m e altura = 6,07 m - aterro rodoviário mínimo = 0,90 m e máximo = 5,20 m - areia e brita comerciais | C174: m | D174: 59216.25
A175: 606783 | B175: Arco metálico galvanizado tipo MP 152S - arco alto - vão = 9,86 m e altura = 6,07 m - aterro rodoviário mínimo = 0,90 m e máximo = 5,20 m - areia extraída e brita produzida | C175: m | D175: 58372.07
A176: 607138 | B176: Arco metálico galvanizado tipo MP 152S - arco alto - vão = 9,91 m e altura = 5,28 m - aterro rodoviário mínimo = 0,90 m e máximo = 3,80 m - areia e brita comerciais | C176: m | D176: 53988.11
A177: 606786 | B177: Arco metálico galvanizado tipo MP 152S - arco alto - vão = 9,91 m e altura = 5,28 m - aterro rodoviário mínimo = 0,90 m e máximo = 3,80 m - areia extraída e brita produzida | C177: m | D177: 53212.36
A178: 606842 | B178: Arco metálico galvanizado tipo MP 152S - ovoide - vão = 7,21 m e altura = 7,82 m - aterro rodoviário mínimo = 0,75 m e máximo = 6,70 m - areia e brita comerciais | C178: m | D178: 67318.65
A179: 606832 | B179: Arco metálico galvanizado tipo MP 152S - ovoide - vão = 7,21 m e altura = 7,82 m - aterro rodoviário mínimo = 0,75 m e máximo = 6,70 m - areia extraída e brita produzida | C179: m | D179: 66880.17
A180: 606843 | B180: Arco metálico galvanizado tipo MP 152S - ovoide - vão = 7,31 m e altura = 7,87 m - aterro rodoviário mínimo = 0,90 m e máximo = 6,80 m - areia e brita comerciais | C180: m | D180: 69953.22
A181: 606833 | B181: Arco metálico galvanizado tipo MP 152S - ovoide - vão = 7,31 m e altura = 7,87 m - aterro rodoviário mínimo = 0,90 m e máximo = 6,80 m - areia extraída e brita produzida | C181: m | D181: 69492.47
A182: 606845 | B182: Arco metálico galvanizado tipo MP 152S - ovoide - vão = 7,57 m e altura = 8,44 m - aterro rodoviário mínimo = 0,90 m e máximo = 5,60 m - areia e brita comerciais | C182: m | D182: 72527.9
A183: 606835 | B183: Arco metálico galvanizado tipo MP 152S - ovoide - vão = 7,57 m e altura = 8,44 m - aterro rodoviário mínimo = 0,90 m e máximo = 5,60 m - areia extraída e brita produzida | C183: m | D183: 72068.69
A184: 606844 | B184: Arco metálico galvanizado tipo MP 152S - ovoide - vão = 7,77 m e altura = 7,90 m - aterro rodoviário mínimo = 0,90 m e máximo = 6,80 m - areia e brita comerciais | C184: m | D184: 71050.73
A185: 606834 | B185: Arco metálico galvanizado tipo MP 152S - ovoide - vão = 7,77 m e altura = 7,90 m - aterro rodoviário mínimo = 0,90 m e máximo = 6,80 m - areia extraída e brita produzida | C185: m | D185: 70578.05
A186: 606847 | B186: Arco metálico galvanizado tipo MP 152S - ovoide - vão = 8,13 m e altura = 8,01 m - aterro rodoviário mínimo = 0,90 m e máximo = 3,50 m - areia e brita comerciais | C186: m | D186: 75855.86
A187: 606837 | B187: Arco metálico galvanizado tipo MP 152S - ovoide - vão = 8,13 m e altura = 8,01 m - aterro rodoviário mínimo = 0,90 m e máximo = 3,50 m - areia extraída e brita produzida | C187: m | D187: 75339.14
A188: 606846 | B188: Arco metálico galvanizado tipo MP 152S - ovoide - vão = 8,36 m e altura = 8,23 m - aterro rodoviário mínimo = 0,90 m e máximo = 4,30 m - areia e brita comerciais | C188: m | D188: 76537.9
A189: 606836 | B189: Arco metálico galvanizado tipo MP 152S - ovoide - vão = 8,36 m e altura = 8,23 m - aterro rodoviário mínimo = 0,90 m e máximo = 4,30 m - areia extraída e brita produzida | C189: m | D189: 76015.53
A190: 606848 | B190: Arco metálico galvanizado tipo MP 152S - ovoide - vão = 8,56 m e altura = 8,48 m - aterro rodoviário mínimo = 0,90 m e máximo = 5,30 m - areia e brita comerciais | C190: m | D190: 76531.93
A191: 606838 | B191: Arco metálico galvanizado tipo MP 152S - ovoide - vão = 8,56 m e altura = 8,48 m - aterro rodoviário mínimo = 0,90 m e máximo = 5,30 m - areia extraída e brita produzida | C191: m | D191: 75988.6
A192: 606849 | B192: Arco metálico galvanizado tipo MP 152S - ovoide - vão = 8,71 m e altura = 9,32 m - aterro rodoviário mínimo = 0,90 m e máximo = 6,00 m - areia e brita comerciais | C192: m | D192: 82786.5
A193: 606839 | B193: Arco metálico galvanizado tipo MP 152S - ovoide - vão = 8,71 m e altura = 9,32 m - aterro rodoviário mínimo = 0,90 m e máximo = 6,00 m - areia extraída e brita produzida | C193: m | D193: 82256.56
A194: 606850 | B194: Arco metálico galvanizado tipo MP 152S - ovoide - vão = 9,15 m e altura = 9,04 m - aterro rodoviário mínimo = 0,90 m e máximo = 4,70 m - areia e brita comerciais | C194: m | D194: 83486.04
A195: 606840 | B195: Arco metálico galvanizado tipo MP 152S - ovoide - vão = 9,15 m e altura = 9,04 m - aterro rodoviário mínimo = 0,90 m e máximo = 4,70 m - areia extraída e brita produzida | C195: m | D195: 82906.5
A196: 606851 | B196: Arco metálico galvanizado tipo MP 152S - ovoide - vão = 9,15 m e altura = 9,50 m - aterro rodoviário mínimo = 0,90 m e máximo = 5,70 m - areia e brita comerciais | C196: m | D196: 84181.24
A197: 606841 | B197: Arco metálico galvanizado tipo MP 152S - ovoide - vão = 9,15 m e altura = 9,50 m - aterro rodoviário mínimo = 0,90 m e máximo = 5,70 m - areia extraída e brita produzida | C197: m | D197: 83626.45
A198: 605604 | B198: Argamassa de solo-cimento com 10% de cimento e material de jazida - preparo e injeção em tunnel liner | C198: m³ | D198: 287.54
A199: 605695 | B199: Bueiro metálico com chapas múltiplas MP 100 com revestimento em epóxi - D = 0,60 m - brita comercial | C199: m | D199: 1609.13
A200: 605607 | B200: Bueiro metálico com chapas múltiplas MP 100 com revestimento em epóxi - D = 0,60 m - brita produzida | C200: m | D200: 1573.72
... 7825 more rows

Sheet SUDECAP
B1: SUDECAP JANEIRO 2024
A2: CÓDIGO | B2: DESCRIÇÃO | C2: UNIDADE | D2: PREÇO
A3: 01 | B3: INSTALAÇAO DA OBRA
A4: 01.01 | B4: ESCRITORIO DE OBRA
A5: 01.01.07 | B5: ESCRITORIO TIPO I | C5: UN | D5: 6588.67
A6: 01.01.09 | B6: ESCRITORIO TIPO II | C6: UN | D6: 8839
A7: 01.01.13 | B7: LAVABO | C7: UN | D7: 2885.17
A8: 01.02 | B8: BARRACAO DE OBRA
A9: 01.02.06 | B9: VESTIARIO TIPO I | C9: UN | D9: 5957.63
A10: 01.02.07 | B10: VESTIARIO TIPO II | C10: UN | D10: 12121.98
A11: 01.02.08 | B11: VESTIARIO TIPO III | C11: UN | D11: 16134.1
A12: 01.02.11 | B12: AREA COBERTA EM TELHA ONDULADA DE FIBROCIMENTO 4MM | C12: M2 | D12: 69.76
A13: 01.02.12 | B13: DEPOSITO E FERRAMENTARIA TIPO I | C13: UN | D13: 4786.96
A14: 01.02.13 | B14: DEPOSITO E FERRAMENTARIA TIPO II | C14: UN | D14: 7312.14
A15: 01.02.14 | B15: DEPOSITO E FERRAMENTARIA TIPO III | C15: UN | D15: 9909.55
A16: 01.02.15 | B16: DEPOSITO DE MATERIAIS ENSACADOS | C16: UN | D16: 3565.36
A17: 01.02.20 | B17: INSTALAÇAO SANITARIA TIPO I | C17: UN | D17: 6149.25
A18: 01.02.21 | B18: INSTALAÇAO SANITARIA TIPO II | C18: UN | D18: 7639.64
A19: 01.02.22 | B19: INSTALAÇAO SANITARIA TIPO III | C19: UN | D19: 10818.35
A20: 01.02.25 | B20: REFEITORIO TIPO I | C20: UN | D20: 5014.02
A21: 01.02.26 | B21: REFEITORIO TIPO II | C21: UN | D21: 5593.74
A22: 01.03 | B22: PLACA DE OBRA AFIXADA COM PEÇAS DE MADEIRA
A23: 01.03.01 | B23: 3,00 X 2,00 M EM LONA IMPRESSAO DIGITAL P.SUDECAP | C23: UN | D23: 1631.27
A24: 01.03.02 | B24: PLACA DE OBRA EM LONA IMPRESSAO DIGITAL P. SUDECAP | C24: M2 | D24: 214.45
A25: 01.03.03 | B25: PLACA DE OBRA EM CHAPA GALVANIZADA ADESIVADA, DIMENSÕES 2,40 X 1,20 M, PADRÃO CEF | C25: M2 | D25: 271.14
A26: 01.04 | B26: TAPUME PADRAO SUDECAP (TIPO I, II E III)
A27: 01.04.01 | B27: TAPUME PADRÃO SUDECAP DE COMPENSADO 10MM COM FIXAÇAO ENTERRADA | C27: M | D27: 90.63
A28: 01.04.03 | B28: TAPUME PADRÃO SUDECAP DE COMPENSADO 10MM COM BASE DE CONCRETO | C28: M | D28: 95.22
A29: 01.04.05 | B29: INFORME PUBLIC.LONA IMP.DIGITAL APLICADO EM TAPUME | C29: M2 | D29: 112.78
A30: 01.04.06 | B30: DE TELA GALVANIZADA #2" FIO 14 C/FIXAÇAO ENTERRADA | C30: M | D30: 57.43
A31: 01.04.07 | B31: DE TELA GALVANIZADA #2" FIO 14 C/BASE DE CONCRETO | C31: M | D31: 62.12
A32: 01.04.09 | B32: TELA-TAPUME DE POLIPROPILENO H= 1,20 M, INCL. BASE | C32: M | D32: 10.51
A33: 01.04.10 | B33: PROTEÇAO COM FITA ZEBRADA AMARELA L=7CM E PEÇA 7X7 | C33: M | D33: 7.71
A34: 01.04.11 | B34: FITA ZEBRADA AMARELA PARA SINALIZAÇAO L= 7CM | C34: M | D34: 2.91
A35: 01.04.16 | B35: TAPUME METÁLICO COM BASE DE CONCRETO (M) | C35: M | D35: 106.15
A36: 01.04.17 | B36: TAPUME METÁLICO COM BASE ENTERRADA (M) | C36: M | D36: 93.37
A37: 01.04.18 | B37: TAPUME METÁLICO COM TELA E BASE DE CONCRETO (M) | C37: M | D37: 115.28
A38: 01.04.19 | B38: TAPUME METÁLICO COM TELA E BASE ENTERRADA (M) | C38: M | D38: 102.47
A39: 01.04.20 | B39: REMANEJAMENTO DE TAPUME | C39: M | D39: 7.47
A40: 01.06 | B40: INSTALAÇAO PROVISORIA - CONCESSIONARIA
A41: 01.06.01 | B41: PADRÃO CEMIG PROVISÓRIO TIPO C3, DEMANDA PROVÁVEL DE 23,1 ATÉ 27,0KW (3F+N) | C41: UN | D41: 774.16
A42: 01.06.05 | B42: PADRAO COPASA - KIT CAVALTE METAL E REGISTRO 3/4" | C42: UN | D42: 311.02
A43: 01.07 | B43: FOSSA E SUMIDOURO
A44: 01.07.02 | B44: FOSSA SEPTICA E SUMIDOURO DN=1,20M H=4,00M | C44: UN | D44: 7032.91
A45: 01.08 | B45: REDE INTERNA E PROVISORIA DE AGUA E ESGOTO
A46: 01.08.01 | B46: TUBO PVC D= 100 MM | C46: M | D46: 22.94
A47: 01.08.02 | B47: TUBO PVC D= 150 MM | C47: M | D47: 49.28
A48: 01.08.03 | B48: TUBO PVC D= 200 MM | C48: M | D48: 101.49
A49: 01.08.04 | B49: TUBO PVC D= 250 MM | C49: M | D49: 100.46
A50: 01.08.20 | B50: TUBO PVC AGUA SOLDA E CONEXOES D=20MM (1/2") | C50: M | D50: 5.38
A51: 01.08.21 | B51: TUBO PVC AGUA SOLDA E CONEXOES D=25MM (3/4") | C51: M | D51: 6.22
A52: 01.09 | B52: CONTAINER 6,0X2,30X2,82 M COM ISOLAMENTO TERMICO
A53: 01.09.01 | B53: MOBILIZACAO DE CONTAINER | C53: UN | D53: 1200
A54: 01.09.02 | B54: CONTAINER SIMPLES COM AR CONDICIONADO PARA ESCRITÓRIO | C54: MES | D54: 1030
A55: 01.09.03 | B55: CONTAINER COM SANITÁRIO E AR CONDICIONADO PARA ESCRITÓRIO | C55: MES | D55: 1090
A56: 01.09.11 | B56: DESMOBILIZAÇÃO DE CONTAINER | C56: UN | D56: 1200
A57: 01.09.12 | B57: INSTALAÇÕES DE MOBILIÁRIOS PARA CONTAINER TIPO ESCRITÓRIO COM SANITÁRIO | C57: UN | D57: 510.77
A58: 01.09.14 | B58: INSTALAÇÕES DE MOBILIÁRIOS PARA CONTAINER TIPO REFEITÓRIO | C58: UN | D58: 184.68
A59: 01.09.15 | B59: INSTALAÇÕES DE MOBILIÁRIOS PARA CONTAINER TIPO DEPÓSITO E FERRAMENTARIA COM LAVATÓRIO | C59: UN | D59: 764.97
A60: 01.09.17 | B60: INSTALAÇÕES DE MOBILIÁRIOS PARA CONTAINER TIPO ESCRITÓRIO SEM SANITÁRIO | C60: UN | D60: 651.68
A61: 01.09.18 | B61: CONTAINER VESTIÁRIO TIPO I | C61: MES | D61: 1800
A62: 01.09.19 | B62: CONTAINER VESTIÁRIO TIPO II | C62: MES | D62: 2800
A63: 01.09.20 | B63: CONTAINER VESTIÁRIO TIPO III | C63: MES | D63: 3800
A64: 01.09.21 | B64: CONTAINER SIMPLES | C64: MES | D64: 730
A65: 01.09.22 | B65: CONTAINER COM LAVATÓRIO | C65: MES | D65: 790
A66: 01.09.23 | B66: CONTAINER COM SANITÁRIO | C66: MES | D66: 790
A67: 01.09.24 | B67: INSTALAÇÕES DE MOBILIÁRIOS PARA CONTAINER VESTIÁRIO TIPO I | C67: UN | D67: 112.73
A68: 01.09.25 | B68: INSTALAÇÕES DE MOBILIÁRIOS PARA CONTAINER VESTIÁRIO TIPO II | C68: UN | D68: 235.45
A69: 01.09.26 | B69: INSTALAÇÕES DE MOBILIÁRIOS PARA CONTAINER VESTIÁRIO TIPO III | C69: UN | D69: 338.2
A70: 01.09.27 | B70: CONTAINER PARA 2 VESTIÁRIOS E SANITÁRIOS | C70: MES | D70: 1800
A71: 01.10 | B71: BANHEIRO QUIMICO
A72: 01.10.01 | B72: BANHEIRO QUIMICO 110X120X230CM COM MANUTENCAO | C72: MES | D72: 680
A73: 01.10.02 | B73: BANHEIRO QUÍMICO E REBOQUE PARA TRANSPORTE DE BANHEIRO QUÍMICO | C73: MES | D73: 1003.05
A74: 01.11 | B74: SINALIZAÇAO
A75: 01.11.01 | B75: PLACA 1,0X0,60M DUPLA FACE CH.GALV. 26 EM CAVALETE | C75: UNMES | D75: 14.95
A76: 01.11.02 | B76: PLACA 1,0X0,60M CH.26 EM CAVALETE METALON 20X20MM | C76: UNMES | D76: 13.75
A77: 01.11.03 | B77: PLACA 0,50X0,50M DUPLA FACE CH.GALV.22 EM CAVALETE | C77: UNMES | D77: 10.95
A78: 01.11.04 | B78: PLACA 0,50X0,50M CH.GALV.22 CAVALETE METALON 20X20 | C78: UNMES | D78: 9.95
A79: 01.11.05 | B79: INSTALAÇÃO DE FAIXA MORIM 6,00M X 0,80M EM TECIDO COMUM E EUCALIPTO | C79: UN | D79: 112.66
A80: 01.11.06 | B80: CONE MASTER 75CM BASE DE BORRACHA CORPO POLIETILEN | C80: UN | D80: 131.42
A81: 01.11.07 | B81: CONE EM PVC H= 75 CM | C81: UN | D81: 40.47
A82: 01.11.08 | B82: SINALIZADOR ELET.MONOLIGHT LED 60 A 70 FLASHES/MIN | C82: UN | D82: 146.55
A83: 01.12 | B83: VISTORIA CAUTELAR
A84: 01.12.01 | B84: VISTORIA CAUTELAR - ÁREA CONSTRUÍDA <= 100M2 | C84: UN | D84: 314.39
A85: 01.12.02 | B85: VISTORIA CAUTELAR - 101M2 < ÁREA CONSTRUÍDA <= 200M2 | C85: UN | D85: 390.77
A86: 01.12.03 | B86: VISTORIA CAUTELAR - 201M2 < ÁREA CONSTRUÍDA <= 500M2 | C86: UN | D86: 514.1
A87: 01.12.04 | B87: VISTORIA CAUTELAR - 501M2 < ÁREA CONSTRUÍDA <= 2000M2 | C87: UN | D87: 741.66
A88: 01.12.05 | B88: VISTORIA CAUTELAR - 2001M2 < ÁREA CONSTRUÍDA <= 7000M2 | C88: UN | D88: 1220.13
A89: 01.12.06 | B89: VISTORIA CAUTELAR - ÁREA CONSTRUÍDA > 7001M2 | C89: UN | D89: 1702.56
A90: 01.13 | B90: GERENCIAMENTO DE RESÍDUOS DA CONSTRUÇÃO CIVIL
A91: 01.13.01 | B91: BAIA SIMPLES PARA RESÍDUOS DA CONSTRUÇÃO CIVIL | C91: UN | D91: 1558.39
A92: 01.13.02 | B92: BAIA DUPLA PARA RESÍDUOS DA CONSTRUÇÃO CIVIL | C92: UN | D92: 2668.89
A93: 01.13.03 | B93: PLACA IDENTIFCAÇÃO RESÍDUOS-PGRCC, CONFORME RESOLUÇÃO CONAMA-RDC Nº 275/01,EM LONA (BANNER), (30X30)CM | C93: UN | D93: 45.37
A95: 01.13.04 | B95: FORNECIMENTO BIG BAG P/ RESÍDUOS COMUNS-CAP. APROX.1M3, PADRÃO CLUB FARM OU EQUIVALENTE | C95: UN | D95: 42.48
A96: 01.13.05 | B96: FORNECIMENTO LIXEIRA PLÁSTICA C/ TAMPA VAI-VEM - 100 LITROS, PADRÃO Q100 WEBPLASTICO/EQUIVALENTE | C96: UN | D96: 143.54
A97: 01.13.06 | B97: FORNECIMENTO DE LONA REFORÇADA DE POLIETILENO PARA COBERTURA DE CAÇAMBA (4Mx4M), 600 MICRA | C97: UN | D97: 144.9
A98: 01.13.07 | B98: FORNECIMENTO DE BOMBONA BOCA LARGA PARA RESÍDUOS CLASSE B - 100 LITROS | C98: UN | D98: 406.9
A99: 01.14 | B99: SERVIÇOS AUXILIARES DE INSTALAÇÃO DE OBRA
A100: 01.14.01 | B100: PORTA EM COMPENSADO RESINADO 10MM 80X210CM | C100: UN | D100: 114.34
A101: 01.14.02 | B101: CONJUNTO MESA (130X60CM) E 2 BANCOS (130X40CM) EM MADEIRITE | C101: CJ | D101: 300.6
A102: 01.14.03 | B102: BANCO (130X40CM) EM MADEIRITE, PARA VESTIARIO | C102: UN | D102: 87.54
A103: 01.14.04 | B103: MAPOTECA PARA PROJETO 1,40X1,10X1,40M E PEÇA 8X8 CM | C103: UN | D103: 130.82
A104: 01.14.05 | B104: JANELA DE CORRER DE FERRO 1x1/8", AREA > 1,0 M2 | C104: UN | D104: 363.47
A105: 01.14.11 | B105: INSTALACAO HIDRAULICA - ESCRITORIO EMPREITEIRA | C105: UN | D105: 1123.91
A106: 01.14.12 | B106: INSTALACAO ELETRICA - ESCRITÓRIO EMPREITEIRA, DEPOSITO OU VESTIARIO | C106: UN | D106: 559.47
A107: 01.14.13 | B107: INSTALACAO HIDRAULICA - VESTIARIO | C107: UN | D107: 2134.31
A108: 01.14.14 | B108: INSTALAÇAO ELETRICA - ESCRITORIO TIPO I | C108: UN | D108: 605.86
A109: 01.14.15 | B109: INSTALAÇAO ELETRICA - ESCRITORIO TIPO II | C109: UN | D109: 703.85
A110: 01.14.16 | B110: INSTALAÇAO ELETRICA - VESTIARIO TIPO I | C110: UN | D110: 247.04
A111: 01.14.17 | B111: INSTALAÇAO ELETRICA - VESTIARIO TIPO II | C111: UN | D111: 365.16
A112: 01.14.18 | B112: INSTALAÇAO ELETRICA - VESTIARIO TIPO III | C112: UN | D112: 490.17
A113: 01.14.19 | B113: INSTALAÇAO ELETRICA - DEPOSITO TIPO I | C113: UN | D113: 199.81
A114: 01.14.20 | B114: INSTALAÇAO ELETRICA - DEPOSITO TIPO II | C114: UN | D114: 241.45
A115: 01.14.21 | B115: INSTALAÇAO ELETRICA - DEPOSITO TIPO III | C115: UN | D115: 328.66
A116: 01.14.22 | B116: INSTALAÇAO ELETRICA - SANITARIO TIPO I | C116: UN | D116: 279.55
A117: 01.14.23 | B117: INSTALAÇAO ELETRICA - SANITARIO TIPO II | C117: UN | D117: 351.76
A118: 01.14.24 | B118: INSTALAÇAO ELETRICA - SANITARIO TIPO III | C118: UN | D118: 494.92
A119: 01.14.25 | B119: INSTALAÇAO ELETRICA - REFEITORIO TIPO I | C119: UN | D119: 233.6
A120: 01.14.26 | B120: INSTALAÇAO ELETRICA - REFEITORIO TIPO II | C120: UN | D120: 329.75
A121: 01.14.28 | B121: INSTALAÇAO HIDRAULICA - SANITARIO TIPO I | C121: UN | D121: 1064.58
A122: 01.14.29 | B122: INSTALAÇAO HIDROSANITARIA TIPO II | C122: UN | D122: 1725.23
A123: 01.14.30 | B123: INSTALAÇAO HIDROSANITARIA - SANITARIO TIPO III | C123: UN | D123: 2609.58
A124: 01.14.31 | B124: INSTALAÇAO HIDROSANITARIA - REFEITORIO I E II | C124: UN | D124: 386.37
A125: 01.14.32 | B125: INSTALAÇAO HIDROSSANITÁRIA - LAVABO | C125: UN | D125: 802.54
A126: 01.14.33 | B126: INSTALAÇAO ELÉTRICA - LAVABO | C126: UN | D126: 151.1
A127: 01.14.34 | B127: TORRE PROVISÓRIA PARA CAIXA D'ÁGUA DE 1000L, H=4,00M | C127: UN | D127: 1187.65
A128: 01.17 | B128: LOCAÇAO DE OBRA
A129: 01.17.01 | B129: GABARITO | C129: M | D129: 28.78
A130: 01.29 | B130: ANDAIMES
A131: 01.29.03 | B131: MONTAGEM DE ANDAIME FACHADEIRO ADP REF 97063 | C131: M2 | D131: 6.62
A132: 01.29.04 | B132: DESMONTAGEM DE ANDAIME FACHADEIRO ADP REF 97063 | C132: M2 | D132: 6.62
A133: 01.29.05 | B133: ANDAIME FACHADEIRO COMPLETO | C133: M2MES | D133: 15
A134: 01.29.10 | B134: ANDAIME METALICO TUBULAR, TIPO TORRE, L=1,0 ATE 1,5M E H=1,0 M COMPLETO | C134: MXMES | D134: 24.89
A135: 01.29.11 | B135: MONTAGEM DE ANDAIME DO TIPO TORRE ADP REF 97064 | C135: M | D135: 11.21
A136: 01.29.12 | B136: DESMONTAGEM DE ANDAIME DO TIPO TORRE ADP REF 97064 | C136: M | D136: 11.21
A137: 02 | B137: DEMOLIÇOES E REMOÇOES
A138: 02.01 | B138: REMOÇAO DE TELHA INCLUSIVE EMPILHAMENTO
A139: 02.01.01 | B139: METALICA OU PVC | C139: M2 | D139: 4.21
A140: 02.01.03 | B140: TIPO CALHA DE FIBROCIMENTO | C140: M2 | D140: 10.09
A141: 02.01.05 | B141: ONDULADA DE FIBROCIMENTO | C141: M2 | D141: 8.41
A142: 02.01.07 | B142: CERAMICA COLONIAL OU FRANCESA | C142: M2 | D142: 10.09
A143: 02.02 | B143: REMOÇAO DE CALHA, RUFO E CONDUTOR,INCL.AFASTAMENTO
A144: 02.02.01 | B144: DE CALHA GALVANIZADA OU PVC | C144: M | D144: 5.04
A145: 02.02.05 | B145: DE RUFO DE CHAPA GALVANIZADA | C145: M | D145: 3.37
A146: 02.02.10 | B146: DE CONDUTOR DE CHAPA GALVANIZADA OU PVC | C146: M | D146: 3.37
A147: 02.03 | B147: REMOÇAO DE ENGRADAMENTO DE TELHADO INCL.EMPILHAM.
A148: 02.03.01 | B148: DE TELHA METALICA OU PVC | C148: M2 | D148: 5.67
A149: 02.03.03 | B149: DE TELHA TIPO CALHA DE FIBROCIMENTO | C149: M2 | D149: 2.83
A150: 02.03.05 | B150: DE TELHA ONDULADA DE FIBROCIMENTO | C150: M2 | D150: 5.67
A151: 02.03.07 | B151: DE TELHA CERAMICA, COLONIAL OU FRANCESA | C151: M2 | D151: 7.98
A152: 02.04 | B152: REMOÇAO DE FORRO INCLUSIVE EMPILHAMENTO
A153: 02.04.01 | B153: DE PLACAS INCLUSIVE BARROTEAMENTO | C153: M2 | D153: 14.23
A154: 02.04.02 | B154: DE PLACAS EXCLUSIVE BARROTEAMENTO | C154: M2 | D154: 7.11
A155: 02.04.10 | B155: DE GESSO | C155: M2 | D155: 10.67
A156: 02.06 | B156: REMOÇAO DE ESQUADRIA DE MADEIRA INCL. EMPILHAMENTO
A157: 02.06.01 | B157: DE PORTA OU JANELA INCLUSIVE MARCO E ALIZAR | C157: M2 | D157: 10.06
A158: 02.06.02 | B158: DE FOLHA DE PORTA OU JANELA | C158: M2 | D158: 5.03
A159: 02.06.03 | B159: DE MARCO E ALIZAR | C159: UN | D159: 8.58
A160: 02.06.04 | B160: DE MARCO | C160: UN | D160: 6.07
A161: 02.06.05 | B161: DE ALIZAR | C161: CJ | D161: 2.51
A162: 02.07 | B162: REMOÇAO DE ESQUADRIA METALICA
A163: 02.07.01 | B163: DE PORTA OU JANELA | C163: M2 | D163: 12.58
A164: 02.09 | B164: DEMOLIÇAO DE REVESTIMENTO INCLUSIVE AFASTAMENTO
A165: 02.09.01 | B165: DE REBOCO | C165: M2 | D165: 2.33
A166: 02.09.03 | B166: CERAMICO, AZULEJO OU LADRILHO HIDRAULICO | C166: M2 | D166: 15.14
A167: 02.09.05 | B167: DE PEDRA (MARMORE, GRANITO, ARDOSIA, SAO TOME,ETC) | C167: M2 | D167: 16.82
A168: 02.09.06 | B168: DE FORMICA | C168: M2 | D168: 5.03
A169: 02.09.07 | B169: DE PEDRA ALMOFADADA | C169: M2 | D169: 35.56
A170: 02.10 | B170: DEMOLIÇAO DE PISO INCLUSIVE AFASTAMENTO
A171: 02.10.01 | B171: CIMENTADO OU CONTRAPISO DE ARGAMASSA | C171: M2 | D171: 2.33
A172: 02.10.03 | B172: CERAMICO OU LADRILHO HIDRAULICO | C172: M2 | D172: 11.78
A173: 02.10.05 | B173: DE PEDRA (MARMORE, GRANITO, ARDOSIA, SAO TOME,ETC) | C173: M2 | D173: 21.85
A174: 02.10.07 | B174: VINILICO | C174: M2 | D174: 5.9
A175: 02.10.08 | B175: DE MARMORITE | C175: M2 | D175: 13.87
A176: 02.10.09 | B176: DE TACO DE MADEIRA | C176: M2 | D176: 23.07
A177: 02.11 | B177: DEMOLIÇAO DE PASSEIO E PAVIMENTO
A178: 02.11.01 | B178: PASSEIO OU LAJE DE CONCRETO MANUALMENTE | C178: M2 | D178: 20.19
A179: 02.11.02 | B179: PASSEIO OU LAJE DE CONCRETO C/ EQUIP. PNEUMATICO | C179: M2 | D179: 13.87
A180: 02.11.03 | B180: CALÇADA PORTUGUESA | C180: M2 | D180: 4.73
A181: 02.11.04 | B181: PASSEIO OU LAJE DE CONCRETO C/EQUIPAMENTO ELETRICO | C181: M2 | D181: 6.34
A182: 02.11.05 | B182: MANUAL DE ALVENARIA POLIEDRICA | C182: M2 | D182: 5.9
A183: 02.11.07 | B183: DE REVESTIMENTO ASFALTICO COM EQUIP. PNEUMATICO | C183: M2 | D183: 13.87
A184: 02.12 | B184: CORTE MECANICO EM CONCRETO/ASFALTO
A185: 02.12.01 | B185: CORTE MECAN. C/ SERRA CIRCULAR EM CONCRETO/ASFALTO | C185: M | D185: 1.93
A186: 02.13 | B186: DEMOLIÇAO DE CONCRETO INCLUSIVE AFASTAMENTO
A187: 02.13.01 | B187: SIMPLES - MANUAL | C187: M3 | D187: 208.11
A188: 02.13.02 | B188: ARMADO - MANUAL | C188: M3 | D188: 285.97
A189: 02.13.03 | B189: SIMPLES - COM EQUIPAMENTO ELETRICO | C189: M3 | D189: 82.35
A190: 02.13.04 | B190: ARMADO - COM EQUIPAMENTO ELETRICO | C190: M3 | D190: 130.21
A191: 02.14 | B191: DEMOLIÇAO MANUAL, DE ALVENARIA INCL. AFASTAMENTO
A192: 02.14.01 | B192: DE ALVENARIA DE TIJOLOS E BLOCOS | C192: M3 | D192: 94.52
A193: 02.15 | B193: REMOÇAO DE MEIO-FIO
A194: 02.15.01 | B194: PREMOLDADO DE CONCRETO | C194: M | D194: 7.37
A195: 02.15.02 | B195: DE PEDRA (GNAISSE, BASALTO ETC.) | C195: M | D195: 22.11
A196: 02.16 | B196: DEMOLIÇAO, REMOÇAO E CARGA MECANICA
A197: 02.16.01 | B197: DE CONSTRUÇOES DE ALVENARIA | C197: M2 | D197: 8.16
A198: 02.16.04 | B198: DE GABIAO | C198: M3 | D198: 18.28
A199: 02.19 | B199: DEMOLIÇAO DE DIVISORIA INCLUSIVE AFASTAMENTO
A200: 02.19.01 | B200: DE PEDRA (MARMORE, ARDOSIA OU MARMORITE) | C200: M2 | D200: 35.56
A201: 02.19.03 | B201: DE MADEIRA | C201: M2 | D201: 13
... 3680 more rows

Sheet CRO 1 mes
A2: CRONOGRAMA FÍSICO-FINANCEIRO | K2: Revisão: | L2: =DADOS!D6 -> R00
K3: Data: | L3: =DADOS!D2 -> 2024-06-14
A4: Projeto: | D4: Responsável: | H4: Cliente: | K4: Bancos:
A5: =DADOS!D8 -> PREVENÇÃO E COMBATE A INCÊNDIO E PÂNICO - ESCOLA DO BAIRRO BURITIS | K5: =DADOS!D14 -> SINAPI: 04/2024 Minas Gerais SETOP: 01/2024 Minas Gerais SICRO : 01/2024 Minas Gerais SUDECAP: 01/2024 Minas Gerais
K8: BDI 1: | L8: =DADOS!D10 -> 0.2652
K9: BDI 2: | L9: =DADOS!D12 -> -
A11: =A2&" DE "&DADOS!D20&" - "&A5 -> CRONOGRAMA FÍSICO-FINANCEIRO DE PROJETO EXECUTIVO - PREVENÇÃO E COMBATE A INCÊNDIO E PÂNICO - ESCOLA DO BAIRRO BURITIS
A13: ITEM | B13: DESCRIÇÃO | F13: Unid. | G13: 30 DIAS | K13: Total por Etapa
A15: 1 | B15: =VLOOKUP(A15,ORC!$D:$N,2,0) -> SERVIÇOS PRELIMINARES | F15: % | G15: 1 | K15: =SUM(G15:J15) -> 1
A16: =IFERROR(IF(B15<>"",100,B15),"") -> 100 | F16: R$ | G16: =IF(G15="","",IFERROR(G15*$K16,"")) -> 1719.58 | K16: =VLOOKUP(A15,ORC!$D:$N,11,0) -> 1719.58
A17: 2 | B17: =VLOOKUP(A17,ORC!$D:$N,2,0) -> SISTEMA DE PROTEÇÃO CONTRA INCÊNDIO E PÂNICO | F17: % | G17: 1 | K17: =SUM(G17:J17) -> 1
A18: =IFERROR(IF(B17<>"",100,B17),"") -> 100 | F18: R$ | G18: =IF(G17="","",IFERROR(G17*$K18,"")) -> 105542.76 | K18: =VLOOKUP(A17,ORC!$D:$N,11,0) -> 105542.76
A19: 3 | B19: =VLOOKUP(A19,ORC!$D:$N,2,0) -> SERVIÇOS FINAIS | F19: % | G19: 1 | K19: =SUM(G19:J19) -> 1
A20: =IFERROR(IF(B19<>"",100,B19),"") -> 100 | F20: R$ | G20: =IF(G19="","",IFERROR(G19*$K20,"")) -> 1150.16 | K20: =VLOOKUP(A19,ORC!$D:$N,11,0) -> 1150.16
A21: 4 | B21: =VLOOKUP(A21,ORC!$D:$N,2,0) ->  | F21: % | K21: =SUM(G21:J21) -> 0
A22: =IFERROR(IF(B21<>"",100,B21),"") ->  | F22: R$ | G22: =IF(G21="","",IFERROR(G21*$K22,"")) ->  | K22: =VLOOKUP(A21,ORC!$D:$N,11,0) -> 
A23: 5 | B23: =VLOOKUP(A23,ORC!$D:$N,2,0) ->  | F23: % | K23: =SUM(G23:J23) -> 0
A24: =IFERROR(IF(B23<>"",100,B23),"") ->  | F24: R$ | G24: =IF(G23="","",IFERROR(G23*$K24,"")) ->  | K24: =VLOOKUP(A23,ORC!$D:$N,11,0) -> 
A25: 6 | B25: =VLOOKUP(A25,ORC!$D:$N,2,0) ->  | F25: % | K25: =SUM(G25:J25) -> 0
A26: =IFERROR(IF(B25<>"",100,B25),"") ->  | F26: R$ | G26: =IF(G25="","",IFERROR(G25*$K26,"")) ->  | K26: =VLOOKUP(A25,ORC!$D:$N,11,0) -> 
A27: 7 | B27: =VLOOKUP(A27,ORC!$D:$N,2,0) ->  | F27: % | K27: =SUM(G27:J27) -> 0
A28: =IFERROR(IF(B27<>"",100,B27),"") ->  | F28: R$ | G28: =IF(G27="","",IFERROR(G27*$K28,"")) ->  | K28: =VLOOKUP(A27,ORC!$D:$N,11,0) -> 
A29: 8 | B29: =VLOOKUP(A29,ORC!$D:$N,2,0) ->  | F29: % | K29: =SUM(G29:J29) -> 0
A30: =IFERROR(IF(B29<>"",100,B29),"") ->  | F30: R$ | G30: =IF(G29="","",IFERROR(G29*$K30,"")) ->  | K30: =VLOOKUP(A29,ORC!$D:$N,11,0) -> 
A31: 9 | B31: =VLOOKUP(A31,ORC!$D:$N,2,0) ->  | F31: % | K31: =SUM(G31:J31) -> 0
A32: =IFERROR(IF(B31<>"",100,B31),"") ->  | F32: R$ | G32: =IF(G31="","",IFERROR(G31*$K32,"")) ->  | K32: =VLOOKUP(A31,ORC!$D:$N,11,0) -> 
A33: 10 | B33: =VLOOKUP(A33,ORC!$D:$N,2,0) ->  | F33: % | K33: =SUM(G33:J33) -> 0
A34: =IFERROR(IF(B33<>"",100,B33),"") ->  | F34: R$ | G34: =IF(G33="","",IFERROR(G33*$K34,"")) ->  | K34: =VLOOKUP(A33,ORC!$D:$N,11,0) -> 
A35: 11 | B35: =VLOOKUP(A35,ORC!$D:$N,2,0) ->  | F35: % | K35: =SUM(G35:J35) -> 0
A36: =IFERROR(IF(B35<>"",100,B35),"") ->  | F36: R$ | G36: =IF(G35="","",IFERROR(G35*$K36,"")) ->  | K36: =VLOOKUP(A35,ORC!$D:$N,11,0) -> 
A37: 12 | B37: =VLOOKUP(A37,ORC!$D:$N,2,0) ->  | F37: % | K37: =SUM(G37:J37) -> 0
A38: =IFERROR(IF(B37<>"",100,B37),"") ->  | F38: R$ | G38: =IF(G37="","",IFERROR(G37*$K38,"")) ->  | K38: =VLOOKUP(A37,ORC!$D:$N,11,0) -> 
A39: 13 | B39: =VLOOKUP(A39,ORC!$D:$N,2,0) ->  | F39: % | K39: =SUM(G39:J39) -> 0
A40: =IFERROR(IF(B39<>"",100,B39),"") ->  | F40: R$ | G40: =IF(G39="","",IFERROR(G39*$K40,"")) ->  | K40: =VLOOKUP(A39,ORC!$D:$N,11,0) -> 
A41: 14 | B41: =VLOOKUP(A41,ORC!$D:$N,2,0) ->  | F41: % | K41: =SUM(G41:J41) -> 0
A42: =IFERROR(IF(B41<>"",100,B41),"") ->  | F42: R$ | G42: =IF(G41="","",IFERROR(G41*$K42,"")) ->  | K42: =VLOOKUP(A41,ORC!$D:$N,11,0) -> 
A43: 15 | B43: =VLOOKUP(A43,ORC!$D:$N,2,0) ->  | F43: % | K43: =SUM(G43:J43) -> 0
A44: =IFERROR(IF(B43<>"",100,B43),"") ->  | F44: R$ | G44: =IF(G43="","",IFERROR(G43*$K44,"")) ->  | K44: =VLOOKUP(A43,ORC!$D:$N,11,0) -> 
A45: 16 | B45: =VLOOKUP(A45,ORC!$D:$N,2,0) ->  | F45: % | K45: =SUM(G45:J45) -> 0
A46: =IFERROR(IF(B45<>"",100,B45),"") ->  | F46: R$ | G46: =IF(G45="","",IFERROR(G45*$K46,"")) ->  | K46: =VLOOKUP(A45,ORC!$D:$N,11,0) -> 
A47: 17 | B47: =VLOOKUP(A47,ORC!$D:$N,2,0) ->  | F47: % | K47: =SUM(G47:J47) -> 0
A48: =IFERROR(IF(B47<>"",100,B47),"") ->  | F48: R$ | G48: =IF(G47="","",IFERROR(G47*$K48,"")) ->  | K48: =VLOOKUP(A47,ORC!$D:$N,11,0) -> 
A49: 18 | B49: =VLOOKUP(A49,ORC!$D:$N,2,0) ->  | F49: % | K49: =SUM(G49:J49) -> 0
A50: =IFERROR(IF(B49<>"",100,B49),"") ->  | F50: R$ | G50: =IF(G49="","",IFERROR(G49*$K50,"")) ->  | K50: =VLOOKUP(A49,ORC!$D:$N,11,0) -> 
A51: 19 | B51: =VLOOKUP(A51,ORC!$D:$N,2,0) ->  | F51: % | K51: =SUM(G51:J51) -> 0
A52: =IFERROR(IF(B51<>"",100,B51),"") ->  | F52: R$ | G52: =IF(G51="","",IFERROR(G51*$K52,"")) ->  | K52: =VLOOKUP(A51,ORC!$D:$N,11,0) -> 
A53: 20 | B53: =VLOOKUP(A53,ORC!$D:$N,2,0) ->  | F53: % | K53: =SUM(G53:J53) -> 0
A54: =IFERROR(IF(B53<>"",100,B53),"") ->  | F54: R$ | G54: =IF(G53="","",IFERROR(G53*$K54,"")) ->  | K54: =VLOOKUP(A53,ORC!$D:$N,11,0) -> 
A55: 21 | B55: =VLOOKUP(A55,ORC!$D:$N,2,0) ->  | F55: % | K55: =SUM(G55:J55) -> 0
A56: =IFERROR(IF(B55<>"",100,B55),"") ->  | F56: R$ | G56: =IF(G55="","",IFERROR(G55*$K56,"")) ->  | K56: =VLOOKUP(A55,ORC!$D:$N,11,0) -> 
A57: 22 | B57: =VLOOKUP(A57,ORC!$D:$N,2,0) ->  | F57: % | K57: =SUM(G57:J57) -> 0
A58: =IFERROR(IF(B57<>"",100,B57),"") ->  | F58: R$ | G58: =IF(G57="","",IFERROR(G57*$K58,"")) ->  | K58: =VLOOKUP(A57,ORC!$D:$N,11,0) -> 
A59: 23 | B59: =VLOOKUP(A59,ORC!$D:$N,2,0) ->  | F59: % | K59: =SUM(G59:J59) -> 0
A60: =IFERROR(IF(B59<>"",100,B59),"") ->  | F60: R$ | G60: =IF(G59="","",IFERROR(G59*$K60,"")) ->  | K60: =VLOOKUP(A59,ORC!$D:$N,11,0) -> 
A61: 24 | B61: =VLOOKUP(A61,ORC!$D:$N,2,0) ->  | F61: % | K61: =SUM(G61:J61) -> 0
A62: =IFERROR(IF(B61<>"",100,B61),"") ->  | F62: R$ | G62: =IF(G61="","",IFERROR(G61*$K62,"")) ->  | K62: =VLOOKUP(A61,ORC!$D:$N,11,0) -> 
A63: 25 | B63: =VLOOKUP(A63,ORC!$D:$N,2,0) ->  | F63: % | K63: =SUM(G63:J63) -> 0
A64: =IFERROR(IF(B63<>"",100,B63),"") ->  | F64: R$ | G64: =IF(G63="","",IFERROR(G63*$K64,"")) ->  | K64: =VLOOKUP(A63,ORC!$D:$N,11,0) -> 
A65: 26 | B65: =VLOOKUP(A65,ORC!$D:$N,2,0) ->  | F65: % | K65: =SUM(G65:J65) -> 0
A66: =IFERROR(IF(B65<>"",100,B65),"") ->  | F66: R$ | G66: =IF(G65="","",IFERROR(G65*$K66,"")) ->  | K66: =VLOOKUP(A65,ORC!$D:$N,11,0) -> 
A67: 27 | B67: =VLOOKUP(A67,ORC!$D:$N,2,0) ->  | F67: % | K67: =SUM(G67:J67) -> 0
A68: =IFERROR(IF(B67<>"",100,B67),"") ->  | F68: R$ | G68: =IF(G67="","",IFERROR(G67*$K68,"")) ->  | K68: =VLOOKUP(A67,ORC!$D:$N,11,0) -> 
A69: 28 | B69: =VLOOKUP(A69,ORC!$D:$N,2,0) ->  | F69: % | K69: =SUM(G69:J69) -> 0
A70: =IFERROR(IF(B69<>"",100,B69),"") ->  | F70: R$ | G70: =IF(G69="","",IFERROR(G69*$K70,"")) ->  | K70: =VLOOKUP(A69,ORC!$D:$N,11,0) -> 
A71: 29 | B71: =VLOOKUP(A71,ORC!$D:$N,2,0) ->  | F71: % | K71: =SUM(G71:J71) -> 0
A72: =IFERROR(IF(B71<>"",100,B71),"") ->  | F72: R$ | G72: =IF(G71="","",IFERROR(G71*$K72,"")) ->  | K72: =VLOOKUP(A71,ORC!$D:$N,11,0) -> 
A73: 30 | B73: =VLOOKUP(A73,ORC!$D:$N,2,0) ->  | F73: % | K73: =SUM(G73:J73) -> 0
A74: =IFERROR(IF(B73<>"",100,B73),"") ->  | F74: R$ | G74: =IF(G73="","",IFERROR(G73*$K74,"")) ->  | K74: =VLOOKUP(A73,ORC!$D:$N,11,0) -> 
F76: Porcentagem | G76: =G77/$G$79 -> 1
F77: Custo | G77: =SUMIF($A:$A,100,G:G) -> 108412.5
F78: Porcentagem Acumulada | G78: =I78 -> 0
F79: Custo Acumulado | G79: =IF(G77=ORC!M99,G77,"ERRO") -> 108412.5
F83: RESPONSÁVEL TÉCNICO | G83: =DADOS!D16 -> ALOISIO CAETANO FERREIRA
G84: =DADOS!D18 -> CREA - MG 97.132/D

Sheet CRO 2 meses
A2: CRONOGRAMA FÍSICO-FINANCEIRO | K2: Revisão: | L2: =DADOS!D6 -> R00
K3: Data: | L3: =DADOS!D2 -> 2024-06-14
A4: Projeto: | D4: Responsável: | H4: Cliente: | K4: Bancos:
A5: =DADOS!D8 -> PREVENÇÃO E COMBATE A INCÊNDIO E PÂNICO - ESCOLA DO BAIRRO BURITIS | K5: =DADOS!D14 -> SINAPI: 04/2024 Minas Gerais SETOP: 01/2024 Minas Gerais SICRO : 01/2024 Minas Gerais SUDECAP: 01/2024 Minas Gerais
K8: BDI 1: | L8: =DADOS!D10 -> 0.2652
K9: BDI 2: | L9: =DADOS!D12 -> -
A11: =A2&" DE "&DADOS!D20&" - "&A5 -> CRONOGRAMA FÍSICO-FINANCEIRO DE PROJETO EXECUTIVO - PREVENÇÃO E COMBATE A INCÊNDIO E PÂNICO - ESCOLA DO BAIRRO BURITIS
A13: ITEM | B13: DESCRIÇÃO | F13: Unid. | G13: 30 DIAS | I13: 60 DIAS | K13: Total por Etapa
A15: 1 | B15: =VLOOKUP(A15,ORC!$D:$N,2,0) -> SERVIÇOS PRELIMINARES | F15: % | G15: 1 | K15: =SUM(G15:J15) -> 1
A16: =IFERROR(IF(B15<>"",100,B15),"") -> 100 | F16: R$ | G16: =IF(G15="","",IFERROR(G15*$K16,"")) -> 1719.58 | I16: =IF(I15="","",IFERROR(I15*$K16,"")) ->  | K16: =VLOOKUP(A15,ORC!$D:$N,11,0) -> 1719.58
A17: 2 | B17: =VLOOKUP(A17,ORC!$D:$N,2,0) -> SISTEMA DE PROTEÇÃO CONTRA INCÊNDIO E PÂNICO | F17: % | G17: 0.5 | I17: 0.5 | K17: =SUM(G17:J17) -> 1
A18: =IFERROR(IF(B17<>"",100,B17),"") -> 100 | F18: R$ | G18: =IF(G17="","",IFERROR(G17*$K18,"")) -> 52771.38 | I18: =IF(I17="","",IFERROR(I17*$K18,"")) -> 52771.38 | K18: =VLOOKUP(A17,ORC!$D:$N,11,0) -> 105542.76
A19: 3 | B19: =VLOOKUP(A19,ORC!$D:$N,2,0) -> SERVIÇOS FINAIS | F19: % | I19: 1 | K19: =SUM(G19:J19) -> 1
A20: =IFERROR(IF(B19<>"",100,B19),"") -> 100 | F20: R$ | G20: =IF(G19="","",IFERROR(G19*$K20,"")) ->  | I20: =IF(I19="","",IFERROR(I19*$K20,"")) -> 1150.16 | K20: =VLOOKUP(A19,ORC!$D:$N,11,0) -> 1150.16
A21: 4 | B21: =VLOOKUP(A21,ORC!$D:$N,2,0) ->  | F21: % | K21: =SUM(G21:J21) -> 0
A22: =IFERROR(IF(B21<>"",100,B21),"") ->  | F22: R$ | G22: =IF(G21="","",IFERROR(G21*$K22,"")) ->  | I22: =IF(I21="","",IFERROR(I21*$K22,"")) ->  | K22: =VLOOKUP(A21,ORC!$D:$N,11,0) -> 
A23: 5 | B23: =VLOOKUP(A23,ORC!$D:$N,2,0) ->  | F23: % | K23: =SUM(G23:J23) -> 0
A24: =IFERROR(IF(B23<>"",100,B23),"") ->  | F24: R$ | G24: =IF(G23="","",IFERROR(G23*$K24,"")) ->  | I24: =IF(I23="","",IFERROR(I23*$K24,"")) ->  | K24: =VLOOKUP(A23,ORC!$D:$N,11,0) -> 
A25: 6 | B25: =VLOOKUP(A25,ORC!$D:$N,2,0) ->  | F25: % | K25: =SUM(G25:J25) -> 0
A26: =IFERROR(IF(B25<>"",100,B25),"") ->  | F26: R$ | G26: =IF(G25="","",IFERROR(G25*$K26,"")) ->  | I26: =IF(I25="","",IFERROR(I25*$K26,"")) ->  | K26: =VLOOKUP(A25,ORC!$D:$N,11,0) -> 
A27: 7 | B27: =VLOOKUP(A27,ORC!$D:$N,2,0) ->  | F27: % | K27: =SUM(G27:J27) -> 0
A28: =IFERROR(IF(B27<>"",100,B27),"") ->  | F28: R$ | G28: =IF(G27="","",IFERROR(G27*$K28,"")) ->  | I28: =IF(I27="","",IFERROR(I27*$K28,"")) ->  | K28: =VLOOKUP(A27,ORC!$D:$N,11,0) -> 
A29: 8 | B29: =VLOOKUP(A29,ORC!$D:$N,2,0) ->  | F29: % | K29: =SUM(G29:J29) -> 0
A30: =IFERROR(IF(B29<>"",100,B29),"") ->  | F30: R$ | G30: =IF(G29="","",IFERROR(G29*$K30,"")) ->  | I30: =IF(I29="","",IFERROR(I29*$K30,"")) ->  | K30: =VLOOKUP(A29,ORC!$D:$N,11,0) -> 
A31: 9 | B31: =VLOOKUP(A31,ORC!$D:$N,2,0) ->  | F31: % | K31: =SUM(G31:J31) -> 0
A32: =IFERROR(IF(B31<>"",100,B31),"") ->  | F32: R$ | G32: =IF(G31="","",IFERROR(G31*$K32,"")) ->  | I32: =IF(I31="","",IFERROR(I31*$K32,"")) ->  | K32: =VLOOKUP(A31,ORC!$D:$N,11,0) -> 
A33: 10 | B33: =VLOOKUP(A33,ORC!$D:$N,2,0) ->  | F33: % | K33: =SUM(G33:J33) -> 0
A34: =IFERROR(IF(B33<>"",100,B33),"") ->  | F34: R$ | G34: =IF(G33="","",IFERROR(G33*$K34,"")) ->  | I34: =IF(I33="","",IFERROR(I33*$K34,"")) ->  | K34: =VLOOKUP(A33,ORC!$D:$N,11,0) -> 
A35: 11 | B35: =VLOOKUP(A35,ORC!$D:$N,2,0) ->  | F35: % | K35: =SUM(G35:J35) -> 0
A36: =IFERROR(IF(B35<>"",100,B35),"") ->  | F36: R$ | G36: =IF(G35="","",IFERROR(G35*$K36,"")) ->  | I36: =IF(I35="","",IFERROR(I35*$K36,"")) ->  | K36: =VLOOKUP(A35,ORC!$D:$N,11,0) -> 
A37: 12 | B37: =VLOOKUP(A37,ORC!$D:$N,2,0) ->  | F37: % | K37: =SUM(G37:J37) -> 0
A38: =IFERROR(IF(B37<>"",100,B37),"") ->  | F38: R$ | G38: =IF(G37="","",IFERROR(G37*$K38,"")) ->  | I38: =IF(I37="","",IFERROR(I37*$K38,"")) ->  | K38: =VLOOKUP(A37,ORC!$D:$N,11,0) -> 
A39: 13 | B39: =VLOOKUP(A39,ORC!$D:$N,2,0) ->  | F39: % | K39: =SUM(G39:J39) -> 0
A40: =IFERROR(IF(B39<>"",100,B39),"") ->  | F40: R$ | G40: =IF(G39="","",IFERROR(G39*$K40,"")) ->  | I40: =IF(I39="","",IFERROR(I39*$K40,"")) ->  | K40: =VLOOKUP(A39,ORC!$D:$N,11,0) -> 
A41: 14 | B41: =VLOOKUP(A41,ORC!$D:$N,2,0) ->  | F41: % | K41: =SUM(G41:J41) -> 0
A42: =IFERROR(IF(B41<>"",100,B41),"") ->  | F42: R$ | G42: =IF(G41="","",IFERROR(G41*$K42,"")) ->  | I42: =IF(I41="","",IFERROR(I41*$K42,"")) ->  | K42: =VLOOKUP(A41,ORC!$D:$N,11,0) -> 
A43: 15 | B43: =VLOOKUP(A43,ORC!$D:$N,2,0) ->  | F43: % | K43: =SUM(G43:J43) -> 0
A44: =IFERROR(IF(B43<>"",100,B43),"") ->  | F44: R$ | G44: =IF(G43="","",IFERROR(G43*$K44,"")) ->  | I44: =IF(I43="","",IFERROR(I43*$K44,"")) ->  | K44: =VLOOKUP(A43,ORC!$D:$N,11,0) -> 
A45: 16 | B45: =VLOOKUP(A45,ORC!$D:$N,2,0) ->  | F45: % | K45: =SUM(G45:J45) -> 0
A46: =IFERROR(IF(B45<>"",100,B45),"") ->  | F46: R$ | G46: =IF(G45="","",IFERROR(G45*$K46,"")) ->  | I46: =IF(I45="","",IFERROR(I45*$K46,"")) ->  | K46: =VLOOKUP(A45,ORC!$D:$N,11,0) -> 
A47: 17 | B47: =VLOOKUP(A47,ORC!$D:$N,2,0) ->  | F47: % | K47: =SUM(G47:J47) -> 0
A48: =IFERROR(IF(B47<>"",100,B47),"") ->  | F48: R$ | G48: =IF(G47="","",IFERROR(G47*$K48,"")) ->  | I48: =IF(I47="","",IFERROR(I47*$K48,"")) ->  | K48: =VLOOKUP(A47,ORC!$D:$N,11,0) -> 
A49: 18 | B49: =VLOOKUP(A49,ORC!$D:$N,2,0) ->  | F49: % | K49: =SUM(G49:J49) -> 0
A50: =IFERROR(IF(B49<>"",100,B49),"") ->  | F50: R$ | G50: =IF(G49="","",IFERROR(G49*$K50,"")) ->  | I50: =IF(I49="","",IFERROR(I49*$K50,"")) ->  | K50: =VLOOKUP(A49,ORC!$D:$N,11,0) -> 
A51: 19 | B51: =VLOOKUP(A51,ORC!$D:$N,2,0) ->  | F51: % | K51: =SUM(G51:J51) -> 0
A52: =IFERROR(IF(B51<>"",100,B51),"") ->  | F52: R$ | G52: =IF(G51="","",IFERROR(G51*$K52,"")) ->  | I52: =IF(I51="","",IFERROR(I51*$K52,"")) ->  | K52: =VLOOKUP(A51,ORC!$D:$N,11,0) -> 
A53: 20 | B53: =VLOOKUP(A53,ORC!$D:$N,2,0) ->  | F53: % | K53: =SUM(G53:J53) -> 0
A54: =IFERROR(IF(B53<>"",100,B53),"") ->  | F54: R$ | G54: =IF(G53="","",IFERROR(G53*$K54,"")) ->  | I54: =IF(I53="","",IFERROR(I53*$K54,"")) ->  | K54: =VLOOKUP(A53,ORC!$D:$N,11,0) -> 
A55: 21 | B55: =VLOOKUP(A55,ORC!$D:$N,2,0) ->  | F55: % | K55: =SUM(G55:J55) -> 0
A56: =IFERROR(IF(B55<>"",100,B55),"") ->  | F56: R$ | G56: =IF(G55="","",IFERROR(G55*$K56,"")) ->  | I56: =IF(I55="","",IFERROR(I55*$K56,"")) ->  | K56: =VLOOKUP(A55,ORC!$D:$N,11,0) -> 
A57: 22 | B57: =VLOOKUP(A57,ORC!$D:$N,2,0) ->  | F57: % | K57: =SUM(G57:J57) -> 0
A58: =IFERROR(IF(B57<>"",100,B57),"") ->  | F58: R$ | G58: =IF(G57="","",IFERROR(G57*$K58,"")) ->  | I58: =IF(I57="","",IFERROR(I57*$K58,"")) ->  | K58: =VLOOKUP(A57,ORC!$D:$N,11,0) -> 
A59: 23 | B59: =VLOOKUP(A59,ORC!$D:$N,2,0) ->  | F59: % | K59: =SUM(G59:J59) -> 0
A60: =IFERROR(IF(B59<>"",100,B59),"") ->  | F60: R$ | G60: =IF(G59="","",IFERROR(G59*$K60,"")) ->  | I60: =IF(I59="","",IFERROR(I59*$K60,"")) ->  | K60: =VLOOKUP(A59,ORC!$D:$N,11,0) -> 
A61: 24 | B61: =VLOOKUP(A61,ORC!$D:$N,2,0) ->  | F61: % | K61: =SUM(G61:J61) -> 0
A62: =IFERROR(IF(B61<>"",100,B61),"") ->  | F62: R$ | G62: =IF(G61="","",IFERROR(G61*$K62,"")) ->  | I62: =IF(I61="","",IFERROR(I61*$K62,"")) ->  | K62: =VLOOKUP(A61,ORC!$D:$N,11,0) -> 
A63: 25 | B63: =VLOOKUP(A63,ORC!$D:$N,2,0) ->  | F63: % | K63: =SUM(G63:J63) -> 0
A64: =IFERROR(IF(B63<>"",100,B63),"") ->  | F64: R$ | G64: =IF(G63="","",IFERROR(G63*$K64,"")) ->  | I64: =IF(I63="","",IFERROR(I63*$K64,"")) ->  | K64: =VLOOKUP(A63,ORC!$D:$N,11,0) -> 
A65: 26 | B65: =VLOOKUP(A65,ORC!$D:$N,2,0) ->  | F65: % | K65: =SUM(G65:J65) -> 0
A66: =IFERROR(IF(B65<>"",100,B65),"") ->  | F66: R$ | G66: =IF(G65="","",IFERROR(G65*$K66,"")) ->  | I66: =IF(I65="","",IFERROR(I65*$K66,"")) ->  | K66: =VLOOKUP(A65,ORC!$D:$N,11,0) -> 
A67: 27 | B67: =VLOOKUP(A67,ORC!$D:$N,2,0) ->  | F67: % | K67: =SUM(G67:J67) -> 0
A68: =IFERROR(IF(B67<>"",100,B67),"") ->  | F68: R$ | G68: =IF(G67="","",IFERROR(G67*$K68,"")) ->  | I68: =IF(I67="","",IFERROR(I67*$K68,"")) ->  | K68: =VLOOKUP(A67,ORC!$D:$N,11,0) -> 
A69: 28 | B69: =VLOOKUP(A69,ORC!$D:$N,2,0) ->  | F69: % | K69: =SUM(G69:J69) -> 0
A70: =IFERROR(IF(B69<>"",100,B69),"") ->  | F70: R$ | G70: =IF(G69="","",IFERROR(G69*$K70,"")) ->  | I70: =IF(I69="","",IFERROR(I69*$K70,"")) ->  | K70: =VLOOKUP(A69,ORC!$D:$N,11,0) -> 
A71: 29 | B71: =VLOOKUP(A71,ORC!$D:$N,2,0) ->  | F71: % | K71: =SUM(G71:J71) -> 0
A72: =IFERROR(IF(B71<>"",100,B71),"") ->  | F72: R$ | G72: =IF(G71="","",IFERROR(G71*$K72,"")) ->  | I72: =IF(I71="","",IFERROR(I71*$K72,"")) ->  | K72: =VLOOKUP(A71,ORC!$D:$N,11,0) -> 
A73: 30 | B73: =VLOOKUP(A73,ORC!$D:$N,2,0) ->  | F73: % | K73: =SUM(G73:J73) -> 0
A74: =IFERROR(IF(B73<>"",100,B73),"") ->  | F74: R$ | G74: =IF(G73="","",IFERROR(G73*$K74,"")) ->  | I74: =IF(I73="","",IFERROR(I73*$K74,"")) ->  | K74: =VLOOKUP(A73,ORC!$D:$N,11,0) -> 
F76: Porcentagem | G76: =G77/$I$79 -> 0.5026261732 | I76: =I77/$I$79 -> 0.4973738268
F77: Custo | G77: =SUMIF($A:$A,100,G:G) -> 54490.96 | I77: =SUMIF($A:$A,100,I:I) -> 53921.54
F78: Porcentagem Acumulada | G78: =G76 -> 0.5026261732 | I78: =G78+I76 -> 1
F79: Custo Acumulado | G79: =G77 -> 54490.96 | I79: =IF(I77+G79=ORC!M99,I77+G79,"ERRO") -> 108412.5
F83: RESPONSÁVEL TÉCNICO | G83: =DADOS!D16 -> ALOISIO CAETANO FERREIRA
G84: =DADOS!D18 -> CREA - MG 97.132/D
